Workbook

Sheet Feuil de calcule
F1: CODE ADMINISTRATIF : | H1: 1985
B2: STE NIYO ACTURATION | F2: Message de Bienvenu : | H2: =IF(H1 = 1985,"Bienvenu Admin") -> Bienvenu Admin
B3: Patente : 15532606-R.C. : 359 -I.F. : 04540172 - C.N.S.S :.... | D3: =IF(G3=0,"",IFERROR(VLOOKUP(G3,'Liste-Client'!A2:G300,2),)) -> STE IMILCHIL DE TRAVAUX | F3: Ref: Client | G3: 26
B5: Tél/fax : 08.08.37.22.27
D7: =IF(G3=0,"",IFERROR(VLOOKUP(G3,'Liste-Client'!A2:G300,3),)) -> AZROU
B11: N° Facture: | D11: Sefrou Le : | E11: 2014-06-17
A13: REF | B13: Quantité | C13: Articles | D13: Prix U.T.T.C | E13: Prix TOTAL T.T.C | F13: Valeur Stock | G13: Quantité de Stock | H13: Déférance Ajouter | I13: Stock Final | J13: PRIX D'ACHAT
A14: 1 | B14: 130 | C14: =IF(A14=0,"",IFERROR(VLOOKUP(A14,'liste des articles'!A4:J12925,2),)) -> COF TICHKA JADID C/C 30A | D14: =IF(A14=0,"",IFERROR(VLOOKUP(A14,'liste des articles'!A1:I11017,7)+H14,)) -> 100 | E14: =IF(B14=0,"",IF(A14=0,"",SUM(D14*B14))) -> 13000 | F14: =IF(B14=0,"",IFERROR(VLOOKUP(A14,'liste des articles'!A:I,6),)) -> Stock Sufisant | G14: =IF(A14=0,"",IFERROR(VLOOKUP(A14,'liste des articles'!A:I,5),)) -> 924 | I14: =IF(G14=0,"0",IF(G14<Tableau8[[#This Row],[Quantité]],G14,IFERROR(G14-Tableau8[[#This Row],[Quantité]],""))) -> 794 | J14: =IF(A14=0,"",IFERROR(VLOOKUP(A14,'liste des articles'!A:I,8),)) -> 75
A15: 2 | B15: 120 | C15: =IF(A15=0,"",IFERROR(VLOOKUP(A15,'liste des articles'!A5:J12926,2),)) -> COF MEDINA C/C 30A ONE | D15: =IF(A15=0,"",IFERROR(VLOOKUP(A15,'liste des articles'!A2:I11018,7)+H15,)) -> 102 | E15: 12240 | F15: =IF(B15=0,"",IFERROR(VLOOKUP(A15,'liste des articles'!A:I,6),)) -> Stock Sufisant | G15: =IF(A15=0,"",IFERROR(VLOOKUP(A15,'liste des articles'!A:I,5),)) -> 1366 | H15: -1 | I15: =IF(G15=0,"0",IF(G15<Tableau8[[#This Row],[Quantité]],G15,IFERROR(G15-Tableau8[[#This Row],[Quantité]],""))) -> 1246 | J15: =IF(A15=0,"",IFERROR(VLOOKUP(A15,'liste des articles'!A:I,8),)) -> 96
A16: 6 | B16: 12 | C16: =IF(A16=0,"",IFERROR(VLOOKUP(A16,'liste des articles'!A6:J12927,2),)) -> GAINE THERM GR10-35 10M | D16: =IF(A16=0,"",IFERROR(VLOOKUP(A16,'liste des articles'!A3:I11019,7)+H16,)) -> 106 | E16: 1272 | F16: =IF(B16=0,"",IFERROR(VLOOKUP(A16,'liste des articles'!A:I,6),)) -> Stock insufisant | G16: =IF(A16=0,"",IFERROR(VLOOKUP(A16,'liste des articles'!A:I,5),)) -> 13 | H16: 11 | I16: =IF(G16=0,"0",IF(G16<Tableau8[[#This Row],[Quantité]],G16,IFERROR(G16-Tableau8[[#This Row],[Quantité]],""))) -> 1 | J16: =IF(A16=0,"",IFERROR(VLOOKUP(A16,'liste des articles'!A:I,8),)) -> 87.6
A17: 500 | B17: 6000 | C17: =IF(A17=0,"",IFERROR(VLOOKUP(A17,'liste des articles'!A7:J12928,2),)) -> CABLE SE1V 2X0,75 | D17: =IF(A17=0,"",IFERROR(VLOOKUP(A17,'liste des articles'!A4:I11020,7)+H17,)) -> 1.78 | E17: 10680 | F17: =IF(B17=0,"",IFERROR(VLOOKUP(A17,'liste des articles'!A:I,6),)) -> Stock Sufisant | G17: =IF(A17=0,"",IFERROR(VLOOKUP(A17,'liste des articles'!A:I,5),)) -> 1800 | H17: 0.07 | I17: =IF(G17=0,"0",IF(G17<Tableau8[[#This Row],[Quantité]],G17,IFERROR(G17-Tableau8[[#This Row],[Quantité]],""))) -> 1800 | J17: =IF(A17=0,"",IFERROR(VLOOKUP(A17,'liste des articles'!A:I,8),)) -> 1.62
A18: 506 | B18: 15000 | C18: =IF(A18=0,"",IFERROR(VLOOKUP(A18,'liste des articles'!A8:J12929,2),)) -> CABLE CAPOTHENE 2X0,75 | D18: =IF(A18=0,"",IFERROR(VLOOKUP(A18,'liste des articles'!A5:I11021,7)+H18,)) -> 1.06 | E18: 15900 | F18: =IF(B18=0,"",IFERROR(VLOOKUP(A18,'liste des articles'!A:I,6),)) -> Stock Sufisant | G18: =IF(A18=0,"",IFERROR(VLOOKUP(A18,'liste des articles'!A:I,5),)) -> 54050 | H18: 0.02 | I18: =IF(G18=0,"0",IF(G18<Tableau8[[#This Row],[Quantité]],G18,IFERROR(G18-Tableau8[[#This Row],[Quantité]],""))) -> 39050 | J18: =IF(A18=0,"",IFERROR(VLOOKUP(A18,'liste des articles'!A:I,8),)) -> 0.98
A19: 487 | B19: 4000 | C19: =IF(A19=0,"",IFERROR(VLOOKUP(A19,'liste des articles'!A9:J12930,2),)) -> S.FLEX 2X2,5 | D19: =IF(A19=0,"",IFERROR(VLOOKUP(A19,'liste des articles'!A6:I11022,7)+H19,)) -> 4.32 | E19: 17280 | F19: =IF(B19=0,"",IFERROR(VLOOKUP(A19,'liste des articles'!A:I,6),)) -> Stock Sufisant | G19: =IF(A19=0,"",IFERROR(VLOOKUP(A19,'liste des articles'!A:I,5),)) -> 4800 | H19: 0.13 | I19: =IF(G19=0,"0",IF(G19<Tableau8[[#This Row],[Quantité]],G19,IFERROR(G19-Tableau8[[#This Row],[Quantité]],""))) -> 800 | J19: =IF(A19=0,"",IFERROR(VLOOKUP(A19,'liste des articles'!A:I,8),)) -> 3.96
A20: 489 | B20: 6000 | C20: =IF(A20=0,"",IFERROR(VLOOKUP(A20,'liste des articles'!A10:J12931,2),)) -> CABLE SE1V 3X1,5 | D20: =IF(A20=0,"",IFERROR(VLOOKUP(A20,'liste des articles'!A7:I11023,7)+H20,)) -> 4.19 | E20: 25140 | F20: =IF(B20=0,"",IFERROR(VLOOKUP(A20,'liste des articles'!A:I,6),)) -> Stock Sufisant | G20: =IF(A20=0,"",IFERROR(VLOOKUP(A20,'liste des articles'!A:I,5),)) -> 10200 | H20: 0.19 | I20: =IF(G20=0,"0",IF(G20<Tableau8[[#This Row],[Quantité]],G20,IFERROR(G20-Tableau8[[#This Row],[Quantité]],""))) -> 4200 | J20: =IF(A20=0,"",IFERROR(VLOOKUP(A20,'liste des articles'!A:I,8),)) -> 3.78
A21: 492 | B21: 1200 | C21: =IF(A21=0,"",IFERROR(VLOOKUP(A21,'liste des articles'!A11:J12932,2),)) -> CABLE SE1V 4X2,5 | D21: =IF(A21=0,"",IFERROR(VLOOKUP(A21,'liste des articles'!A8:I11024,7)+H21,)) -> 9 | E21: 10800 | F21: =IF(B21=0,"",IFERROR(VLOOKUP(A21,'liste des articles'!A:I,6),)) -> Stock Sufisant | G21: =IF(A21=0,"",IFERROR(VLOOKUP(A21,'liste des articles'!A:I,5),)) -> 2700 | H21: 0.16 | I21: =IF(G21=0,"0",IF(G21<Tableau8[[#This Row],[Quantité]],G21,IFERROR(G21-Tableau8[[#This Row],[Quantité]],""))) -> 1500 | J21: =IF(A21=0,"",IFERROR(VLOOKUP(A21,'liste des articles'!A:I,8),)) -> 8.34
A22: 504 | B22: 8500 | C22: =IF(A22=0,"",IFERROR(VLOOKUP(A22,'liste des articles'!A12:J12933,2),)) -> CABLE CAPOTHENE 2X1,5 | D22: =IF(A22=0,"",IFERROR(VLOOKUP(A22,'liste des articles'!A9:I11025,7)+H22,)) -> 2.51 | E22: 21335 | F22: =IF(B22=0,"",IFERROR(VLOOKUP(A22,'liste des articles'!A:I,6),)) -> Stock Sufisant | G22: =IF(A22=0,"",IFERROR(VLOOKUP(A22,'liste des articles'!A:I,5),)) -> 38600 | H22: 0.07 | I22: =IF(G22=0,"0",IF(G22<Tableau8[[#This Row],[Quantité]],G22,IFERROR(G22-Tableau8[[#This Row],[Quantité]],""))) -> 30100 | J22: =IF(A22=0,"",IFERROR(VLOOKUP(A22,'liste des articles'!A:I,8),)) -> 2.3
A23: 576 | B23: 3500 | C23: =IF(A23=0,"",IFERROR(VLOOKUP(A23,'liste des articles'!A13:J12934,2),)) -> CABLE 2,5 MM² U 500V INGELEC | D23: =IF(A23=0,"",IFERROR(VLOOKUP(A23,'liste des articles'!A10:I11026,7)+H23,)) -> 2.44 | E23: 8540 | F23: =IF(B23=0,"",IFERROR(VLOOKUP(A23,'liste des articles'!A:I,6),)) -> Stock Sufisant | G23: =IF(A23=0,"",IFERROR(VLOOKUP(A23,'liste des articles'!A:I,5),)) -> 9700 | H23: 0.05 | I23: =IF(G23=0,"0",IF(G23<Tableau8[[#This Row],[Quantité]],G23,IFERROR(G23-Tableau8[[#This Row],[Quantité]],""))) -> 6200 | J23: =IF(A23=0,"",IFERROR(VLOOKUP(A23,'liste des articles'!A:I,8),)) -> 2.25
A24: 524 | B24: 60 | C24: =IF(A24=0,"",IFERROR(VLOOKUP(A24,'liste des articles'!A14:J12935,2),)) -> REGLETTE 40W (1,20M) EQUIPEE INGELEC | D24: =IF(A24=0,"",IFERROR(VLOOKUP(A24,'liste des articles'!A11:I11027,7)+H24,)) -> 50 | E24: 3000 | F24: =IF(B24=0,"",IFERROR(VLOOKUP(A24,'liste des articles'!A:I,6),)) -> Stock insufisant | G24: =IF(A24=0,"",IFERROR(VLOOKUP(A24,'liste des articles'!A:I,5),)) -> 132 | I24: =IF(G24=0,"0",IF(G24<Tableau8[[#This Row],[Quantité]],G24,IFERROR(G24-Tableau8[[#This Row],[Quantité]],""))) -> 72 | J24: =IF(A24=0,"",IFERROR(VLOOKUP(A24,'liste des articles'!A:I,8),)) -> 45
A25: 546 | B25: 40 | C25: =IF(A25=0,"",IFERROR(VLOOKUP(A25,'liste des articles'!A15:J12936,2),)) -> HUBLOT RONDE LINA PLASTIQUE B22 BLANC ING | D25: =IF(A25=0,"",IFERROR(VLOOKUP(A25,'liste des articles'!A12:I11028,7)+H25,)) -> 58.3 | E25: 2332 | F25: =IF(B25=0,"",IFERROR(VLOOKUP(A25,'liste des articles'!A:I,6),)) -> Stock insufisant | G25: =IF(A25=0,"",IFERROR(VLOOKUP(A25,'liste des articles'!A:I,5),)) -> 68 | I25: =IF(G25=0,"0",IF(G25<Tableau8[[#This Row],[Quantité]],G25,IFERROR(G25-Tableau8[[#This Row],[Quantité]],""))) -> 28 | J25: =IF(A25=0,"",IFERROR(VLOOKUP(A25,'liste des articles'!A:I,8),)) -> 55
A26: 596 | B26: 500 | C26: =IF(A26=0,"",IFERROR(VLOOKUP(A26,'liste des articles'!A16:J12937,2),)) -> DOUBLE PAROI FLEX ROUGE D75 | D26: =IF(A26=0,"",IFERROR(VLOOKUP(A26,'liste des articles'!A13:I11029,7)+H26,)) -> 10.85 | E26: 5425 | F26: =IF(B26=0,"",IFERROR(VLOOKUP(A26,'liste des articles'!A:I,6),)) -> Stock Sufisant | G26: =IF(A26=0,"",IFERROR(VLOOKUP(A26,'liste des articles'!A:I,5),)) -> 1200 | H26: 0.03 | I26: =IF(G26=0,"0",IF(G26<Tableau8[[#This Row],[Quantité]],G26,IFERROR(G26-Tableau8[[#This Row],[Quantité]],""))) -> 700 | J26: =IF(A26=0,"",IFERROR(VLOOKUP(A26,'liste des articles'!A:I,8),)) -> 10.2
A27: 623 | B27: 32 | C27: =IF(A27=0,"",IFERROR(VLOOKUP(A27,'liste des articles'!A17:J12938,2),)) -> REGLETTE 2X40W (1,20) EQUIPEE INGELEC | D27: =IF(A27=0,"",IFERROR(VLOOKUP(A27,'liste des articles'!A14:I11030,7)+H27,)) -> 95.5 | E27: 3056 | F27: =IF(B27=0,"",IFERROR(VLOOKUP(A27,'liste des articles'!A:I,6),)) -> Stock insufisant | G27: =IF(A27=0,"",IFERROR(VLOOKUP(A27,'liste des articles'!A:I,5),)) -> 68 | H27: 0.1 | I27: =IF(G27=0,"0",IF(G27<Tableau8[[#This Row],[Quantité]],G27,IFERROR(G27-Tableau8[[#This Row],[Quantité]],""))) -> 36 | J27: =IF(A27=0,"",IFERROR(VLOOKUP(A27,'liste des articles'!A:I,8),)) -> 90
C28: =IF(A28=0,"",IFERROR(VLOOKUP(A28,'liste des articles'!A18:J12939,2),)) ->  | D28: =IF(A28=0,"",IFERROR(VLOOKUP(A28,'liste des articles'!A15:I11031,7)+H28,)) ->  | F28: =IF(B28=0,"",IFERROR(VLOOKUP(A28,'liste des articles'!A:I,6),)) ->  | G28: =IF(A28=0,"",IFERROR(VLOOKUP(A28,'liste des articles'!A:I,5),)) ->  | I28: =IF(G28=0,"0",IF(G28<Tableau8[[#This Row],[Quantité]],G28,IFERROR(G28-Tableau8[[#This Row],[Quantité]],""))) ->  | J28: =IF(A28=0,"",IFERROR(VLOOKUP(A28,'liste des articles'!A:I,8),)) -> 
C29: =IF(A29=0,"",IFERROR(VLOOKUP(A29,'liste des articles'!A19:J12940,2),)) ->  | D29: =IF(A29=0,"",IFERROR(VLOOKUP(A29,'liste des articles'!A16:I11032,7)+H29,)) ->  | F29: =IF(B29=0,"",IFERROR(VLOOKUP(A29,'liste des articles'!A:I,6),)) ->  | G29: =IF(A29=0,"",IFERROR(VLOOKUP(A29,'liste des articles'!A:I,5),)) ->  | I29: =IF(G29=0,"0",IF(G29<Tableau8[[#This Row],[Quantité]],G29,IFERROR(G29-Tableau8[[#This Row],[Quantité]],""))) ->  | J29: =IF(A29=0,"",IFERROR(VLOOKUP(A29,'liste des articles'!A:I,8),)) -> 
C30: =IF(A30=0,"",IFERROR(VLOOKUP(A30,'liste des articles'!A20:J12941,2),)) ->  | D30: =IF(A30=0,"",IFERROR(VLOOKUP(A30,'liste des articles'!A17:I11033,7)+H30,)) ->  | F30: =IF(B30=0,"",IFERROR(VLOOKUP(A30,'liste des articles'!A:I,6),)) ->  | G30: =IF(A30=0,"",IFERROR(VLOOKUP(A30,'liste des articles'!A:I,5),)) ->  | I30: =IF(G30=0,"0",IF(G30<Tableau8[[#This Row],[Quantité]],G30,IFERROR(G30-Tableau8[[#This Row],[Quantité]],""))) ->  | J30: =IF(A30=0,"",IFERROR(VLOOKUP(A30,'liste des articles'!A:I,8),)) -> 
C31: =IF(A31=0,"",IFERROR(VLOOKUP(A31,'liste des articles'!A21:J12942,2),)) ->  | D31: =IF(A31=0,"",IFERROR(VLOOKUP(A31,'liste des articles'!A18:I11034,7)+H31,)) ->  | F31: =IF(B31=0,"",IFERROR(VLOOKUP(A31,'liste des articles'!A:I,6),)) ->  | G31: =IF(A31=0,"",IFERROR(VLOOKUP(A31,'liste des articles'!A:I,5),)) ->  | I31: =IF(G31=0,"0",IF(G31<Tableau8[[#This Row],[Quantité]],G31,IFERROR(G31-Tableau8[[#This Row],[Quantité]],""))) ->  | J31: =IF(A31=0,"",IFERROR(VLOOKUP(A31,'liste des articles'!A:I,8),)) -> 
C32: =IF(A32=0,"",IFERROR(VLOOKUP(A32,'liste des articles'!A22:J12943,2),)) ->  | D32: =IF(A32=0,"",IFERROR(VLOOKUP(A32,'liste des articles'!A19:I11035,7)+H32,)) ->  | F32: =IF(B32=0,"",IFERROR(VLOOKUP(A32,'liste des articles'!A:I,6),)) ->  | G32: =IF(A32=0,"",IFERROR(VLOOKUP(A32,'liste des articles'!A:I,5),)) ->  | I32: =IF(G32=0,"0",IF(G32<Tableau8[[#This Row],[Quantité]],G32,IFERROR(G32-Tableau8[[#This Row],[Quantité]],""))) ->  | J32: =IF(A32=0,"",IFERROR(VLOOKUP(A32,'liste des articles'!A:I,8),)) -> 
C33: =IF(A33=0,"",IFERROR(VLOOKUP(A33,'liste des articles'!A23:J12944,2),)) ->  | D33: =IF(A33=0,"",IFERROR(VLOOKUP(A33,'liste des articles'!A20:I11036,7)+H33,)) ->  | F33: =IF(B33=0,"",IFERROR(VLOOKUP(A33,'liste des articles'!A:I,6),)) ->  | G33: =IF(A33=0,"",IFERROR(VLOOKUP(A33,'liste des articles'!A:I,5),)) ->  | I33: =IF(G33=0,"0",IF(G33<Tableau8[[#This Row],[Quantité]],G33,IFERROR(G33-Tableau8[[#This Row],[Quantité]],""))) ->  | J33: =IF(A33=0,"",IFERROR(VLOOKUP(A33,'liste des articles'!A:I,8),)) -> 
C34: =IF(A34=0,"",IFERROR(VLOOKUP(A34,'liste des articles'!A24:J12945,2),)) ->  | D34: =IF(A34=0,"",IFERROR(VLOOKUP(A34,'liste des articles'!A21:I11037,7)+H34,)) ->  | F34: =IF(B34=0,"",IFERROR(VLOOKUP(A34,'liste des articles'!A:I,6),)) ->  | G34: =IF(A34=0,"",IFERROR(VLOOKUP(A34,'liste des articles'!A:I,5),)) ->  | I34: =IF(G34=0,"0",IF(G34<Tableau8[[#This Row],[Quantité]],G34,IFERROR(G34-Tableau8[[#This Row],[Quantité]],""))) ->  | J34: =IF(A34=0,"",IFERROR(VLOOKUP(A34,'liste des articles'!A:I,8),)) -> 
D35: =IF(A35=0,"",IFERROR(VLOOKUP(A35,'liste des articles'!A22:I11038,7)+H35,)) ->  | F35: =IF(B35=0,"",IFERROR(VLOOKUP(A35,'liste des articles'!A:I,6),)) ->  | G35: =IF(A35=0,"",IFERROR(VLOOKUP(A35,'liste des articles'!A:I,5),)) ->  | I35: =IF(G35=0,"0",IF(G35<Tableau8[[#This Row],[Quantité]],G35,IFERROR(G35-Tableau8[[#This Row],[Quantité]],""))) ->  | J35: =IF(A35=0,"",IFERROR(VLOOKUP(A35,'liste des articles'!A:I,8),)) -> 
C36: =IF(A36=0,"",IFERROR(VLOOKUP(A36,'liste des articles'!A26:J12947,2),)) ->  | D36: =IF(A36=0,"",IFERROR(VLOOKUP(A36,'liste des articles'!A23:I11039,7)+H36,)) ->  | F36: =IF(B36=0,"",IFERROR(VLOOKUP(A36,'liste des articles'!A:I,6),)) ->  | G36: =IF(A36=0,"",IFERROR(VLOOKUP(A36,'liste des articles'!A:I,5),)) ->  | I36: =IF(G36=0,"0",IF(G36<Tableau8[[#This Row],[Quantité]],G36,IFERROR(G36-Tableau8[[#This Row],[Quantité]],""))) ->  | J36: =IF(A36=0,"",IFERROR(VLOOKUP(A36,'liste des articles'!A:I,8),)) -> 
C37: =IF(A37=0,"",IFERROR(VLOOKUP(A37,'liste des articles'!A27:J12948,2),)) ->  | D37: =IF(A37=0,"",IFERROR(VLOOKUP(A37,'liste des articles'!A24:I11040,7)+H37,)) ->  | F37: =IF(B37=0,"",IFERROR(VLOOKUP(A37,'liste des articles'!A:I,6),)) ->  | G37: =IF(A37=0,"",IFERROR(VLOOKUP(A37,'liste des articles'!A:I,5),)) ->  | I37: =IF(G37=0,"0",IF(G37<Tableau8[[#This Row],[Quantité]],G37,IFERROR(G37-Tableau8[[#This Row],[Quantité]],""))) ->  | J37: =IF(A37=0,"",IFERROR(VLOOKUP(A37,'liste des articles'!A:I,8),)) -> 
C38: =IF(A38=0,"",IFERROR(VLOOKUP(A38,'liste des articles'!A28:J12949,2),)) ->  | D38: =IF(A38=0,"",IFERROR(VLOOKUP(A38,'liste des articles'!A25:I11041,7)+H38,)) ->  | F38: =IF(B38=0,"",IFERROR(VLOOKUP(A38,'liste des articles'!A:I,6),)) ->  | G38: =IF(A38=0,"",IFERROR(VLOOKUP(A38,'liste des articles'!A:I,5),)) ->  | I38: =IF(G38=0,"0",IF(G38<Tableau8[[#This Row],[Quantité]],G38,IFERROR(G38-Tableau8[[#This Row],[Quantité]],""))) ->  | J38: =IF(A38=0,"",IFERROR(VLOOKUP(A38,'liste des articles'!A:I,8),)) -> 
C39: =IF(A39=0,"",IFERROR(VLOOKUP(A39,'liste des articles'!A29:J12950,2),)) ->  | D39: =IF(A39=0,"",IFERROR(VLOOKUP(A39,'liste des articles'!A26:I11042,7)+H39,)) ->  | F39: =IF(B39=0,"",IFERROR(VLOOKUP(A39,'liste des articles'!A:I,6),)) ->  | G39: =IF(A39=0,"",IFERROR(VLOOKUP(A39,'liste des articles'!A:I,5),)) ->  | I39: =IF(G39=0,"0",IF(G39<Tableau8[[#This Row],[Quantité]],G39,IFERROR(G39-Tableau8[[#This Row],[Quantité]],""))) ->  | J39: =IF(A39=0,"",IFERROR(VLOOKUP(A39,'liste des articles'!A:I,8),)) -> 
C40: =IF(A40=0,"",IFERROR(VLOOKUP(A40,'liste des articles'!A30:J12951,2),)) ->  | D40: =IF(A40=0,"",IFERROR(VLOOKUP(A40,'liste des articles'!A27:I11043,7)+H40,)) ->  | F40: =IF(B40=0,"",IFERROR(VLOOKUP(A40,'liste des articles'!A:I,6),)) ->  | G40: =IF(A40=0,"",IFERROR(VLOOKUP(A40,'liste des articles'!A:I,5),)) ->  | I40: =IF(G40=0,"0",IF(G40<Tableau8[[#This Row],[Quantité]],G40,IFERROR(G40-Tableau8[[#This Row],[Quantité]],""))) ->  | J40: =IF(A40=0,"",IFERROR(VLOOKUP(A40,'liste des articles'!A:I,8),)) -> 
C41: =IF(A41=0,"",IFERROR(VLOOKUP(A41,'liste des articles'!A31:J12952,2),)) ->  | D41: =IF(A41=0,"",IFERROR(VLOOKUP(A41,'liste des articles'!A28:I11044,7)+H41,)) ->  | F41: =IF(B41=0,"",IFERROR(VLOOKUP(A41,'liste des articles'!A:I,6),)) ->  | G41: =IF(A41=0,"",IFERROR(VLOOKUP(A41,'liste des articles'!A:I,5),)) ->  | I41: =IF(G41=0,"0",IF(G41<Tableau8[[#This Row],[Quantité]],G41,IFERROR(G41-Tableau8[[#This Row],[Quantité]],""))) ->  | J41: =IF(A41=0,"",IFERROR(VLOOKUP(A41,'liste des articles'!A:I,8),)) -> 
C42: =IF(A42=0,"",IFERROR(VLOOKUP(A42,'liste des articles'!A32:J12953,2),)) ->  | D42: =IF(A42=0,"",IFERROR(VLOOKUP(A42,'liste des articles'!A29:I11045,7)+H42,)) ->  | F42: =IF(B42=0,"",IFERROR(VLOOKUP(A42,'liste des articles'!A:I,6),)) ->  | G42: =IF(A42=0,"",IFERROR(VLOOKUP(A42,'liste des articles'!A:I,5),)) ->  | I42: =IF(G42=0,"0",IF(G42<Tableau8[[#This Row],[Quantité]],G42,IFERROR(G42-Tableau8[[#This Row],[Quantité]],""))) ->  | J42: =IF(A42=0,"",IFERROR(VLOOKUP(A42,'liste des articles'!A:I,8),)) -> 
C44: Total Prix U.H.T | D44: T.V.A | E44: Prix Total T.T.C | F44: Total TTC Demander | H44: Réste calculer
C45: =D45*5 -> 125000 | D45: =E45/6 -> 25000 | E45: =SUM(E14:E42) -> 150000 | F45: 150000 | H45: =F45-E45 -> 0
A48: ARRETTER LA PRESENTE FACTURE A LA SOMME DE : | F48: ARRETTER LA PRESENTE FACTURE A LA SOMME DE :
A49: =UPPER([2]!CONVNumberLetter(E45,1,0)) -> CENT CINQUANTE MILLE DIRHAMES | F49: =UPPER([2]!CONVNumberLetter(F45,1,0)) -> CENT CINQUANTE MILLE DIRHAMES

Sheet liste des articles
A1: REF | B1: DESIGNATION | C1: FOURNISSEUR | D1: STOCK INT | E1: Stock Final | F1: Alert | G1: PRIX U T.T.C V | H1: PRIX U T.T.C.A | J1: Quantité Par Unité
B2: COFFRETS | K2: 15
C3: COFFRETS OGE
A4: =IF(B4=0,"",ROW(A1)) -> 1 | B4: COF TICHKA JADID C/C 30A | C4: OGE | D4: 1335 | E4: =SUM(D4+'Stock-Enter'!D4-'Stock-Sortie'!D4) -> 924 | F4: =IF(E4>300,"Stock Sufisant","Stock insufisant") -> Stock Sufisant | G4: 100 | H4: 75
A5: =IF(B5=0,"",ROW(A2)) -> 2 | B5: COF MEDINA C/C 30A ONE | C5: OGE | D5: 1729 | E5: =SUM(D5+'Stock-Enter'!D5-'Stock-Sortie'!D5) -> 1366 | F5: Stock Sufisant | G5: 103 | H5: 96
A6: 3 | B6: COF TICHKA JADID SS C/C | C6: OGE | D6: 318 | E6: =SUM(D6+'Stock-Enter'!D6-'Stock-Sortie'!D6) -> 260 | F6: Stock insufisant | G6: 82 | H6: 78
A7: 4 | B7: COF PAN 4 HUB 4X2 C/C 80A | C7: OGE | D7: 24 | E7: =SUM(D7+'Stock-Enter'!D7-'Stock-Sortie'!D7) -> 24 | F7: Stock insufisant | G7: 525 | H7: 495.42
A8: 5 | B8: COF TICHKA C/C 30A ONE | C8: OGE | D8: 208 | E8: =SUM(D8+'Stock-Enter'!D8-'Stock-Sortie'!D8) -> 202 | F8: Stock insufisant | G8: 113 | H8: 106.06
A9: 6 | B9: GAINE THERM GR10-35 10M | C9: OGE | D9: 25 | E9: =SUM(D9+'Stock-Enter'!D9-'Stock-Sortie'!D9) -> 13 | F9: Stock insufisant | G9: 95 | H9: 87.6
A10: 7 | B10: GAINE THERM GR50-150 10M | C10: OGE | D10: 10 | E10: =SUM(D10+'Stock-Enter'!D10-'Stock-Sortie'!D10) -> 7 | F10: Stock insufisant | G10: 255 | H10: 240
A11: 8 | B11: EXTREM THERMO E2R 10-35 | C11: OGE | D11: 13 | E11: =SUM(D11+'Stock-Enter'!D11-'Stock-Sortie'!D11) -> 10 | F11: Stock insufisant | G11: 30 | H11: 28.2
A12: 9 | B12: EXTREM THERMO E4R 10-35 | C12: OGE | D12: 12 | E12: =SUM(D12+'Stock-Enter'!D12-'Stock-Sortie'!D12) -> 12 | F12: Stock insufisant | G12: 37 | H12: 34.56
A13: 10 | B13: COF DIST ETA 6D80A MONO | C13: OGE | D13: 6 | E13: =SUM(D13+'Stock-Enter'!D13-'Stock-Sortie'!D13) -> 6 | F13: Stock insufisant | G13: 410 | H13: 385.62
A14: 11 | B14: COF DIST ETA 4D80A MONO | C14: OGE | D14: 8 | E14: =SUM(D14+'Stock-Enter'!D14-'Stock-Sortie'!D14) -> 8 | F14: Stock insufisant | G14: 350 | H14: 331.6
A15: 12 | B15: COF TOUBKAL C/C 80A ONE | C15: OGE | D15: 32 | E15: =SUM(D15+'Stock-Enter'!D15-'Stock-Sortie'!D15) -> 5 | F15: Stock insufisant | G15: 190 | H15: 180
A16: 13 | B16: COF NOVINTER 1A50+3D25 | C16: OGE | D16: 0 | E16: =SUM(D16+'Stock-Enter'!D16-'Stock-Sortie'!D16) -> 0 | F16: Stock insufisant | G16: 122 | H16: 115.2
A17: 14 | B17: COF FACADE 1A50+1DT0 50 | C17: OGE | D17: 31 | E17: =SUM(D17+'Stock-Enter'!D17-'Stock-Sortie'!D17) -> 29 | F17: Stock insufisant | G17: 590 | H17: 554.66
A18: 15 | B18: COF NOVIN.1A5O+1DTOO 50 | C18: OGE | D18: 40 | E18: =SUM(D18+'Stock-Enter'!D18-'Stock-Sortie'!D18) -> 36 | F18: Stock insufisant | G18: 310 | H18: 293.47
C19: COFFRETS SAFILUM
A20: 17 | B20: COFFRET 2FILS ONE | C20: SAF | D20: 8 | E20: =SUM(D20+'Stock-Enter'!D20-'Stock-Sortie'!D20) -> 8 | F20: Stock insufisant | G20: 100 | H20: 90
A21: 18 | B21: COFFRET 4FILS ONE | C21: SAF | D21: 3 | E21: =SUM(D21+'Stock-Enter'!D21-'Stock-Sortie'!D21) -> 3 | F21: Stock insufisant | G21: 190 | H21: 180
A22: 19 | B22: COFFRET 14+D ALPHA | C22: SAF | D22: 32 | E22: =SUM(D22+'Stock-Enter'!D22-'Stock-Sortie'!D22) -> 20 | F22: Stock insufisant | G22: 28.6 | H22: 27
A23: 20 | B23: HUBLOT ROND FLORIDA DORE | C23: SAF | D23: 34 | E23: =SUM(D23+'Stock-Enter'!D23-'Stock-Sortie'!D23) -> 34 | F23: Stock insufisant | G23: 16.95 | H23: 15.99
A24: 21 | B24: LUMINAIRE ASNI 125W | C24: SAF | D24: 190 | E24: =SUM(D24+'Stock-Enter'!D24-'Stock-Sortie'!D24) -> 171 | F24: Stock insufisant | G24: 175 | H24: 165
A25: 22 | B25: HUBLOT ROND FLORIDA GRIS | C25: SAF | D25: 24 | E25: =SUM(D25+'Stock-Enter'!D25-'Stock-Sortie'!D25) -> 24 | F25: =IF(E25>300,"Stock Sufisant","Stock insufisant") -> Stock insufisant | G25: 23.31 | H25: 21.99
A26: 23 | B26: HUBLOT ROND REF 1106 CEVIZ SAFILUM | C26: SAF/SEFROUELEC | D26: 50 | E26: =SUM(D26+'Stock-Enter'!D26-'Stock-Sortie'!D26) -> 46 | F26: Stock insufisant | G26: 37 | H26: 35
A27: 24 | B27: HUBLOT ROND REF 1102 CEVIZ SAFILUM | C27: SAF/SEFROUELEC | D27: 44 | E27: =SUM(D27+'Stock-Enter'!D27-'Stock-Sortie'!D27) -> 36 | F27: Stock insufisant | G27: 32 | H27: 30
A28: 25 | B28: HUBLOT ROND REF 1101 CEVIZ SAFILUM | C28: SAF/SEFROUELEC | D28: 50 | E28: =SUM(D28+'Stock-Enter'!D28-'Stock-Sortie'!D28) -> 50 | F28: Stock insufisant | G28: 30 | H28: 28
A29: 26 | B29: HUBLOT ROND REF 1101 BLANC SAFILUM | C29: SAF/SEFROUELEC | D29: 66 | E29: =SUM(D29+'Stock-Enter'!D29-'Stock-Sortie'!D29) -> 60 | F29: Stock insufisant | G29: 21.5 | H29: 20
A30: 27 | B30: BOITE DE DISTRIBUTION MIMOSA | C30: SAF | D30: 200 | E30: =SUM(D30+'Stock-Enter'!D30-'Stock-Sortie'!D30) -> 166 | F30: Stock insufisant | G30: 127.5 | H30: 120
A31: 28 | B31: TUBE - DIM/GAINE - ORANGE / SIMEC
A32: 29 | B32: GAINE ANTI FEU D25 NM DALAFLEX (ISO GRIS) | C32: SIMEC | D32: 2500 | E32: =SUM(D32+'Stock-Enter'!D32-'Stock-Sortie'!D32) -> 2500 | F32: Stock Sufisant | G32: 1.8 | H32: 1.7
A33: 30 | B33: GAINE ANTI FEU D20 NM DALAFLEX (ISO GRIS ) | C33: SIMEC | D33: 3000 | E33: =SUM(D33+'Stock-Enter'!D33-'Stock-Sortie'!D33) -> 2600 | F33: Stock Sufisant | G33: 1.17 | H33: 1.1
A34: 31 | B34: DIM ORANGE REF 21 DALAFLEX | C34: SIMEC | D34: 3200 | E34: =SUM(D34+'Stock-Enter'!D34-'Stock-Sortie'!D34) -> 3200 | F34: Stock Sufisant | G34: 3.4 | H34: 3.2
A35: 32 | B35: DIM ORANGE REF 16 DALAFLEX | C35: SIMEC | D35: 1350 | E35: =SUM(D35+'Stock-Enter'!D35-'Stock-Sortie'!D35) -> 1150 | F35: Stock Sufisant | G35: 2.34 | H35: 2.2
A36: 33 | B36: DIM ORANGE REF 13 DALAFLEX | C36: SIMEC | D36: 950 | E36: =SUM(D36+'Stock-Enter'!D36-'Stock-Sortie'!D36) -> 950 | F36: Stock Sufisant | G36: 2 | H36: 1.9
A37: 34 | B37: DIM ORANGE REF 11 DALAFLEX | C37: SIMEC | D37: 5250 | E37: =SUM(D37+'Stock-Enter'!D37-'Stock-Sortie'!D37) -> 4050 | F37: Stock Sufisant | G37: 1.8 | H37: 1.7
A38: 35 | B38: DIM ORANGE REF 16 SERIG | C38: SIMEC | D38: 7650 | E38: =SUM(D38+'Stock-Enter'!D38-'Stock-Sortie'!D38) -> 7150 | F38: Stock Sufisant | G38: 3.4 | H38: 3.2
A39: 36 | B39: DIM ORANGE REF 13 SERIG | C39: SIMEC | D39: 29850 | E39: =SUM(D39+'Stock-Enter'!D39-'Stock-Sortie'!D39) -> 23750 | F39: Stock Sufisant | G39: 2.8 | H39: 2.65
A40: 37 | B40: DIM ORANGE RE 11 SERIG | C40: SIMEC | D40: 23700 | E40: =SUM(D40+'Stock-Enter'!D40-'Stock-Sortie'!D40) -> 17700 | F40: Stock Sufisant | G40: 2.38 | H40: 2.25
A41: 38 | B41: DIM ORANGE REF 09 SERIG | C41: SIMEC | D41: 12600 | E41: =SUM(D41+'Stock-Enter'!D41-'Stock-Sortie'!D41) -> 12600 | F41: Stock Sufisant | G41: 1.8 | H41: 1.7
A42: 39 | B42: TUBE ANNELE D16 ORANGE | C42: SIMEC | D42: 0 | E42: =SUM(D42+'Stock-Enter'!D42-'Stock-Sortie'!D42) -> 0 | F42: Stock insufisant | G42: 1.4 | H42: 1.18
A43: 40 | B43: TUBE ANNELE D20 ORANGE | C43: SIMEC | D43: 0 | E43: =SUM(D43+'Stock-Enter'!D43-'Stock-Sortie'!D43) -> 0 | F43: Stock insufisant | G43: 1.5 | H43: 1.33
A44: 41 | B44: TUBE ANNELE D25 ORANGE | C44: SIMEC | D44: 0 | E44: =SUM(D44+'Stock-Enter'!D44-'Stock-Sortie'!D44) -> 0 | F44: Stock insufisant | G44: 1.8 | H44: 1.68
A45: 42 | B45: TUBE ANNELE D32 ORANGE | C45: SIMEC | D45: 0 | E45: =SUM(D45+'Stock-Enter'!D45-'Stock-Sortie'!D45) -> 0 | F45: Stock insufisant | G45: 2.3 | H45: 2.02
A46: 43 | B46: DISJONCTEURS
A47: 44 | B47: INTER. DIFF.4X40A 300MA CC440F | C47: SOFA | D47: 2 | E47: =SUM(D47+'Stock-Enter'!D47-'Stock-Sortie'!D47) -> 2 | F47: Stock insufisant | G47: 277.8 | H47: 261.6
A48: 45 | B48: INTER. DIFF.4X63A 300MA CFC463F | C48: SOFA | D48: 2 | E48: =SUM(D48+'Stock-Enter'!D48-'Stock-Sortie'!D48) -> 2 | F48: Stock insufisant | G48: 343.5 | H48: 324
A49: 46 | B49: LC1D09M7 | C49: SOFA | D49: 2 | E49: =SUM(D49+'Stock-Enter'!D49-'Stock-Sortie'!D49) -> 2 | F49: Stock insufisant | G49: 140 | H49: 132
A50: 47 | B50: DD 500 MA 4X30/60A | C50: SOFA | D50: 2 | E50: =SUM(D50+'Stock-Enter'!D50-'Stock-Sortie'!D50) -> 2 | F50: Stock insufisant | G50: 1180 | H50: 1104
A51: 48 | B51: DD 500 MA 4X10/30A TNM GARDY | C51: SOFA | D51: 4 | E51: =SUM(D51+'Stock-Enter'!D51-'Stock-Sortie'!D51) -> 4 | F51: Stock insufisant | G51: 580 | H51: 552
A52: 49 | B52: DD 500 MA 2X10/30A TNM GARDY | C52: SOFA | D52: 17 | E52: =SUM(D52+'Stock-Enter'!D52-'Stock-Sortie'!D52) -> 6 | F52: Stock insufisant | G52: 350 | H52: 336
A53: 50 | B53: DD 500 MA 2X5/15 A ANM GARDY | C53: SOLEC | D53: 9 | E53: =SUM(D53+'Stock-Enter'!D53-'Stock-Sortie'!D53) -> 6 | F53: Stock insufisant | G53: 350 | H53: 336
A54: 51 | B54: DISJONCTEUR SECURISE 1P10A | C54: SOFA | D54: 63 | E54: =SUM(D54+'Stock-Enter'!D54-'Stock-Sortie'!D54) -> 448 | F54: Stock Sufisant | G54: 14 | H54: 13.5
A55: 52 | B55: DISJONCTEUR SECURISE 1P16A | C55: SOLEC | D55: 206 | E55: =SUM(D55+'Stock-Enter'!D55-'Stock-Sortie'!D55) -> 141 | F55: Stock insufisant | G55: 14 | H55: 13.5
A56: 53 | B56: DISJONCTEUR SECURISE 3P32A | C56: RADIANCE SARL | D56: 40 | E56: =SUM(D56+'Stock-Enter'!D56-'Stock-Sortie'!D56) -> 10 | F56: Stock insufisant | G56: 43.5 | H56: 42
A57: 54 | B57: DISJONCTEUR SECURISE 4P 32A | C57: RADIANCE SARL | D57: 42 | E57: =SUM(D57+'Stock-Enter'!D57-'Stock-Sortie'!D57) -> 17 | F57: Stock insufisant | G57: 58 | H57: 54
A58: 55 | B58: DISJONCTEUR SECURISE 1P 25A | C58: RADIANCE SARL | D58: 84 | E58: =SUM(D58+'Stock-Enter'!D58-'Stock-Sortie'!D58) -> 84 | F58: Stock insufisant | G58: 14 | H58: 13.6
A59: 56 | B59: DISJONCTEUR SECURISE 1P 06A | C59: SOLEC | D59: 60 | E59: =SUM(D59+'Stock-Enter'!D59-'Stock-Sortie'!D59) -> 60 | F59: Stock insufisant | G59: 14 | H59: 13.6
A60: 57 | B60: DISJONCTEUR SECURISE 2P 32A | C60: RADIANCE SARL | D60: 50 | E60: =SUM(D60+'Stock-Enter'!D60-'Stock-Sortie'!D60) -> 20 | F60: Stock insufisant | G60: 29.7 | H60: 28
A61: 58 | B61: DISJONCTEUR MOD 3KA 4P 40A CDB 6A 4 C40 DELIXI | C61: SOFA | D61: 4 | E61: =SUM(D61+'Stock-Enter'!D61-'Stock-Sortie'!D61) -> 4 | F61: Stock insufisant | G61: 43.25 | H61: 40.8
A62: 59 | B62: DISJONCTEUR MOD 3KA 2P 20A CDB6A2C20 DELIXI | C62: SOFA | D62: 4 | E62: =SUM(D62+'Stock-Enter'!D62-'Stock-Sortie'!D62) -> 4 | F62: Stock insufisant | G62: 19.1 | H62: 18
A63: 60 | B63: DISJ MOD 3KA 1P 16A DELIXI | C63: SOFA | D63: 34 | E63: =SUM(D63+'Stock-Enter'!D63-'Stock-Sortie'!D63) -> 34 | F63: Stock insufisant | G63: 13 | H63: 12.3
A64: 61 | B64: DISJ MOD 3KA 1P 6A DELIXI | C64: SOFA | D64: 44 | E64: =SUM(D64+'Stock-Enter'!D64-'Stock-Sortie'!D64) -> 44 | F64: Stock insufisant | G64: 13 | H64: 10.25
A65: 62 | B65: DISJ MOD 3KA 2P 16A CDB6A2C16 DELIXI | C65: SOFA | D65: 44 | E65: =SUM(D65+'Stock-Enter'!D65-'Stock-Sortie'!D65) -> 44 | F65: Stock insufisant | G65: 19.05 | H65: 18
A66: 63 | B66: DISJONCTEUR SECURIS 1P 20A | C66: SOLEC | D66: 107 | E66: =SUM(D66+'Stock-Enter'!D66-'Stock-Sortie'!D66) -> 107 | F66: Stock insufisant | G66: 14.1 | H66: 13.6
A67: 64 | B67: DISJONCTEUR SECURIS 1P+N 10A | C67: RADIANCE SARL | D67: 19 | E67: =SUM(D67+'Stock-Enter'!D67-'Stock-Sortie'!D67) -> 15 | F67: Stock insufisant | G67: 45 | H67: 42
A68: 65 | B68: DISJONCTEUR SECURIS 4P 63 A | C68: SOLEC | D68: 0 | E68: =SUM(D68+'Stock-Enter'!D68-'Stock-Sortie'!D68) -> 0 | F68: Stock insufisant | G68: 160 | H68: 150
A69: =IF(B69=0,"",ROW(A66)) -> 66 | B69: DISJONCTEUR SECURIS 1P 32A | C69: SOLEC | D69: 0 | E69: =SUM(D69+'Stock-Enter'!D69-'Stock-Sortie'!D69) -> 0 | F69: Stock insufisant | G69: 12.5 | H69: 12
A70: 67 | B70: DISJ 6KA C4PP 63A | C70: SOFA | D70: 6 | E70: =SUM(D70+'Stock-Enter'!D70-'Stock-Sortie'!D70) -> 12 | F70: Stock insufisant | G70: 397.5 | H70: 375.24
A71: 68 | B71: DISJ 6KA C4PP 25A REF MCN 425A | C71: SOFA | D71: 4 | E71: =SUM(D71+'Stock-Enter'!D71-'Stock-Sortie'!D71) -> 4 | F71: Stock insufisant | G71: 193 | H71: 183.6
A72: 69 | B72: DISJ 4,5/6KAC 1PP+N 32A REF MJN 732 | C72: SOFA | D72: 11 | E72: =SUM(D72+'Stock-Enter'!D72-'Stock-Sortie'!D72) -> 11 | F72: Stock insufisant | G72: 52.15 | H72: 49.2
A73: 70 | B73: DISJ 6KAC 4PP 40 A REF MCN 440A | C73: SOFA | D73: 1 | E73: =SUM(D73+'Stock-Enter'!D73-'Stock-Sortie'!D73) -> 1 | F73: Stock insufisant | G73: 194.6 | H73: 183.6
A74: 71 | B74: DISJ 4,5/6KA C 1PP+N 10A REF MJN 710 | C74: SOFA | D74: 23 | E74: =SUM(D74+'Stock-Enter'!D74-'Stock-Sortie'!D74) -> 12 | F74: Stock insufisant | G74: 52.5 | H74: 49.56
A75: 72 | B75: DISJ 4,5/6KA C 1PP+N 16A REF MJN 716 | C75: SOFA | D75: 7 | E75: =SUM(D75+'Stock-Enter'!D75-'Stock-Sortie'!D75) -> 7 | F75: Stock insufisant | G75: 52.5 | H75: 49.56
A76: 73 | B76: DISJ 3KA B 4 PP 16A REF MV416 | C76: SOFA | D76: 3 | E76: =SUM(D76+'Stock-Enter'!D76-'Stock-Sortie'!D76) -> 3 | F76: Stock insufisant | G76: 157 | H76: 148.68
A77: 74 | B77: DISJ 3KA B 4 PP 20A REF MV420 | C77: SOFA | D77: 2 | E77: =SUM(D77+'Stock-Enter'!D77-'Stock-Sortie'!D77) -> 2 | F77: Stock insufisant | G77: 157 | H77: 148.68
A78: 75 | B78: DISJ 3KA B 4 PP 40A REF MV440 | C78: SOFA | D78: 5 | E78: =SUM(D78+'Stock-Enter'!D78-'Stock-Sortie'!D78) -> 14 | F78: Stock insufisant | G78: 185 | H78: 174.73
A79: 76 | B79: ID 4P 40A 300 MA CDL 7440 TA DELIXI | C79: SOFA | D79: 1 | E79: =SUM(D79+'Stock-Enter'!D79-'Stock-Sortie'!D79) -> 1 | F79: Stock insufisant | G79: 200 | H79: 188.4
A80: 77 | B80: ID 4P 63A 300 MA CDL 7463 TA/TC DELIXI | C80: SOFA | D80: 1 | E80: =SUM(D80+'Stock-Enter'!D80-'Stock-Sortie'!D80) -> 1 | F80: Stock insufisant | G80: 220 | H80: 207.6
A81: 78 | B81: AMPER DIGIT 3PHASE 0-9999A | C81: SOFA | D81: 2 | E81: =SUM(D81+'Stock-Enter'!D81-'Stock-Sortie'!D81) -> 2 | F81: Stock insufisant | G81: 425 | H81: 402
A82: 79 | B82: LRD32 | C82: SOFA | D82: 3 | E82: =SUM(D82+'Stock-Enter'!D82-'Stock-Sortie'!D82) -> 3 | F82: =IF(E82>300,"Stock Sufisant","Stock insufisant") -> Stock insufisant | G82: 394.32 | H82: 372
A83: 80 | B83: LRD22 | C83: SOFA | D83: 2 | E83: =SUM(D83+'Stock-Enter'!D83-'Stock-Sortie'!D83) -> 2 | F83: Stock insufisant | G83: 203.5 | H83: 192
A84: 81 | B84: LRD21 | C84: SOFA | D84: 2 | E84: =SUM(D84+'Stock-Enter'!D84-'Stock-Sortie'!D84) -> 2 | F84: Stock insufisant | G84: 178 | H84: 168
A85: 82 | B85: LRD16 | C85: SOFA | D85: 2 | E85: =SUM(D85+'Stock-Enter'!D85-'Stock-Sortie'!D85) -> 2 | F85: Stock insufisant | G85: 178 | H85: 168
A86: 83 | B86: LRD14 | C86: SOFA | D86: 2 | E86: =SUM(D86+'Stock-Enter'!D86-'Stock-Sortie'!D86) -> 2 | F86: Stock insufisant | G86: 178 | H86: 168
A87: 84 | B87: LC1D25Q7 | C87: SOFA | D87: 3 | E87: =SUM(D87+'Stock-Enter'!D87-'Stock-Sortie'!D87) -> 3 | F87: Stock insufisant | G87: 304 | H87: 286.8
A88: 85 | B88: LC1D18Q7 | C88: SOFA | D88: 3 | E88: =SUM(D88+'Stock-Enter'!D88-'Stock-Sortie'!D88) -> 3 | F88: Stock insufisant | G88: 249.5 | H88: 235.2
A89: 86 | B89: LC1D12M7 | C89: SOFA | D89: 5 | E89: =SUM(D89+'Stock-Enter'!D89-'Stock-Sortie'!D89) -> 5 | F89: Stock insufisant | G89: 148.5 | H89: 140.4
A90: 87 | B90: LC1E 80Q5 3P 37KW | C90: SOFA | E90: =SUM('liste des articles'!D90+'Stock-Enter'!D90-'Stock-Sortie'!D90) -> 5 | F90: Stock insufisant | G90: 1380 | H90: 1301.45
E91: =SUM(D91+'Stock-Enter'!D91-'Stock-Sortie'!D91) -> 0 | F91: =IF(E91>300,"Stock Sufisant","Stock insufisant") -> Stock insufisant
E92: =SUM(D92+'Stock-Enter'!D92-'Stock-Sortie'!D92) -> 0 | F92: Stock insufisant
E93: =SUM(D93+'Stock-Enter'!D93-'Stock-Sortie'!D93) -> 0 | F93: Stock insufisant
E94: =SUM(D94+'Stock-Enter'!D94-'Stock-Sortie'!D94) -> 0 | F94: Stock insufisant
E95: =SUM(D95+'Stock-Enter'!D95-'Stock-Sortie'!D95) -> 0 | F95: Stock insufisant
E96: =SUM(D96+'Stock-Enter'!D96-'Stock-Sortie'!D96) -> 0 | F96: Stock insufisant
E97: =SUM(D97+'Stock-Enter'!D97-'Stock-Sortie'!D97) -> 0 | F97: Stock insufisant
A98: 95 | B98: CABLE - / FIL / K- APLAST -- SYNERGIE
A99: 96 | B99: FIL 10 K-PLAST | C99: K-PLAST | D99: 632.99 | E99: =SUM(D99+'Stock-Enter'!D99-'Stock-Sortie'!D99) -> 632.99 | F99: Stock Sufisant | G99: 8.1 | H99: 7.65 | J99: 100 M / ROULOU
A100: 97 | B100: FIL 6 K-PLAST | C100: K-PLAST | D100: 200 | E100: =SUM(D100+'Stock-Enter'!D100-'Stock-Sortie'!D100) -> 200 | F100: Stock insufisant | G100: 5.03 | H100: 4.75
A101: 98 | B101: FIL 2,5 K-PLAST | C101: K-PLAST | D101: 1610 | E101: =SUM(D101+'Stock-Enter'!D101-'Stock-Sortie'!D101) -> 910 | F101: Stock Sufisant | G101: 2 | H101: 1.9
A102: 99 | B102: FIL 1,5 K-PLAST | C102: K-PLAST | D102: 2000 | E102: =SUM(D102+'Stock-Enter'!D102-'Stock-Sortie'!D102) -> 1500 | F102: Stock Sufisant | G102: 1.16 | H102: 1.1
A103: 100 | B103: FIL 10 SC | C103: SYNERGIE CABLE | D103: 2000 | E103: =SUM(D103+'Stock-Enter'!D103-'Stock-Sortie'!D103) -> 1500 | F103: Stock Sufisant | G103: 7.2 | H103: 6.8
A104: 101 | B104: FIL 6 SC | C104: SYNERGIE CABLE | D104: 8200 | E104: =SUM(D104+'Stock-Enter'!D104-'Stock-Sortie'!D104) -> 3400 | F104: =IF(E104>300,"Stock Sufisant","Stock insufisant") -> Stock Sufisant | G104: 4.34 | H104: 4.1
A105: 102 | B105: FIL 1,5 SC | C105: SYNERGIE CABLE | D105: 11000 | E105: =SUM(D105+'Stock-Enter'!D105-'Stock-Sortie'!D105) -> 2000 | F105: Stock Sufisant | G105: 1 | H105: 0.95
A106: 103 | B106: FIL 2,5 SC | C106: SYNERGIE CABLE | D106: 7623 | E106: =SUM(D106+'Stock-Enter'!D106-'Stock-Sortie'!D106) -> 1123 | F106: Stock Sufisant | G106: 1.69 | H106: 1.6
A107: 104 | B107: CABLE SC 4X6 | C107: SEFROUELC | D107: 0 | E107: =SUM(D107+'Stock-Enter'!D107-'Stock-Sortie'!D107) -> 0 | F107: Stock insufisant | G107: 0 | H107: 0
A108: 105 | B108: CABLE SC 2X6 | C108: SYNERGIE CABLE | D108: 328 | E108: =SUM(D108+'Stock-Enter'!D108-'Stock-Sortie'!D108) -> 328 | F108: Stock Sufisant | G108: 13.35 | H108: 12.6
A109: 106 | B109: CABLE SC 2X10 | C109: SYNERGIE CABLE | D109: 200 | E109: =SUM(D109+'Stock-Enter'!D109-'Stock-Sortie'!D109) -> 200 | F109: Stock insufisant | G109: 21.94 | H109: 20.7
A110: 107 | B110: CABLE SC 4X10 | C110: SYNERGIE CABLE | D110: 100 | E110: =SUM(D110+'Stock-Enter'!D110-'Stock-Sortie'!D110) -> 100 | F110: Stock insufisant | G110: 26.5 | H110: 25
E111: =SUM(D111+'Stock-Enter'!D111-'Stock-Sortie'!D111) -> 0 | F111: Stock insufisant
E112: =SUM(D112+'Stock-Enter'!D112-'Stock-Sortie'!D112) -> 0 | F112: Stock insufisant
E113: =SUM(D113+'Stock-Enter'!D113-'Stock-Sortie'!D113) -> 0 | F113: Stock insufisant
E114: =SUM(D114+'Stock-Enter'!D114-'Stock-Sortie'!D114) -> 0 | F114: Stock insufisant
E115: =SUM(D115+'Stock-Enter'!D115-'Stock-Sortie'!D115) -> 0 | F115: Stock insufisant
E116: =SUM(D116+'Stock-Enter'!D116-'Stock-Sortie'!D116) -> 0 | F116: Stock insufisant
A117: 114 | B117: ARTICLES VARRIES LAP / SOLEC/ JATA
A118: 115 | B118: PINCE D'ANCRAGE LAP 2X16 à 4X25 | C118: SOLEC/LAP | D118: 2787 | E118: =SUM(D118+'Stock-Enter'!D118-'Stock-Sortie'!D118) -> 1997 | F118: Stock Sufisant | G118: 4.37 | H118: 4.5
A119: 116 | B119: HUBLOT ROND B22 BLANC "ECO" | C119: LAP | D119: 200 | E119: =SUM(D119+'Stock-Enter'!D119-'Stock-Sortie'!D119) -> 140 | F119: Stock insufisant | G119: 14.2 | H119: 13.39
A120: 117 | B120: COFFRET ENCAS 14 MOD + DIS FUME | C120: LAP | D120: 44 | E120: =SUM(D120+'Stock-Enter'!D120-'Stock-Sortie'!D120) -> 44 | F120: Stock insufisant | G120: 30.57 | H120: 28.84
A121: 118 | B121: PRISE 2P+T AURGHE | C121: LAP | D121: 70 | E121: =SUM(D121+'Stock-Enter'!D121-'Stock-Sortie'!D121) -> 70 | F121: Stock insufisant | G121: 17.47 | H121: 16.48
A122: 119 | B122: PRISE 2P AURGHE | C122: LAP | D122: 70 | E122: =SUM(D122+'Stock-Enter'!D122-'Stock-Sortie'!D122) -> 70 | F122: Stock insufisant | G122: 15.3 | H122: 14.42
A123: 120 | B123: PRISE 3P+T 20 A 380 BLANC | C123: LAP | D123: 90 | E123: =SUM(D123+'Stock-Enter'!D123-'Stock-Sortie'!D123) -> 70 | F123: Stock insufisant | G123: 27.3 | H123: 25.75
A124: 121 | B124: FICHE 3P+T 20A 380V BLANC | C124: LAP | D124: 100 | E124: =SUM(D124+'Stock-Enter'!D124-'Stock-Sortie'!D124) -> 80 | F124: Stock insufisant | G124: 21.83 | H124: 20.6
A125: 122 | B125: DOUILLE E27 | C125: LAP | D125: 1170 | E125: =SUM(D125+'Stock-Enter'!D125-'Stock-Sortie'!D125) -> 1100 | F125: Stock Sufisant | G125: 3.4 | H125: 3.2
A126: 123 | B126: HUBLOT OVAL EN VERRE + GM E27 NO | C126: LAP | D126: 62 | E126: =SUM(D126+'Stock-Enter'!D126-'Stock-Sortie'!D126) -> 52 | F126: Stock insufisant | G126: 22.3 | H126: 21.03
A127: 124 | B127: HUBLOT OVAL EN VERRE + GP E27 BL | C127: LAP | D127: 52 | E127: =SUM(D127+'Stock-Enter'!D127-'Stock-Sortie'!D127) -> 42 | F127: Stock insufisant | G127: 18.02 | H127: 17
A128: 125 | B128: COFFRET ENCAS 12 MOD FUME | C128: LAP | D128: 40 | E128: =SUM(D128+'Stock-Enter'!D128-'Stock-Sortie'!D128) -> 40 | F128: Stock insufisant | G128: 21.84 | H128: 20.6
A129: 126 | B129: COFFRET APPA 12 MOD PORTE OPAL | C129: LAP | D129: 20 | E129: =SUM(D129+'Stock-Enter'!D129-'Stock-Sortie'!D129) -> 20 | F129: Stock insufisant | G129: 25.11 | H129: 23.69
A130: 127 | B130: COFFRET APPA 4 MOD | C130: LAP | D130: 48 | E130: =SUM(D130+'Stock-Enter'!D130-'Stock-Sortie'!D130) -> 48 | F130: Stock insufisant | G130: 3.12 | H130: 2.94
A131: 128 | B131: COFFRET APPA 2 MOD | C131: LAP | D131: 50 | E131: =SUM(D131+'Stock-Enter'!D131-'Stock-Sortie'!D131) -> 50 | F131: Stock insufisant | G131: 2.3 | H131: 2.17
A132: 129 | B132: BOITE CHEVILLE EN PLAST Q 10 | C132: LAP | D132: 590 | E132: =SUM(D132+'Stock-Enter'!D132-'Stock-Sortie'!D132) -> 530 | F132: Stock Sufisant | G132: 6.56 | H132: 6.19
A133: =IF(B133=0,"",ROW(A130)) -> 130 | B133: BOITE CHEVILLE EN PLAST Q 8 | C133: LAP | D133: 1000 | E133: =SUM(D133+'Stock-Enter'!D133-'Stock-Sortie'!D133) -> 820 | F133: Stock Sufisant | G133: 6.56 | H133: 6.19
A134: 131 | B134: BOITE CHEVILLE EN PLAST Q 7 | C134: LAP | D134: 250 | E134: =SUM(D134+'Stock-Enter'!D134-'Stock-Sortie'!D134) -> 250 | F134: Stock insufisant | G134: 6 | H134: 5.67
A135: 132 | B135: BOITE CHEVILLE EN PLAST Q 6 | C135: LAP | D135: 250 | E135: =SUM(D135+'Stock-Enter'!D135-'Stock-Sortie'!D135) -> 250 | F135: Stock insufisant | G135: 5.46 | H135: 5.15
A136: 133 | B136: BOITE DERIVATION 160*160*65 MM | C136: LAP | D136: 200 | E136: =SUM(D136+'Stock-Enter'!D136-'Stock-Sortie'!D136) -> 200 | F136: Stock insufisant | G136: 5.89 | H136: 5.56
A137: 134 | B137: BOITE DERIVATION 130*130*55 MM | C137: LAP | D137: 500 | E137: =SUM(D137+'Stock-Enter'!D137-'Stock-Sortie'!D137) -> 500 | F137: Stock Sufisant | G137: 3.68 | H137: 3.48
A138: 135 | B138: BOITE DERIVATION 100*100*45 MM | C138: LAP | D138: 100 | E138: =SUM(D138+'Stock-Enter'!D138-'Stock-Sortie'!D138) -> 100 | F138: Stock insufisant | G138: 2.8 | H138: 2.63
A139: 136 | B139: BOITE DERIVATION 80*80*40 MM | C139: LAP | D139: 100 | E139: =SUM(D139+'Stock-Enter'!D139-'Stock-Sortie'!D139) -> 100 | F139: Stock insufisant | G139: 1.97 | H139: 1.86
A140: 137 | B140: POUSSOIR LUM AURGHE | C140: LAP | D140: 90 | E140: =SUM(D140+'Stock-Enter'!D140-'Stock-Sortie'!D140) -> 90 | F140: Stock insufisant | G140: 19.9 | H140: 18.75
A141: 138 | B141: INTER DBLE VA ET VIENT AURGHE | C141: LAP | D141: 70 | E141: =SUM(D141+'Stock-Enter'!D141-'Stock-Sortie'!D141) -> 70 | F141: Stock insufisant | G141: 30.9 | H141: 29.15
A142: 139 | B142: INTER VA ET VIENT AURGHE | C142: LAP | D142: 60 | E142: =SUM(D142+'Stock-Enter'!D142-'Stock-Sortie'!D142) -> 60 | F142: Stock insufisant | G142: 16.15 | H142: 15.24
A143: 140 | B143: HUBLOT ROND EN VERRE B22 BLANC LAP 2006 | C143: LAP | D143: 90 | E143: =SUM(D143+'Stock-Enter'!D143-'Stock-Sortie'!D143) -> 70 | F143: Stock insufisant | G143: 27.5 | H143: 25.95
A144: 141 | B144: COFFRET ENCAS 12 MOD OPAL | C144: LAP | D144: 500 | E144: =SUM(D144+'Stock-Enter'!D144-'Stock-Sortie'!D144) -> 475 | F144: Stock Sufisant | G144: 20.74 | H144: 19.57
A145: 142 | B145: COFFRET APPA 16 MOD + DIS OPAL | C145: LAP | D145: 12 | E145: =SUM(D145+'Stock-Enter'!D145-'Stock-Sortie'!D145) -> 12 | F145: Stock insufisant | G145: 40.39 | H145: 38.11
A146: 143 | B146: BOITE CHEVILLE EN PLAST Q 12 | C146: LAP | D146: 200 | E146: =SUM(D146+'Stock-Enter'!D146-'Stock-Sortie'!D146) -> 200 | F146: Stock insufisant | G146: 8.18 | H146: 7.72
A147: 144 | B147: BOITE D'ENCASTREMENT CARREE GR | C147: LAP | D147: 1620 | E147: =SUM(D147+'Stock-Enter'!D147-'Stock-Sortie'!D147) -> 1420 | F147: Stock Sufisant | G147: 2.06 | H147: 1.95
A148: 145 | B148: RENVOI D'ANGLE METALLIQUE | C148: LAP | D148: 300 | E148: =SUM(D148+'Stock-Enter'!D148-'Stock-Sortie'!D148) -> 300 | F148: Stock insufisant | G148: 4.36 | H148: 4.12
A149: 146 | B149: RALLONGE 5M 2,5A LAP | C149: LAP | D149: 328 | E149: =SUM(D149+'Stock-Enter'!D149-'Stock-Sortie'!D149) -> 258 | F149: Stock insufisant | G149: 20.74 | H149: 19.57
A150: 147 | B150: PRISE RJ45 CAT 5 SIMPLE 550B | C150: LAP | D150: 80 | E150: =SUM(D150+'Stock-Enter'!D150-'Stock-Sortie'!D150) -> 80 | F150: Stock insufisant | G150: 23.3 | H150: 22
A151: 148 | B151: BOITE D'ENCASTREMENT Q6 LAP | C151: LAP | D151: 7000 | E151: =SUM(D151+'Stock-Enter'!D151-'Stock-Sortie'!D151) -> 4950 | F151: Stock Sufisant | G151: 0.37 | H151: 0.35
A152: 149 | B152: APPLIQUE LAVABO 2P+T+INTERRUPT LAP | C152: LAP | D152: 195 | E152: =SUM(D152+'Stock-Enter'!D152-'Stock-Sortie'!D152) -> 183 | F152: Stock insufisant | G152: 28.4 | H152: 26.78
A153: 150 | B153: HUBLOT ROND EN VERRE GP B22 BLANC LAP 2006 GP B22 | C153: LAP | D153: 36 | E153: =SUM(D153+'Stock-Enter'!D153-'Stock-Sortie'!D153) -> 36 | F153: Stock insufisant | G153: 31.72 | H153: 29.92
A154: 151 | B154: =UPPER("hublot rond en verre b22 blanc lap 2000v") -> HUBLOT ROND EN VERRE B22 BLANC LAP 2000V | C154: lap | D154: 70 | E154: =SUM(D154+'Stock-Enter'!D154-'Stock-Sortie'!D154) -> 60 | F154: Stock insufisant | G154: 31.72 | H154: 29.92
A155: 152 | B155: COFFRET APPA 6MOD LAP | C155: LAP | D155: 32 | E155: =SUM(D155+'Stock-Enter'!D155-'Stock-Sortie'!D155) -> 22 | F155: Stock insufisant | G155: 4.36 | H155: 4.12
A156: 153 | B156: COFFRET APPA 8 MOD LAP | C156: LAP | D156: 20 | E156: =SUM(D156+'Stock-Enter'!D156-'Stock-Sortie'!D156) -> 20 | F156: Stock insufisant | G156: 6.56 | H156: 6.19
A157: 154 | B157: PATERE DROITE E27 LAP | C157: LAP | D157: 368 | E157: =SUM(D157+'Stock-Enter'!D157-'Stock-Sortie'!D157) -> 348 | F157: Stock Sufisant | G157: 6 | H157: 5.68
A158: 155 | B158: PATERE DROITE AVEC DOUILLE B22 LAP | C158: LAP | D158: 370 | E158: =SUM(D158+'Stock-Enter'!D158-'Stock-Sortie'!D158) -> 370 | F158: Stock Sufisant | G158: 5.7 | H158: 5.36
A159: 156 | B159: PATERE E27 INCLINEE LAP | C159: LAP | D159: 420 | E159: =SUM(D159+'Stock-Enter'!D159-'Stock-Sortie'!D159) -> 370 | F159: Stock Sufisant | G159: 5.5 | H159: 5.15
A160: 157 | B160: COFFRET APPA 12 MOD SANS PORTE LAP | C160: LAP | D160: 30 | E160: =SUM(D160+'Stock-Enter'!D160-'Stock-Sortie'!D160) -> 30 | F160: Stock insufisant | G160: 21.8 | H160: 20.6
A161: 158 | B161: INTERRRUPTEUR V&V GALAXY MARRON | C161: LAP | D161: 220 | E161: =SUM(D161+'Stock-Enter'!D161-'Stock-Sortie'!D161) -> 220 | F161: Stock insufisant | G161: 16.88 | H161: 15.92
A162: 159 | B162: BOITE ETANCHE 80*8 | C162: LAP | D162: 120 | E162: =SUM(D162+'Stock-Enter'!D162-'Stock-Sortie'!D162) -> 120 | F162: Stock insufisant | G162: 3.12 | H162: 2.95
A163: 160 | B163: BOITE ETANCHE 80*40 LAP | C163: LAP | D163: 90 | E163: =SUM(D163+'Stock-Enter'!D163-'Stock-Sortie'!D163) -> 90 | F163: Stock insufisant | G163: 1.91 | H163: 1.8
A164: 161 | B164: FICHE 2P+T FEMELLE BLAC LAP | C164: LAP | D164: 2300 | E164: =SUM(D164+'Stock-Enter'!D164-'Stock-Sortie'!D164) -> 2000 | F164: Stock Sufisant | G164: 5.25 | H164: 4.96
A165: 162 | B165: FICHE 2P+T MAL BLANC LAP | C165: LAP | D165: 2920 | E165: =SUM(D165+'Stock-Enter'!D165-'Stock-Sortie'!D165) -> 2620 | F165: Stock Sufisant | G165: 4.37 | H165: 4.13
A166: 163 | B166: INTER*DBLE V&V GALAXU MARRON | C166: LAP | D166: 80 | E166: =SUM(D166+'Stock-Enter'!D166-'Stock-Sortie'!D166) -> 80 | F166: Stock insufisant | G166: 29 | H166: 27.41
A167: 164 | B167: PRISE TELEVISION GALAXY MARRON | C167: LAP | D167: 50 | E167: =SUM(D167+'Stock-Enter'!D167-'Stock-Sortie'!D167) -> 50 | F167: Stock insufisant | G167: 27.85 | H167: 26.28
A168: 165 | B168: POUSSOIR INVERSSEUR RIDEAUX GALAXY | C168: LAP | D168: 50 | E168: =SUM(D168+'Stock-Enter'!D168-'Stock-Sortie'!D168) -> 50 | F168: Stock insufisant | G168: 34 | H168: 32
A169: 166 | B169: PRISE 2P+T GALAXY MARRON | C169: LAP | D169: 80 | E169: =SUM(D169+'Stock-Enter'!D169-'Stock-Sortie'!D169) -> 80 | F169: =IF(E169>300,"Stock Sufisant","Stock insufisant") -> Stock insufisant | G169: 16.53 | H169: 15.6
A170: 167 | B170: PRISE 2P GALAXY MARRON | C170: LAP | D170: 70 | E170: =SUM(D170+'Stock-Enter'!D170-'Stock-Sortie'!D170) -> 70 | F170: Stock insufisant | G170: 12.77 | H170: 12.05
A171: 168 | B171: SORTIE DE FILE GALAXY MARRON | C171: LAP | D171: 340 | E171: =SUM(D171+'Stock-Enter'!D171-'Stock-Sortie'!D171) -> 340 | F171: Stock Sufisant | G171: 10.78 | H171: 10.17
A172: 169 | B172: POUSSOIR ROND LUM GALAXY MARRON | C172: LAP | D172: 130 | E172: =SUM(D172+'Stock-Enter'!D172-'Stock-Sortie'!D172) -> 90 | F172: Stock insufisant | G172: 23.34 | H172: 22.02
A173: 170 | B173: COFFRET ENCASTRE 8 MOD OPAL LAP | C173: LAP | D173: 160 | E173: =SUM(D173+'Stock-Enter'!D173-'Stock-Sortie'!D173) -> 130 | F173: Stock insufisant | G173: 19.65 | H173: 18.54
A174: 171 | B174: COFFRET ENCASTRE 20 MOD+DIS OPAL | C174: LAP | D174: 394 | E174: =SUM(D174+'Stock-Enter'!D174-'Stock-Sortie'!D174) -> 391 | F174: Stock Sufisant | G174: 60.05 | H174: 56.65
A175: 172 | B175: INTERRUPTEUR SA GALAXY MARRON | C175: LAP | D175: 300 | E175: =SUM(D175+'Stock-Enter'!D175-'Stock-Sortie'!D175) -> 300 | F175: Stock insufisant | G175: 12.77 | H175: 12.05
A176: 173 | B176: INTERRUPTEUR DA GALAXY MARRON | C176: LAP | D176: 130 | E176: =SUM(D176+'Stock-Enter'!D176-'Stock-Sortie'!D176) -> 130 | F176: Stock insufisant | G176: 25.55 | H176: 24.11
A177: 174 | B177: PRISE RJ11 GALAXY MARRON | C177: LAP | D177: 80 | E177: =SUM(D177+'Stock-Enter'!D177-'Stock-Sortie'!D177) -> 80 | F177: Stock insufisant | G177: 32 | H177: 30.25
A178: 175 | B178: PRISE 8 BROCHES GALAXY MARRON | C178: LAP | D178: 20 | E178: =SUM(D178+'Stock-Enter'!D178-'Stock-Sortie'!D178) -> 20 | F178: Stock insufisant | G178: 32 | H178: 30.25
A179: 176 | B179: COFFRET ENCASTRE 14 MOD+DIS OPAL | C179: LAP | D179: 606 | E179: =SUM(D179+'Stock-Enter'!D179-'Stock-Sortie'!D179) -> 576 | F179: Stock Sufisant | G179: 29.53 | H179: 27.86
A180: 177 | B180: COFFRET ENCASTRE 24 MOD OPAL | C180: LAP | D180: 60 | E180: =SUM(D180+'Stock-Enter'!D180-'Stock-Sortie'!D180) -> 60 | F180: Stock insufisant | G180: 29.53 | H180: 27.86
A181: 178 | B181: BOITE ETANCHE ACHIC 180X140 | C181: LAP | D181: 420 | E181: =SUM(D181+'Stock-Enter'!D181-'Stock-Sortie'!D181) -> 350 | F181: Stock Sufisant | G181: 12.57 | H181: 11.86
A182: 179 | B182: BOITE ETANCHE ACHIC 100X100 | C182: LAP | D182: 908 | E182: =SUM(D182+'Stock-Enter'!D182-'Stock-Sortie'!D182) -> 778 | F182: Stock Sufisant | G182: 4.62 | H182: 4.36
A183: 180 | B183: BOITE ETANCHE ACHIC 240X180 | C183: LAP | D183: 320 | E183: =SUM(D183+'Stock-Enter'!D183-'Stock-Sortie'!D183) -> 270 | F183: =IF(E183>300,"Stock Sufisant","Stock insufisant") -> Stock insufisant | G183: 19.12 | H183: 18.04
A184: 181 | B184: REFLECTEUR POUR PROJECT PHILIPS | C184: JATA | D184: 13 | E184: =SUM(D184+'Stock-Enter'!D184-'Stock-Sortie'!D184) -> 11 | F184: =IF(E184>300,"Stock Sufisant","Stock insufisant") -> Stock insufisant | G184: 200 | H184: 185
A185: 182 | B185: IINVERSEUR 32 AMP 380V | C185: JATA | D185: 4 | E185: =SUM(D185+'Stock-Enter'!D185-'Stock-Sortie'!D185) -> 4 | F185: =IF(E185>300,"Stock Sufisant","Stock insufisant") -> Stock insufisant | G185: 540 | H185: 515
A186: 183 | B186: SECTIONNEUR 4X100 AMP | C186: JATA | D186: 28 | E186: =SUM(D186+'Stock-Enter'!D186-'Stock-Sortie'!D186) -> 28 | F186: =IF(E186>300,"Stock Sufisant","Stock insufisant") -> Stock insufisant | G186: 190 | H186: 178
A187: 184 | B187: ARMATURE RC 380 | C187: JATA | D187: 1 | E187: =SUM(D187+'Stock-Enter'!D187-'Stock-Sortie'!D187) -> 1 | F187: =IF(E187>300,"Stock Sufisant","Stock insufisant") -> Stock insufisant | G187: 500 | H187: 416
A188: 185 | B188: SOFA
C189: CABLE / FIL / SOUPLE / ARME -- SOFA
A190: 187 | B190: CABLE SE1V 3X6.00 MM² | C190: SOFA | D190: 100 | E190: =SUM(D190+'Stock-Enter'!D190-'Stock-Sortie'!D190) -> 100 | F190: Stock insufisant | G190: 17.7 | H190: 13.9 | J190: *
A191: 188 | B191: CABLE SE1V 4X16.00 MM² | C191: SOFA | D191: 190 | E191: =SUM(D191+'Stock-Enter'!D191-'Stock-Sortie'!D191) -> 190 | F191: =IF(E191>300,"Stock Sufisant","Stock insufisant") -> Stock insufisant | G191: 59.78 | H191: 56.4 | J191: *
A192: 189 | B192: CABLE SE1V 3X16.00 MM² | E192: =SUM(D192+'Stock-Enter'!D192-'Stock-Sortie'!D192) -> 0 | F192: =IF(E192>300,"Stock Sufisant","Stock insufisant") -> Stock insufisant
A193: 190 | B193: CABLE SE1V 3X6 MM² | C193: SOFA | D193: 100 | E193: =SUM(D193+'Stock-Enter'!D193-'Stock-Sortie'!D193) -> 100 | F193: Stock insufisant | G193: 17.68 | H193: 16.68
A194: 191 | B194: CABLE SE1V 5X2,50 MM² | C194: SOFA | D194: 0 | E194: =SUM(D194+'Stock-Enter'!D194-'Stock-Sortie'!D194) -> 0 | F194: Stock insufisant | G194: 14.5 | H194: 11.4
A195: 192 | B195: CABLE SE1V 3X4 MM² H05VVF IMA | C195: SOFA | D195: 100 | E195: =SUM(D195+'Stock-Enter'!D195-'Stock-Sortie'!D195) -> 100 | F195: Stock insufisant | G195: 12.84 | H195: 12.12 | J195: *
A196: 193 | B196: CABLE SE1V 3X2,5 MM² | C196: SOFA | D196: 0 | E196: =SUM(D196+'Stock-Enter'!D196-'Stock-Sortie'!D196) -> 0 | F196: Stock insufisant | H196: 6.6
A197: =IF(B197=0,"",ROW(A194)) -> 194 | B197: CABLE SE1V 4X1 MM² TUM/ALM | C197: SOFA | D197: 1000 | E197: =SUM(D197+'Stock-Enter'!D197-'Stock-Sortie'!D197) -> 1000 | F197: Stock Sufisant | G197: 4.74 | H197: 4.47 | J197: *
A198: 195 | B198: CABLE U500 SV 4 MM² V-J (H07V-K) | C198: SOFA | D198: 1100 | E198: =SUM(D198+'Stock-Enter'!D198-'Stock-Sortie'!D198) -> 1100 | F198: Stock Sufisant | G198: 4.19 | H198: 3.96 | J198: *
A199: 196 | B199: CABLE U500 SV 4 MM² BLEU (H07V-K) | C199: SOFA | D199: 1000 | E199: =SUM(D199+'Stock-Enter'!D199-'Stock-Sortie'!D199) -> 1000 | F199: Stock Sufisant | G199: 4.19 | H199: 3.96 | J199: *
A200: 197 | B200: CABLE U500 SV 4 MM² ROUGE (H07V-K) | C200: SOFA | D200: 1200 | E200: =SUM(D200+'Stock-Enter'!D200-'Stock-Sortie'!D200) -> 1200 | F200: Stock Sufisant | G200: 4.19 | H200: 3.96 | J200: *
... 12724 more rows

Sheet Imprim-Facture (hidden)
F1: =DAY(E11) -> 4 | G1: =MONTH(E11) -> 6 | H1: =YEAR(E11) -> 2014
D5: M HARYOULI MOHAMMADI
D7: FES
B11: N° Facture: | D11: Sefrou Le : | E11: 2014-06-04
A13: REF | B13: QUANTITE | C13: DESIGNATION | D13: PRIX U.T.T.C | E13: TOTAL T.T.C
A14: 3 | B14: 5 | C14: COF TICHKA JADID SS C/C | D14: 82 | E14: 410
A15: 231 | B15: 4 | C15: CUIVRE NU 22,0 MM² 198,00 KG/KM | D15: 100.5 | E15: 402
A16: 102 | B16: 300 | C16: FIL 1,5 SC | D16: 1 | E16: 300
A17: 481 | B17: 200 | C17: CABLE TORSADE ALU 2X16 | D17: 4.69 | E17: 938
A18: 178 | B18: 50 | C18: BOITE ETANCHE ACHIC 180X140 | D18: 12.6 | E18: 630
A19: 179 | B19: 60 | C19: BOITE ETANCHE ACHIC 100X100 | D19: 4.65 | E19: 279
A20: 541 | B20: 4 | C20: BOITE RONDE DIAM 60MM (250UNITES) | D20: 108 | E20: 432
A21: 538 | B21: 30 | C21: CHEVILLE 12 INGELEC | D21: 14.6 | E21: 438
A22: 161 | B22: 100 | C22: FICHE 2P+T FEMELLE BLAC LAP | D22: 5.25 | E22: 525
A23: 162 | B23: 100 | C23: FICHE 2P+T MAL BLANC LAP | D23: 4.46 | E23: 446
C44: TOTAL PRIX U.H.T | D44: T.V.A | E44: PRIX Total T.T.C
C45: 4000 | D45: 800 | E45: 4800
B48: ARRETTER LA PRESENTE FACTURE A LA SOMME DE :
B49: QUATRE MILLE HUIT CENTS DIRHAMES

Sheet Liste-fact-validé (hidden)

Sheet Liste-Fact-non-validé (hidden)

Sheet Stock-Enter
A1: REF | B1: DESIGNATION | C1: FOURNISSEUR | D1: STOCK INT | E1: Stock Final | F1: Alert | G1: PRIX U T.T.C V | H1: PRIX U T.T.C.A | J1: Quantité Par Unité | K1: DATE D'ENTRER
B2: COFFRETS
B3: 146 | C3: COFFRETS OGE
A4: =IF(B4=0,"",ROW(A1)) -> 1 | B4: COF TICHKA JADID C/C 30A | C4: OGE | E4: =SUM('liste des articles'!D4+'Stock-Enter'!D4-'Stock-Sortie'!D4) -> 924 | F4: =IF(E4>300,"Stock Sufisant","Stock insufisant") -> Stock Sufisant | G4: 100 | H4: 75
A5: =IF(B5=0,"",ROW(A2)) -> 2 | B5: COF MEDINA C/C 30A ONE | C5: OGE | E5: =SUM('liste des articles'!D5+'Stock-Enter'!D5-'Stock-Sortie'!D5) -> 1366 | F5: Stock Sufisant | G5: 110 | H5: 88.4
A6: 3 | B6: COF TICHKA JADID SS C/C | C6: OGE | E6: =SUM('liste des articles'!D6+'Stock-Enter'!D6-'Stock-Sortie'!D6) -> 260 | F6: Stock insufisant | G6: 86 | H6: 67.6
A7: 4 | B7: COF PAN 4 HUB 4X2 C/C 80A | C7: OGE | E7: =SUM('liste des articles'!D7+'Stock-Enter'!D7-'Stock-Sortie'!D7) -> 24 | F7: Stock insufisant | G7: 600 | H7: 412.85
A8: 5 | B8: COF TICHKA C/C 30A ONE | C8: OGE | E8: =SUM('liste des articles'!D8+'Stock-Enter'!D8-'Stock-Sortie'!D8) -> 202 | F8: Stock insufisant | G8: 115 | H8: 88.4
A9: 6 | B9: GAINE THERM GR10-35 10M | C9: OGE | E9: =SUM('liste des articles'!D9+'Stock-Enter'!D9-'Stock-Sortie'!D9) -> 13 | F9: Stock insufisant | G9: 95 | H9: 73
A10: 7 | B10: GAINE THERM GR50-150 10M | C10: OGE | E10: =SUM('liste des articles'!D10+'Stock-Enter'!D10-'Stock-Sortie'!D10) -> 7 | F10: Stock insufisant | G10: 0 | H10: 0
A11: 8 | B11: EXTREM THERMO E2R 10-35 | C11: OGE | E11: =SUM('liste des articles'!D11+'Stock-Enter'!D11-'Stock-Sortie'!D11) -> 10 | F11: Stock insufisant | G11: 30 | H11: 23.5
A12: 9 | B12: EXTREM THERMO E4R 10-35 | C12: OGE | E12: =SUM('liste des articles'!D12+'Stock-Enter'!D12-'Stock-Sortie'!D12) -> 12 | F12: Stock insufisant | G12: 38 | H12: 28.8
A13: 10 | B13: COF DIST ETA 6D80A MONO | C13: OGE | E13: =SUM('liste des articles'!D13+'Stock-Enter'!D13-'Stock-Sortie'!D13) -> 6 | F13: Stock insufisant | G13: 410 | H13: 321.35
A14: 11 | B14: COF DIST ETA 4D80A MONO | C14: OGE | E14: =SUM('liste des articles'!D14+'Stock-Enter'!D14-'Stock-Sortie'!D14) -> 8 | F14: Stock insufisant | G14: 350 | H14: 276.34
A15: 12 | B15: COF TOUBKAL C/C 80A ONE | C15: OGE | E15: =SUM('liste des articles'!D15+'Stock-Enter'!D15-'Stock-Sortie'!D15) -> 5 | F15: Stock insufisant | G15: 190 | H15: 150
A16: 13 | B16: COF NOVINTER 1A50+3D25 | C16: OGE | E16: =SUM('liste des articles'!D16+'Stock-Enter'!D16-'Stock-Sortie'!D16) -> 0 | F16: Stock insufisant | G16: 126 | H16: 96.82
A17: 14 | B17: COF FACADE 1A50+1DTO 50 | C17: OGE | E17: =SUM('liste des articles'!D17+'Stock-Enter'!D17-'Stock-Sortie'!D17) -> 29 | F17: Stock insufisant | G17: 600 | H17: 431.73
A18: 15 | B18: COF NOVIN.1A5O+1DTOO 50 | C18: OGE | E18: =SUM('liste des articles'!D18+'Stock-Enter'!D18-'Stock-Sortie'!D18) -> 36 | F18: Stock insufisant | G18: 300.2 | H18: 244.56
C19: COFFRETS SAFILUM
A20: 17 | B20: COFFRET 2FILS ONE | C20: SAF | E20: =SUM('liste des articles'!D20+'Stock-Enter'!D20-'Stock-Sortie'!D20) -> 8 | F20: Stock insufisant | G20: 100 | H20: 75 | I20: H,T
A21: 18 | B21: COFFRET 4FILS ONE | C21: SAF | E21: =SUM('liste des articles'!D21+'Stock-Enter'!D21-'Stock-Sortie'!D21) -> 3 | F21: Stock insufisant | G21: 190 | H21: 150 | I21: H,T
A22: 19 | B22: COFFRET 14+D ALPHA | C22: SAF | E22: =SUM('liste des articles'!D22+'Stock-Enter'!D22-'Stock-Sortie'!D22) -> 20 | F22: Stock insufisant | G22: 28.6 | H22: 22.55 | I22: H,T
A23: 20 | B23: HUBLOT ROND FLORIDA DORE | C23: SAF | E23: =SUM('liste des articles'!D23+'Stock-Enter'!D23-'Stock-Sortie'!D23) -> 34 | F23: Stock insufisant | H23: 13.33 | I23: H,T
A24: 21 | B24: LUMINAIRE ASNI 125W | C24: SAF | E24: =SUM('liste des articles'!D24+'Stock-Enter'!D24-'Stock-Sortie'!D24) -> 171 | F24: Stock insufisant | H24: 137.5 | I24: H,T
A25: 22 | B25: HUBLOT ROND FLORIDA GRIS | C25: SAF | E25: =SUM('liste des articles'!D25+'Stock-Enter'!D25-'Stock-Sortie'!D25) -> 24 | F25: =IF(E25>300,"Stock Sufisant","Stock insufisant") -> Stock insufisant | H25: 18.33 | I25: H,T
A26: 23 | B26: HUBLOT ROND REF 1106 CEVIZ SAFILUM | C26: SAF/SEFROUELEC | E26: =SUM('liste des articles'!D26+'Stock-Enter'!D26-'Stock-Sortie'!D26) -> 46 | F26: Stock insufisant | G26: 37 | H26: 35
A27: 24 | B27: HUBLOT ROND REF 1102 CEVIZ SAFILUM | C27: SAF/SEFROUELEC | E27: =SUM('liste des articles'!D27+'Stock-Enter'!D27-'Stock-Sortie'!D27) -> 36 | F27: Stock insufisant | G27: 32 | H27: 30
A28: 25 | B28: HUBLOT ROND REF 1101 CEVIZ SAFILUM | C28: SAF/SEFROUELEC | E28: =SUM('liste des articles'!D28+'Stock-Enter'!D28-'Stock-Sortie'!D28) -> 50 | F28: Stock insufisant | G28: 30 | H28: 28
A29: 26 | B29: HUBLOT ROND REF 1101 BLANC SAFILUM | C29: SAF/SEFROUELEC | E29: =SUM('liste des articles'!D29+'Stock-Enter'!D29-'Stock-Sortie'!D29) -> 60 | F29: Stock insufisant | G29: 21.5 | H29: 20
A30: 27 | B30: BOITE DE DISTRIBUTION MIMOSA | C30: SAF | E30: =SUM('liste des articles'!D30+'Stock-Enter'!D30-'Stock-Sortie'!D30) -> 166 | F30: Stock insufisant | H30: 100 | I30: H,T
A31: 28 | B31: TUBE - DIM/GAINE - ORANGE / SIMEC
A32: 29 | B32: GAINE ANTI FEU D25 NM DALAFLEX (ISO GRIS) | C32: SIMEC | E32: =SUM('liste des articles'!D32+'Stock-Enter'!D32-'Stock-Sortie'!D32) -> 2500 | F32: Stock Sufisant | G32: 2.5 | H32: 1.7
A33: 30 | B33: GAINE ANTI FEU D20 NM DALAFLEX (ISO GRIS ) | C33: SIMEC | E33: =SUM('liste des articles'!D33+'Stock-Enter'!D33-'Stock-Sortie'!D33) -> 2600 | F33: Stock Sufisant | G33: 1.5 | H33: 1.1
A34: 31 | B34: DIM ORANGE REF 21 DALAFLEX | C34: SIMEC | E34: =SUM('liste des articles'!D34+'Stock-Enter'!D34-'Stock-Sortie'!D34) -> 3200 | F34: Stock Sufisant | G34: 3.25 | H34: 3.04
A35: 32 | B35: DIM ORANGE REF 16 DALAFLEX | C35: SIMEC | E35: =SUM('liste des articles'!D35+'Stock-Enter'!D35-'Stock-Sortie'!D35) -> 1150 | F35: Stock Sufisant | G35: 2.2 | H35: 2.09
A36: 33 | B36: DIM ORANGE REF 13 DALAFLEX | C36: SIMEC | E36: =SUM('liste des articles'!D36+'Stock-Enter'!D36-'Stock-Sortie'!D36) -> 950 | F36: Stock Sufisant | G36: 1.9 | H36: 1.905
A37: 34 | B37: DIM ORANGE REF 11 DALAFLEX | C37: SIMEC | E37: =SUM('liste des articles'!D37+'Stock-Enter'!D37-'Stock-Sortie'!D37) -> 4050 | F37: Stock Sufisant | G37: 1.7 | H37: 1.615
A38: 35 | B38: DIM ORANGE REF 16 SERIG | C38: SIMEC | E38: =SUM('liste des articles'!D38+'Stock-Enter'!D38-'Stock-Sortie'!D38) -> 7150 | F38: Stock Sufisant | G38: 3.4 | H38: 3
A39: 36 | B39: DIM ORANGE REF 13 SERIG | C39: SIMEC | E39: =SUM('liste des articles'!D39+'Stock-Enter'!D39-'Stock-Sortie'!D39) -> 23750 | F39: Stock Sufisant | G39: 2.65 | H39: 2.42
A40: 37 | B40: DIM ORANGE RE 11 SERIG | C40: SIMEC | E40: =SUM('liste des articles'!D40+'Stock-Enter'!D40-'Stock-Sortie'!D40) -> 17700 | F40: Stock Sufisant | G40: 2.3 | H40: 2.05
A41: 38 | B41: DIM ORANGE REF 09 SERIG | C41: SIMEC | E41: =SUM('liste des articles'!D41+'Stock-Enter'!D41-'Stock-Sortie'!D41) -> 12600 | F41: Stock Sufisant | G41: 1.7 | H41: 1.61
A42: 39 | B42: TUBE ANNELE D16 ORANGE | C42: SIMEC | E42: =SUM('liste des articles'!D42+'Stock-Enter'!D42-'Stock-Sortie'!D42) -> 0 | F42: Stock insufisant | G42: 1.4 | H42: 1.18
A43: 40 | B43: TUBE ANNELE D20 ORANGE | C43: SIMEC | E43: =SUM('liste des articles'!D43+'Stock-Enter'!D43-'Stock-Sortie'!D43) -> 0 | F43: Stock insufisant | G43: 1.5 | H43: 1.33
A44: 41 | B44: TUBE ANNELE D25 ORANGE | C44: SIMEC | E44: =SUM('liste des articles'!D44+'Stock-Enter'!D44-'Stock-Sortie'!D44) -> 0 | F44: Stock insufisant | G44: 1.8 | H44: 1.68
A45: 42 | B45: TUBE ANNELE D32 ORANGE | C45: SIMEC | E45: =SUM('liste des articles'!D45+'Stock-Enter'!D45-'Stock-Sortie'!D45) -> 0 | F45: Stock insufisant | G45: 2.3 | H45: 2.02
A46: 43 | B46: DISJONCTEURS
A47: 44 | B47: INTER. DIFF.4X40A 300MA CC440F | C47: SOFA | E47: =SUM('liste des articles'!D47+'Stock-Enter'!D47-'Stock-Sortie'!D47) -> 2 | F47: Stock insufisant | H47: 218 | I47: H,T
A48: 45 | B48: INTER. DIFF.4X63A 300MA CFC463F | C48: SOFA | E48: =SUM('liste des articles'!D48+'Stock-Enter'!D48-'Stock-Sortie'!D48) -> 2 | F48: Stock insufisant | H48: 270 | I48: H,T
A49: 46 | B49: LC1D09M7 | C49: SOFA | E49: =SUM('liste des articles'!D49+'Stock-Enter'!D49-'Stock-Sortie'!D49) -> 2 | F49: Stock insufisant | G49: 140 | H49: 132
A50: 47 | B50: DD 500 MA 4X30/60A | C50: SOFA | E50: =SUM('liste des articles'!D50+'Stock-Enter'!D50-'Stock-Sortie'!D50) -> 2 | F50: Stock insufisant | G50: 1108 | H50: 1104
A51: 48 | B51: DD 500 MA 4X10/30A TNM GARDY | C51: SOFA | E51: =SUM('liste des articles'!D51+'Stock-Enter'!D51-'Stock-Sortie'!D51) -> 4 | F51: Stock insufisant | G51: 580 | H51: 552
A52: 49 | B52: DD 500 MA 2X10/30A TNM GARDY | C52: SOFA | E52: =SUM('liste des articles'!D52+'Stock-Enter'!D52-'Stock-Sortie'!D52) -> 6 | F52: Stock insufisant | G52: 350 | H52: 336
A53: 50 | B53: DD 500 MA 2X5/15 A ANM GARDY | C53: SOLEC | E53: =SUM('liste des articles'!D53+'Stock-Enter'!D53-'Stock-Sortie'!D53) -> 6 | F53: Stock insufisant | G53: 325 | H53: 319
A54: 51 | B54: DISJONCTEUR SECURISE 1P10A | C54: SOFA | D54: 480 | E54: =SUM('liste des articles'!D54+'Stock-Enter'!D54-'Stock-Sortie'!D54) -> 448 | F54: Stock Sufisant | G54: 14 | H54: 13.5
A55: 52 | B55: DISJONCTEUR SECURISE 1P16A | C55: SOLEC | E55: =SUM('liste des articles'!D55+'Stock-Enter'!D55-'Stock-Sortie'!D55) -> 141 | F55: Stock insufisant | G55: 14 | H55: 12
A56: 53 | B56: DISJONCTEUR SECURISE 3P32A | C56: RADIANCE SARL | E56: =SUM('liste des articles'!D56+'Stock-Enter'!D56-'Stock-Sortie'!D56) -> 10 | F56: Stock insufisant | G56: 42.5 | H56: 42
A57: 54 | B57: DISJONCTEUR SECURISE 4P32A | C57: RADIANCE SARL | E57: =SUM('liste des articles'!D57+'Stock-Enter'!D57-'Stock-Sortie'!D57) -> 17 | F57: Stock insufisant | G57: 58 | H57: 55
A58: 55 | B58: DISJONCTEUR SECURISE 1P25A | C58: RADIANCE SARL | E58: =SUM('liste des articles'!D58+'Stock-Enter'!D58-'Stock-Sortie'!D58) -> 84 | F58: Stock insufisant | G58: 14 | H58: 13.6
A59: 56 | B59: DISJONCTEUR SECURISE 1P06A | C59: SOLEC | E59: =SUM('liste des articles'!D59+'Stock-Enter'!D59-'Stock-Sortie'!D59) -> 60 | F59: Stock insufisant | G59: 14 | H59: 12
A60: 57 | B60: DISJONCTEUR SECURISE 2P32A | C60: RADIANCE SARL | E60: =SUM('liste des articles'!D60+'Stock-Enter'!D60-'Stock-Sortie'!D60) -> 20 | F60: Stock insufisant | G60: 32 | H60: 28
A61: 58 | B61: DISJONCTEUR MOD 3KA 4P 40A CDB 6A 4 C40 DELIXI | C61: SOFA | E61: =SUM('liste des articles'!D61+'Stock-Enter'!D61-'Stock-Sortie'!D61) -> 4 | F61: Stock insufisant | H61: 34
A62: 59 | B62: DISJONCTEUR MOD 3KA 2P 20A CDB6A2C20 DELIXI | C62: SOFA | E62: =SUM('liste des articles'!D62+'Stock-Enter'!D62-'Stock-Sortie'!D62) -> 4 | F62: Stock insufisant | H62: 15
A63: 60 | B63: DISJ MOD 3KA 1P 16A DELIXI | C63: SOFA | E63: =SUM('liste des articles'!D63+'Stock-Enter'!D63-'Stock-Sortie'!D63) -> 34 | F63: Stock insufisant | G63: 13 | H63: 10.25
A64: 61 | B64: DISJ MOD 3KA 1P 6A DELIXI | C64: SOFA | E64: =SUM('liste des articles'!D64+'Stock-Enter'!D64-'Stock-Sortie'!D64) -> 44 | F64: Stock insufisant | G64: 13 | H64: 10.25
A65: 62 | B65: DISJ MOD 3KA 2P 16A CDB6A2C16 DELIXI | C65: SOFA | E65: =SUM('liste des articles'!D65+'Stock-Enter'!D65-'Stock-Sortie'!D65) -> 44 | F65: Stock insufisant | G65: 19.1 | H65: 15
A66: 63 | B66: DISJONCTEUR SECURIS 1P 20A | C66: SOLEC | E66: =SUM('liste des articles'!D66+'Stock-Enter'!D66-'Stock-Sortie'!D66) -> 107 | F66: Stock insufisant | G66: 14 | H66: 13.5
A67: 64 | B67: DISJONCTEUR SECURIS 1P+N 10A | C67: RADIANCE SARL | E67: =SUM('liste des articles'!D67+'Stock-Enter'!D67-'Stock-Sortie'!D67) -> 15 | F67: Stock insufisant | G67: 45 | H67: 42
A68: 65 | B68: DISJONCTEUR SECURIS 4P 63 A | C68: SOLEC | E68: =SUM('liste des articles'!D68+'Stock-Enter'!D68-'Stock-Sortie'!D68) -> 0 | F68: Stock insufisant | G68: 160 | H68: 150
A69: =IF(B69=0,"",ROW(A66)) -> 66 | B69: DISJONCTEUR SECURIS 1P 32A | C69: SOLEC | E69: =SUM('liste des articles'!D69+'Stock-Enter'!D69-'Stock-Sortie'!D69) -> 0 | F69: Stock insufisant | G69: 12.5 | H69: 12
A70: 67 | B70: DISJ 6KA C 4PP 63A | C70: SOFA | D70: 6 | E70: =SUM('liste des articles'!D70+'Stock-Enter'!D70-'Stock-Sortie'!D70) -> 12 | F70: Stock insufisant | G70: 395 | H70: 312.7
A71: 68 | B71: DISJ 6KA C4PP 25A REF MCN 425A | C71: SOFA | E71: =SUM('liste des articles'!D71+'Stock-Enter'!D71-'Stock-Sortie'!D71) -> 4 | F71: Stock insufisant | G71: 193 | H71: 153
A72: 69 | B72: DISJ 4,5/6KAC 1PP+N 32A REF MJN 732 | C72: SOFA | E72: =SUM('liste des articles'!D72+'Stock-Enter'!D72-'Stock-Sortie'!D72) -> 11 | F72: Stock insufisant | G72: 52 | H72: 41
A73: 70 | B73: DISJ 6KAC 4PP 40 A REF MCN 440A | C73: SOFA | E73: =SUM('liste des articles'!D73+'Stock-Enter'!D73-'Stock-Sortie'!D73) -> 1 | F73: Stock insufisant | G73: 193 | H73: 153
A74: 71 | B74: DISJ 4,5/6KA C 1PP+N 10A REF MJN 710 | C74: SOFA | E74: =SUM('liste des articles'!D74+'Stock-Enter'!D74-'Stock-Sortie'!D74) -> 12 | F74: Stock insufisant | G74: 54 | H74: 41.3
A75: 72 | B75: DISJ 4,5/6KA C 1PP+N 16A REF MJN 716 | C75: SOFA | E75: =SUM('liste des articles'!D75+'Stock-Enter'!D75-'Stock-Sortie'!D75) -> 7 | F75: Stock insufisant | G75: 54 | H75: 41.3
A76: 73 | B76: DISJ 3KA B 4 PP 16A REF MV416 | C76: SOFA | E76: =SUM('liste des articles'!D76+'Stock-Enter'!D76-'Stock-Sortie'!D76) -> 3 | F76: Stock insufisant | G76: 157 | H76: 123.9
A77: 74 | B77: DISJ 3KA B 4 PP 20A REF MV420 | C77: SOFA | E77: =SUM('liste des articles'!D77+'Stock-Enter'!D77-'Stock-Sortie'!D77) -> 2 | F77: Stock insufisant | G77: 157 | H77: 123.9
A78: 75 | B78: DISJ 3KA B 4 PP 40A REF MV440 | C78: SOFA | D78: 9 | E78: =SUM('liste des articles'!D78+'Stock-Enter'!D78-'Stock-Sortie'!D78) -> 14 | F78: Stock insufisant | G78: 185 | H78: 145.73
A79: 76 | B79: ID 4P 40A 300 MA CDL 7440 TA DELIXI | C79: SOFA | E79: =SUM('liste des articles'!D79+'Stock-Enter'!D79-'Stock-Sortie'!D79) -> 1 | F79: Stock insufisant | G79: 200 | H79: 157
A80: 77 | B80: ID 4P 63A 300 MA CDL 7463 TA/TC DELIXI | C80: SOFA | E80: =SUM('liste des articles'!D80+'Stock-Enter'!D80-'Stock-Sortie'!D80) -> 1 | F80: Stock insufisant | G80: 218 | H80: 173
A81: 78 | B81: AMPER DIGIT 3PHASE 0-9999A | C81: SOFA | E81: =SUM('liste des articles'!D81+'Stock-Enter'!D81-'Stock-Sortie'!D81) -> 2 | F81: Stock insufisant | G81: 425 | H81: 335
A82: 79 | B82: LRD32 | C82: SOFA | E82: =SUM('liste des articles'!D82+'Stock-Enter'!D82-'Stock-Sortie'!D82) -> 3 | F82: Stock insufisant | H82: 310
A83: 80 | B83: LRD22 | C83: SOFA | E83: =SUM('liste des articles'!D83+'Stock-Enter'!D83-'Stock-Sortie'!D83) -> 2 | F83: Stock insufisant | H83: 160
A84: 81 | B84: LRD21 | C84: SOFA | E84: =SUM('liste des articles'!D84+'Stock-Enter'!D84-'Stock-Sortie'!D84) -> 2 | F84: Stock insufisant | H84: 140
A85: 82 | B85: LRD16 | C85: SOFA | E85: =SUM('liste des articles'!D85+'Stock-Enter'!D85-'Stock-Sortie'!D85) -> 2 | F85: Stock insufisant | H85: 140
A86: 83 | B86: LRD14 | C86: SOFA | E86: =SUM('liste des articles'!D86+'Stock-Enter'!D86-'Stock-Sortie'!D86) -> 2 | F86: Stock insufisant | H86: 140
A87: 84 | B87: LC1D25Q7 | C87: SOFA | E87: =SUM('liste des articles'!D87+'Stock-Enter'!D87-'Stock-Sortie'!D87) -> 3 | F87: Stock insufisant | H87: 239
A88: 85 | B88: LC1D18Q7 | C88: SOFA | E88: =SUM('liste des articles'!D88+'Stock-Enter'!D88-'Stock-Sortie'!D88) -> 3 | F88: Stock insufisant | H88: 196
A89: 86 | B89: LC1D12M7 | C89: SOFA | E89: =SUM('liste des articles'!D89+'Stock-Enter'!D89-'Stock-Sortie'!D89) -> 5 | F89: Stock insufisant | H89: 117
A90: 87 | B90: LC1E 80Q5 3P 37KW | C90: SOFA | D90: 5 | E90: =SUM('liste des articles'!D90+'Stock-Enter'!D90-'Stock-Sortie'!D90) -> 5 | F90: Stock insufisant | H90: 1084.5
E91: =SUM('liste des articles'!D91+'Stock-Enter'!D91-'Stock-Sortie'!D91) -> 0 | F91: Stock insufisant
E92: =SUM('liste des articles'!D92+'Stock-Enter'!D92-'Stock-Sortie'!D92) -> 0 | F92: Stock insufisant
E93: =SUM('liste des articles'!D93+'Stock-Enter'!D93-'Stock-Sortie'!D93) -> 0 | F93: Stock insufisant
E94: =SUM('liste des articles'!D94+'Stock-Enter'!D94-'Stock-Sortie'!D94) -> 0 | F94: Stock insufisant
E95: =SUM('liste des articles'!D95+'Stock-Enter'!D95-'Stock-Sortie'!D95) -> 0 | F95: Stock insufisant
E96: =SUM('liste des articles'!D96+'Stock-Enter'!D96-'Stock-Sortie'!D96) -> 0 | F96: Stock insufisant
E97: =SUM('liste des articles'!D97+'Stock-Enter'!D97-'Stock-Sortie'!D97) -> 0 | F97: Stock insufisant
A98: 95 | B98: CABLE - / FIL / K- APLAST -- SYNERGIE
A99: 96 | B99: FIL 10 K-PLAST | C99: K-PLAST | E99: =SUM('liste des articles'!D99+'Stock-Enter'!D99-'Stock-Sortie'!D99) -> 632.99 | F99: Stock Sufisant | G99: 8.1 | H99: 7.65 | J99: 100 M / ROULOU
A100: 97 | B100: FIL 6 K-PLAST | C100: K-PLAST | E100: =SUM('liste des articles'!D100+'Stock-Enter'!D100-'Stock-Sortie'!D100) -> 200 | F100: Stock insufisant | G100: 5.2 | H100: 4.75
A101: 98 | B101: FIL 2,5 K-PLAST | C101: K-PLAST | E101: =SUM('liste des articles'!D101+'Stock-Enter'!D101-'Stock-Sortie'!D101) -> 910 | F101: Stock Sufisant | G101: 2 | H101: 1.9
A102: 99 | B102: FIL 1,5 K-PLAST | C102: K-PLAST | E102: =SUM('liste des articles'!D102+'Stock-Enter'!D102-'Stock-Sortie'!D102) -> 1500 | F102: Stock Sufisant | G102: 1.16 | H102: 1.08
A103: 100 | B103: FIL 10 SC | C103: SYNERGIE CABLE | E103: =SUM('liste des articles'!D103+'Stock-Enter'!D103-'Stock-Sortie'!D103) -> 1500 | F103: Stock Sufisant | G103: 7.52 | H103: 7.1
A104: 101 | B104: FIL 6 SC | C104: SYNERGIE CABLE | E104: =SUM('liste des articles'!D104+'Stock-Enter'!D104-'Stock-Sortie'!D104) -> 3400 | F104: =IF(E104>300,"Stock Sufisant","Stock insufisant") -> Stock Sufisant | G104: 4.8 | H104: 4.5
A105: 102 | B105: FIL 1,5 SC | C105: SYNERGIE CABLE | E105: =SUM('liste des articles'!D105+'Stock-Enter'!D105-'Stock-Sortie'!D105) -> 2000 | F105: Stock Sufisant | G105: 1.06 | H105: 1
A106: 103 | B106: FIL 2,5 SC | C106: SYNERGIE CABLE | E106: =SUM('liste des articles'!D106+'Stock-Enter'!D106-'Stock-Sortie'!D106) -> 1123 | F106: Stock Sufisant | G106: 1.78 | H106: 1.68
A107: 104 | B107: CABLE SC 4X6 | C107: SEFROUELC | E107: =SUM('liste des articles'!D107+'Stock-Enter'!D107-'Stock-Sortie'!D107) -> 0 | F107: Stock insufisant | G107: 26.5 | H107: 25 | I107: H,T
A108: 105 | B108: CABLE SC 2X6 | C108: SYNERGIE CABLE | E108: =SUM('liste des articles'!D108+'Stock-Enter'!D108-'Stock-Sortie'!D108) -> 328 | F108: Stock Sufisant | G108: 13.8 | H108: 10.5 | I108: H,T
A109: 106 | B109: CABLE SC 2X10 | C109: SYNERGIE CABLE | E109: =SUM('liste des articles'!D109+'Stock-Enter'!D109-'Stock-Sortie'!D109) -> 200 | F109: Stock insufisant | G109: 22.5 | H109: 17.25 | I109: H,T
A110: 107 | B110: CABLE SC 4X10 | C110: SYNERGIE CABLE | E110: =SUM('liste des articles'!D110+'Stock-Enter'!D110-'Stock-Sortie'!D110) -> 100 | F110: Stock insufisant
E111: =SUM('liste des articles'!D111+'Stock-Enter'!D111-'Stock-Sortie'!D111) -> 0 | F111: Stock insufisant
E112: =SUM('liste des articles'!D112+'Stock-Enter'!D112-'Stock-Sortie'!D112) -> 0 | F112: Stock insufisant
E113: =SUM('liste des articles'!D113+'Stock-Enter'!D113-'Stock-Sortie'!D113) -> 0 | F113: Stock insufisant
E114: =SUM('liste des articles'!D114+'Stock-Enter'!D114-'Stock-Sortie'!D114) -> 0 | F114: Stock insufisant
E115: =SUM('liste des articles'!D115+'Stock-Enter'!D115-'Stock-Sortie'!D115) -> 0 | F115: Stock insufisant
E116: =SUM('liste des articles'!D116+'Stock-Enter'!D116-'Stock-Sortie'!D116) -> 0 | F116: Stock insufisant
A117: 114 | B117: ARTICLES VARRIES LAP / SOLEC/ JATA
A118: 115 | B118: PINCE D'ANCRAGE LAP 2X16 à 4X25 | C118: SOLEC/LAP | E118: =SUM('liste des articles'!D118+'Stock-Enter'!D118-'Stock-Sortie'!D118) -> 1997 | F118: Stock Sufisant | G118: 5 | H118: 4.5
A119: 116 | B119: HUBLOT ROND B22 BLANC "ECO" | C119: LAP | E119: =SUM('liste des articles'!D119+'Stock-Enter'!D119-'Stock-Sortie'!D119) -> 140 | F119: Stock insufisant | G119: 14.2 | H119: 13.39
A120: 117 | B120: COFFRET ENCAS 14 MOD + DIS FUME | C120: LAP | E120: =SUM('liste des articles'!D120+'Stock-Enter'!D120-'Stock-Sortie'!D120) -> 44 | F120: Stock insufisant | H120: 28.84
A121: 118 | B121: PRISE 2P+T AURGHE | C121: LAP | E121: =SUM('liste des articles'!D121+'Stock-Enter'!D121-'Stock-Sortie'!D121) -> 70 | F121: Stock insufisant | G121: 21 | H121: 16.48
A122: 119 | B122: PRISE 2P AURGHE | C122: LAP | E122: =SUM('liste des articles'!D122+'Stock-Enter'!D122-'Stock-Sortie'!D122) -> 70 | F122: Stock insufisant | G122: 15.3 | H122: 14.42
A123: 120 | B123: PRISE 3P+T 20 A 380 BLANC | C123: LAP | E123: =SUM('liste des articles'!D123+'Stock-Enter'!D123-'Stock-Sortie'!D123) -> 70 | F123: Stock insufisant | G123: 27.3 | H123: 25.75
A124: 121 | B124: FICHE 3P+T 20A 380V BLANC | C124: LAP | E124: =SUM('liste des articles'!D124+'Stock-Enter'!D124-'Stock-Sortie'!D124) -> 80 | F124: Stock insufisant | H124: 20.6
A125: 122 | B125: DOUILLE E27 | C125: LAP | E125: =SUM('liste des articles'!D125+'Stock-Enter'!D125-'Stock-Sortie'!D125) -> 1100 | F125: Stock Sufisant | G125: 3.6 | H125: 3.2
A126: 123 | B126: HUBLOT OVAL EN VERRE + GM E27 NO | C126: LAP | E126: =SUM('liste des articles'!D126+'Stock-Enter'!D126-'Stock-Sortie'!D126) -> 52 | F126: Stock insufisant | G126: 22.3 | H126: 21.03
A127: 124 | B127: HUBLOT OVAL EN VERRE + GP E27 BL | C127: LAP | E127: =SUM('liste des articles'!D127+'Stock-Enter'!D127-'Stock-Sortie'!D127) -> 42 | F127: Stock insufisant | G127: 21.6 | H127: 17
A128: 125 | B128: COFFRET ENCAS 12 MOD FUME | C128: LAP | E128: =SUM('liste des articles'!D128+'Stock-Enter'!D128-'Stock-Sortie'!D128) -> 40 | F128: Stock insufisant | H128: 20.6
A129: 126 | B129: COFFRET APPA 12 MOD PORTE OPAL | C129: LAP | E129: =SUM('liste des articles'!D129+'Stock-Enter'!D129-'Stock-Sortie'!D129) -> 20 | F129: Stock insufisant | H129: 23.69
A130: 127 | B130: COFFRET APPA 4 MOD | C130: LAP | E130: =SUM('liste des articles'!D130+'Stock-Enter'!D130-'Stock-Sortie'!D130) -> 48 | F130: Stock insufisant | H130: 2.94
A131: 128 | B131: COFFRET APPA 2 MOD | C131: LAP | E131: =SUM('liste des articles'!D131+'Stock-Enter'!D131-'Stock-Sortie'!D131) -> 50 | F131: Stock insufisant | H131: 2.17
A132: 129 | B132: BOITE CHEVILLE EN PLAST Q 10 | C132: LAP | E132: =SUM('liste des articles'!D132+'Stock-Enter'!D132-'Stock-Sortie'!D132) -> 530 | F132: Stock Sufisant | G132: 6.601 | H132: 6.19
A133: =IF(B133=0,"",ROW(A130)) -> 130 | B133: BOITE CHEVILLE EN PLAST Q 8 | C133: LAP | E133: =SUM('liste des articles'!D133+'Stock-Enter'!D133-'Stock-Sortie'!D133) -> 820 | F133: Stock Sufisant | G133: 6.6 | H133: 6.19
A134: 131 | B134: BOITE CHEVILLE EN PLAST Q 7 | C134: LAP | E134: =SUM('liste des articles'!D134+'Stock-Enter'!D134-'Stock-Sortie'!D134) -> 250 | F134: Stock insufisant | H134: 5.67
A135: 132 | B135: BOITE CHEVILLE EN PLAST Q 6 | C135: LAP | E135: =SUM('liste des articles'!D135+'Stock-Enter'!D135-'Stock-Sortie'!D135) -> 250 | F135: Stock insufisant | H135: 5.15
A136: 133 | B136: BOITE DERIVATION 160*160*65 MM | C136: LAP | E136: =SUM('liste des articles'!D136+'Stock-Enter'!D136-'Stock-Sortie'!D136) -> 200 | F136: Stock insufisant | H136: 5.56
A137: 134 | B137: BOITE DERIVATION 130*130*55 MM | C137: LAP | E137: =SUM('liste des articles'!D137+'Stock-Enter'!D137-'Stock-Sortie'!D137) -> 500 | F137: Stock Sufisant | H137: 3.48
A138: 135 | B138: BOITE DERIVATION 100*100*45 MM | C138: LAP | E138: =SUM('liste des articles'!D138+'Stock-Enter'!D138-'Stock-Sortie'!D138) -> 100 | F138: Stock insufisant | H138: 2.63
A139: 136 | B139: BOITE DERIVATION 80*80*40 MM | C139: LAP | E139: =SUM('liste des articles'!D139+'Stock-Enter'!D139-'Stock-Sortie'!D139) -> 100 | F139: Stock insufisant | H139: 1.86
A140: 137 | B140: POUSSOIR LUM AURGHE | C140: LAP | E140: =SUM('liste des articles'!D140+'Stock-Enter'!D140-'Stock-Sortie'!D140) -> 90 | F140: Stock insufisant | G140: 19.9 | H140: 18.75
A141: 138 | B141: INTER DBLE VA ET VIENT AURGHE | C141: LAP | E141: =SUM('liste des articles'!D141+'Stock-Enter'!D141-'Stock-Sortie'!D141) -> 70 | F141: Stock insufisant | G141: 30.9 | H141: 29.15
A142: 139 | B142: INTER VA ET VIENT AURGHE | C142: LAP | E142: =SUM('liste des articles'!D142+'Stock-Enter'!D142-'Stock-Sortie'!D142) -> 60 | F142: Stock insufisant | G142: 16.15 | H142: 15.24
A143: 140 | B143: HUBLOT ROND EN VERRE B22 BLANC LAP 2006 | C143: LAP | E143: =SUM('liste des articles'!D143+'Stock-Enter'!D143-'Stock-Sortie'!D143) -> 70 | F143: Stock insufisant | G143: 27.5 | H143: 25.95
A144: 141 | B144: COFFRET ENCAS 12 MOD OPAL | C144: LAP | E144: =SUM('liste des articles'!D144+'Stock-Enter'!D144-'Stock-Sortie'!D144) -> 475 | F144: Stock Sufisant | H144: 19.57
A145: 142 | B145: COFFRET APPA 16 MOD + DIS OPAL | C145: LAP | E145: =SUM('liste des articles'!D145+'Stock-Enter'!D145-'Stock-Sortie'!D145) -> 12 | F145: Stock insufisant | H145: 38.11
A146: 143 | B146: BOITE CHEVILLE EN PLAST Q 12 | C146: LAP | E146: =SUM('liste des articles'!D146+'Stock-Enter'!D146-'Stock-Sortie'!D146) -> 200 | F146: Stock insufisant | H146: 7.72
A147: 144 | B147: BOITE D'ENCASTREMENT CARREE GR | C147: LAP | E147: =SUM('liste des articles'!D147+'Stock-Enter'!D147-'Stock-Sortie'!D147) -> 1420 | F147: Stock Sufisant | G147: 2.05 | H147: 1.95
A148: 145 | B148: RENVOI D'ANGLE METALLIQUE | C148: LAP | E148: =SUM('liste des articles'!D148+'Stock-Enter'!D148-'Stock-Sortie'!D148) -> 300 | F148: Stock insufisant | H148: 4.12
A149: 146 | B149: RALLONGE 5M 2,5A LAP | C149: LAP | E149: =SUM('liste des articles'!D149+'Stock-Enter'!D149-'Stock-Sortie'!D149) -> 258 | F149: Stock insufisant | G149: 20.7 | H149: 19.57
A150: 147 | B150: PRISE RJ45 CAT 5 SIMPLE 550B | C150: LAP | E150: =SUM('liste des articles'!D150+'Stock-Enter'!D150-'Stock-Sortie'!D150) -> 80 | F150: Stock insufisant | G150: 23.3 | H150: 22
A151: 148 | B151: BOITE D'ENCASTREMENT Q6 LAP | C151: LAP | E151: =SUM('liste des articles'!D151+'Stock-Enter'!D151-'Stock-Sortie'!D151) -> 4950 | F151: Stock Sufisant | G151: 0.38 | H151: 0.35
A152: 149 | B152: APPLIQUE LAVABO 2P+T+INTERRUPT LAP | C152: LAP | E152: =SUM('liste des articles'!D152+'Stock-Enter'!D152-'Stock-Sortie'!D152) -> 183 | F152: Stock insufisant | G152: 28.4 | H152: 26.78
A153: 150 | B153: HUBLOT ROND EN VERRE GP B22 BLANC LAP 2006 GP B22 | C153: LAP | E153: =SUM('liste des articles'!D153+'Stock-Enter'!D153-'Stock-Sortie'!D153) -> 36 | F153: Stock insufisant | H153: 29.92
A154: 151 | B154: =UPPER("hublot rond en verre b22 blanc lap 2000v") -> HUBLOT ROND EN VERRE B22 BLANC LAP 2000V | C154: lap | E154: =SUM('liste des articles'!D154+'Stock-Enter'!D154-'Stock-Sortie'!D154) -> 60 | F154: Stock insufisant | G154: 31.7 | H154: 29.92
A155: 152 | B155: COFFRET APPA 6MOD LAP | C155: LAP | E155: =SUM('liste des articles'!D155+'Stock-Enter'!D155-'Stock-Sortie'!D155) -> 22 | F155: Stock insufisant | G155: 4.4 | H155: 4.12
A156: 153 | B156: COFFRET APPA 8 MOD LAP | C156: LAP | E156: =SUM('liste des articles'!D156+'Stock-Enter'!D156-'Stock-Sortie'!D156) -> 20 | F156: Stock insufisant | G156: 6.6 | H156: 6.19
A157: 154 | B157: PATERE DROITE E27 LAP | C157: LAP | E157: =SUM('liste des articles'!D157+'Stock-Enter'!D157-'Stock-Sortie'!D157) -> 348 | F157: Stock Sufisant | G157: 6 | H157: 5.68
A158: 155 | B158: PATERE DROITE AVEC DOUILLE B22 LAP | C158: LAP | E158: =SUM('liste des articles'!D158+'Stock-Enter'!D158-'Stock-Sortie'!D158) -> 370 | F158: Stock Sufisant | G158: 5.7 | H158: 5.36
A159: 156 | B159: PATERE E27 INCLINEE LAP | C159: LAP | E159: =SUM('liste des articles'!D159+'Stock-Enter'!D159-'Stock-Sortie'!D159) -> 370 | F159: Stock Sufisant | G159: 5.5 | H159: 5.15
A160: 157 | B160: COFFRET 12 MOD SANS PORTE LAP | C160: LAP | E160: =SUM('liste des articles'!D160+'Stock-Enter'!D160-'Stock-Sortie'!D160) -> 30 | F160: Stock insufisant | G160: 21.8 | H160: 20.6
A161: 158 | B161: INTERRRUPTEUR V&V GALAXY MARRON | C161: LAP | E161: =SUM('liste des articles'!D161+'Stock-Enter'!D161-'Stock-Sortie'!D161) -> 220 | F161: Stock insufisant | G161: 16.9 | H161: 15.92
A162: 159 | B162: BOITE ETANCHE 80*8 | C162: LAP | E162: =SUM('liste des articles'!D162+'Stock-Enter'!D162-'Stock-Sortie'!D162) -> 120 | F162: Stock insufisant | H162: 2.95
A163: 160 | B163: BOITE ETANCHE 80*40 LAP | C163: LAP | E163: =SUM('liste des articles'!D163+'Stock-Enter'!D163-'Stock-Sortie'!D163) -> 90 | F163: Stock insufisant | G163: 1.92 | H163: 1.8
A164: 161 | B164: FICHE 2P+T FEMELLE BLAC LAP | C164: LAP | E164: =SUM('liste des articles'!D164+'Stock-Enter'!D164-'Stock-Sortie'!D164) -> 2000 | F164: Stock Sufisant | G164: 5.25 | H164: 4.96
A165: 162 | B165: FICHE 2P+T MAL BLANC LAP | C165: LAP | E165: =SUM('liste des articles'!D165+'Stock-Enter'!D165-'Stock-Sortie'!D165) -> 2620 | F165: Stock Sufisant | G165: 4.4 | H165: 4.13
A166: 163 | B166: INTER*DBLE V&V GALAXU MARRON | C166: LAP | E166: =SUM('liste des articles'!D166+'Stock-Enter'!D166-'Stock-Sortie'!D166) -> 80 | F166: Stock insufisant | G166: 29 | H166: 27.41
A167: 164 | B167: PRISE TELEVISION GALAXY MARRON | C167: LAP | E167: =SUM('liste des articles'!D167+'Stock-Enter'!D167-'Stock-Sortie'!D167) -> 50 | F167: Stock insufisant | G167: 27.8 | H167: 26.28
A168: 165 | B168: POUSSOIR INVERSSEUR RIDEAUX GALAXY | C168: LAP | E168: =SUM('liste des articles'!D168+'Stock-Enter'!D168-'Stock-Sortie'!D168) -> 50 | F168: Stock insufisant | G168: 34 | H168: 32
A169: 166 | B169: PRISE 2P+T GALAXY MARRON | C169: LAP | E169: =SUM('liste des articles'!D169+'Stock-Enter'!D169-'Stock-Sortie'!D169) -> 80 | F169: =IF(E169>300,"Stock Sufisant","Stock insufisant") -> Stock insufisant | G169: 16.5 | H169: 15.6
A170: 167 | B170: PRISE 2P GALAXY MARRON | C170: LAP | E170: =SUM('liste des articles'!D170+'Stock-Enter'!D170-'Stock-Sortie'!D170) -> 70 | F170: Stock insufisant | G170: 12.75 | H170: 12.05
A171: 168 | B171: SORTIE DE FILE GALAXY MARRON | C171: LAP | E171: =SUM('liste des articles'!D171+'Stock-Enter'!D171-'Stock-Sortie'!D171) -> 340 | F171: Stock Sufisant | G171: 10.8 | H171: 10.17
A172: 169 | B172: POUSSOIR ROND LUM GALAXY MARRON | C172: LAP | E172: =SUM('liste des articles'!D172+'Stock-Enter'!D172-'Stock-Sortie'!D172) -> 90 | F172: Stock insufisant | G172: 23.3 | H172: 22.02
A173: 170 | B173: COFFRET ENCASTRE 8 MOD OPAL LAP | C173: LAP | E173: =SUM('liste des articles'!D173+'Stock-Enter'!D173-'Stock-Sortie'!D173) -> 130 | F173: Stock insufisant | G173: 19.6 | H173: 18.54
A174: 171 | B174: COFFRET ENCASTRE 20 MOD+DIS OPAL | C174: LAP | E174: =SUM('liste des articles'!D174+'Stock-Enter'!D174-'Stock-Sortie'!D174) -> 391 | F174: Stock Sufisant | G174: 60 | H174: 56.65
A175: 172 | B175: INTERRUPTEUR SA GALAXY MARRON | C175: LAP | E175: =SUM('liste des articles'!D175+'Stock-Enter'!D175-'Stock-Sortie'!D175) -> 300 | F175: Stock insufisant | G175: 12.75 | H175: 12.05
A176: 173 | B176: INTERRUPTEUR DA GALAXY MARRON | C176: LAP | E176: =SUM('liste des articles'!D176+'Stock-Enter'!D176-'Stock-Sortie'!D176) -> 130 | F176: Stock insufisant | G176: 25.5 | H176: 24.11
A177: 174 | B177: PRISE RJ11 GALAXY MARRON | C177: LAP | E177: =SUM('liste des articles'!D177+'Stock-Enter'!D177-'Stock-Sortie'!D177) -> 80 | F177: Stock insufisant | G177: 32 | H177: 30.25
A178: 175 | B178: PRISE 8 BROCHES GALAXY MARRON | C178: LAP | E178: =SUM('liste des articles'!D178+'Stock-Enter'!D178-'Stock-Sortie'!D178) -> 20 | F178: Stock insufisant | G178: 32 | H178: 30.25
A179: 176 | B179: COFFRET ENCASTRE 14 MOD+DIS OPAL | C179: LAP | E179: =SUM('liste des articles'!D179+'Stock-Enter'!D179-'Stock-Sortie'!D179) -> 576 | F179: Stock Sufisant | G179: 29.5 | H179: 27.86
A180: 177 | B180: COFFRET ENCASTRE 24 MOD OPAL | C180: LAP | E180: =SUM('liste des articles'!D180+'Stock-Enter'!D180-'Stock-Sortie'!D180) -> 60 | F180: Stock insufisant | G180: 29.5 | H180: 27.86
A181: 178 | B181: BOITE ETANCHE ACHIC 180X140 | C181: LAP | E181: =SUM('liste des articles'!D181+'Stock-Enter'!D181-'Stock-Sortie'!D181) -> 350 | F181: Stock Sufisant | G181: 12.6 | H181: 11.86
A182: 179 | B182: BOITE ETANCHE ACHIC 100X100 | C182: LAP | E182: =SUM('liste des articles'!D182+'Stock-Enter'!D182-'Stock-Sortie'!D182) -> 778 | F182: Stock Sufisant | G182: 5 | H182: 4.36
A183: 180 | B183: BOITE ETANCHE ACHIC 240X180 | C183: LAP | E183: =SUM('liste des articles'!D183+'Stock-Enter'!D183-'Stock-Sortie'!D183) -> 270 | F183: =IF(E183>300,"Stock Sufisant","Stock insufisant") -> Stock insufisant | G183: 19 | H183: 18.04
A184: 181 | B184: REFLECTEUR POUR PROJECT PHILIPS | C184: JATA | E184: =SUM('liste des articles'!D184+'Stock-Enter'!D184-'Stock-Sortie'!D184) -> 11 | F184: =IF(E184>300,"Stock Sufisant","Stock insufisant") -> Stock insufisant | G184: 200 | H184: 185
A185: 182 | B185: IINVERSEUR 32 AMP 380V | C185: JATA | E185: =SUM('liste des articles'!D185+'Stock-Enter'!D185-'Stock-Sortie'!D185) -> 4 | F185: =IF(E185>300,"Stock Sufisant","Stock insufisant") -> Stock insufisant | G185: 540 | H185: 515
A186: 183 | B186: SECTIONNEUR 4X100 AMP | C186: JATA | E186: =SUM('liste des articles'!D186+'Stock-Enter'!D186-'Stock-Sortie'!D186) -> 28 | F186: =IF(E186>300,"Stock Sufisant","Stock insufisant") -> Stock insufisant | G186: 190 | H186: 178
A187: 184 | B187: ARMATURE RC 380 | C187: JATA | E187: =SUM('liste des articles'!D187+'Stock-Enter'!D187-'Stock-Sortie'!D187) -> 1 | F187: =IF(E187>300,"Stock Sufisant","Stock insufisant") -> Stock insufisant | G187: 500 | H187: 416
A188: 185 | B188: SOFA
C189: CABLE / FIL / SOUPLE / ARME -- SOFA
A190: 187 | B190: CABLE SE1V 3X6.00 MM² | C190: SOFA | E190: =SUM('liste des articles'!D190+'Stock-Enter'!D190-'Stock-Sortie'!D190) -> 100 | F190: Stock insufisant | G190: 17.7 | H190: 13.9 | I190: H,T | J190: *
A191: 188 | B191: CABLE SE1V 4X16.00 MM² | C191: SOFA | E191: =SUM('liste des articles'!D191+'Stock-Enter'!D191-'Stock-Sortie'!D191) -> 190 | F191: =IF(E191>300,"Stock Sufisant","Stock insufisant") -> Stock insufisant | G191: 59.8 | H191: 47 | I191: H,T | J191: *
A192: 189 | B192: CABLE SE1V 3X16.00 MM² | E192: =SUM('liste des articles'!D192+'Stock-Enter'!D192-'Stock-Sortie'!D192) -> 0 | F192: =IF(E192>300,"Stock Sufisant","Stock insufisant") -> Stock insufisant
A193: 190 | B193: CABLE SE1V 3X6 MM² | C193: SOFA | E193: =SUM('liste des articles'!D193+'Stock-Enter'!D193-'Stock-Sortie'!D193) -> 100 | F193: Stock insufisant | G193: 17.7 | H193: 13.9 | I193: H,T
A194: 191 | B194: CABLE SE1V 5X2,50 MM² | C194: SOFA | E194: =SUM('liste des articles'!D194+'Stock-Enter'!D194-'Stock-Sortie'!D194) -> 0 | F194: Stock insufisant | G194: 14.5 | H194: 11.4 | I194: H,T
A195: 192 | B195: CABLE SE1V 3X4 MM² H05VVF IMA | C195: SOFA | E195: =SUM('liste des articles'!D195+'Stock-Enter'!D195-'Stock-Sortie'!D195) -> 100 | F195: Stock insufisant | G195: 12.9 | H195: 10.1 | I195: H,T | J195: *
A196: 193 | B196: CABLE SE1V 3X2,5 MM² | C196: SOFA | E196: =SUM('liste des articles'!D196+'Stock-Enter'!D196-'Stock-Sortie'!D196) -> 0 | F196: Stock insufisant | H196: 6.6 | I196: H,T
A197: =IF(B197=0,"",ROW(A194)) -> 194 | B197: CABLE SE1V 4X1 MM² TUM/ALM | C197: SOFA | E197: =SUM('liste des articles'!D197+'Stock-Enter'!D197-'Stock-Sortie'!D197) -> 1000 | F197: Stock Sufisant | G197: 4.75 | H197: 3.73 | I197: H,T | J197: *
A198: 195 | B198: CABLE U500 SV 4 MM² V-J (H07V-K) | C198: SOFA | E198: =SUM('liste des articles'!D198+'Stock-Enter'!D198-'Stock-Sortie'!D198) -> 1100 | F198: Stock Sufisant | G198: 4.14 | H198: 3.25 | I198: H,T | J198: *
A199: 196 | B199: CABLE U500 SV 4 MM² BLEU (H07V-K) | C199: SOFA | E199: =SUM('liste des articles'!D199+'Stock-Enter'!D199-'Stock-Sortie'!D199) -> 1000 | F199: Stock Sufisant | G199: 4.14 | H199: 3.25 | I199: H,T | J199: *
A200: 197 | B200: CABLE U500 SV 4 MM² ROUGE (H07V-K) | C200: SOFA | E200: =SUM('liste des articles'!D200+'Stock-Enter'!D200-'Stock-Sortie'!D200) -> 1200 | F200: Stock Sufisant | G200: 4.14 | H200: 3.25 | I200: H,T | J200: *
... 12725 more rows

Sheet Stock-Sortie
A1: REF | B1: DESIGNATION | C1: FOURNISSEUR | D1: STOCK INT | E1: Stock Final | F1: Alert | G1: PRIX U T.T.C V | H1: PRIX U T.T.C.A | J1: Quantité Par Unité | K1: DATE DE SORTIE
B2: COFFRETS
B3: 1 | C3: COFFRETS OGE
A4: =IF(B4=0,"",ROW(A1)) -> 1 | B4: COF TICHKA JADID C/C 30A | C4: OGE | D4: 411 | E4: =SUM('liste des articles'!D4+'Stock-Enter'!D4-'Stock-Sortie'!D4) -> 924 | F4: =IF(E4>300,"Stock Sufisant","Stock insufisant") -> Stock Sufisant | G4: =SUM('liste des articles'!G4) -> 100 | H4: =SUM('liste des articles'!H4) -> 75 | K4: 17-09-06-04/06/2014
A5: =IF(B5=0,"",ROW(A2)) -> 2 | B5: COF MEDINA C/C 30A ONE | C5: OGE | D5: 363 | E5: =SUM('liste des articles'!D5+'Stock-Enter'!D5-'Stock-Sortie'!D5) -> 1366 | F5: Stock Sufisant | G5: =SUM('liste des articles'!G5) -> 103 | H5: =SUM('liste des articles'!H5) -> 96 | K5: 11-09-04/06/2014
A6: 3 | B6: COF TICHKA JADID SS C/C | C6: OGE | D6: 58 | E6: =SUM('liste des articles'!D6+'Stock-Enter'!D6-'Stock-Sortie'!D6) -> 260 | F6: Stock insufisant | G6: =SUM('liste des articles'!G6) -> 82 | H6: =SUM('liste des articles'!H6) -> 78 | K6: 17-02-04/06/2014
A7: 4 | B7: COF PAN 4 HUB 4X2 C/C 80A | C7: OGE | E7: =SUM('liste des articles'!D7+'Stock-Enter'!D7-'Stock-Sortie'!D7) -> 24 | F7: Stock insufisant | G7: =SUM('liste des articles'!G7) -> 525 | H7: =SUM('liste des articles'!H7) -> 495.42
A8: 5 | B8: COF TICHKA C/C 30A ONE | C8: OGE | D8: 6 | E8: =SUM('liste des articles'!D8+'Stock-Enter'!D8-'Stock-Sortie'!D8) -> 202 | F8: Stock insufisant | G8: =SUM('liste des articles'!G8) -> 113 | H8: =SUM('liste des articles'!H8) -> 106.06 | K8: 2014-06-11
A9: 6 | B9: GAINE THERM GR10-35 10M | C9: OGE | D9: 12 | E9: =SUM('liste des articles'!D9+'Stock-Enter'!D9-'Stock-Sortie'!D9) -> 13 | F9: Stock insufisant | G9: =SUM('liste des articles'!G9) -> 95 | H9: =SUM('liste des articles'!H9) -> 87.6 | K9: 2014-06-17
A10: 7 | B10: GAINE THERM GR50-150 10M | C10: OGE | D10: 3 | E10: =SUM('liste des articles'!D10+'Stock-Enter'!D10-'Stock-Sortie'!D10) -> 7 | F10: Stock insufisant | G10: =SUM('liste des articles'!G10) -> 255 | H10: =SUM('liste des articles'!H10) -> 240 | K10: 2014-06-04
A11: 8 | B11: EXTREM THERMO E2R 10-35 | C11: OGE | D11: 3 | E11: =SUM('liste des articles'!D11+'Stock-Enter'!D11-'Stock-Sortie'!D11) -> 10 | F11: Stock insufisant | G11: =SUM('liste des articles'!G11) -> 30 | H11: =SUM('liste des articles'!H11) -> 28.2 | K11: 2014-06-04
A12: 9 | B12: EXTREM THERMO E4R 10-35 | C12: OGE | E12: =SUM('liste des articles'!D12+'Stock-Enter'!D12-'Stock-Sortie'!D12) -> 12 | F12: Stock insufisant | G12: =SUM('liste des articles'!G12) -> 37 | H12: =SUM('liste des articles'!H12) -> 34.56
A13: 10 | B13: COF DIST ETA 6D80A MONO | C13: OGE | E13: =SUM('liste des articles'!D13+'Stock-Enter'!D13-'Stock-Sortie'!D13) -> 6 | F13: Stock insufisant | G13: =SUM('liste des articles'!G13) -> 410 | H13: =SUM('liste des articles'!H13) -> 385.62
A14: 11 | B14: COF DIST ETA 4D80A MONO | C14: OGE | E14: =SUM('liste des articles'!D14+'Stock-Enter'!D14-'Stock-Sortie'!D14) -> 8 | F14: Stock insufisant | G14: =SUM('liste des articles'!G14) -> 350 | H14: =SUM('liste des articles'!H14) -> 331.6
A15: 12 | B15: COF TOUBKAL C/C 80A ONE | C15: OGE | D15: 27 | E15: =SUM('liste des articles'!D15+'Stock-Enter'!D15-'Stock-Sortie'!D15) -> 5 | F15: Stock insufisant | G15: =SUM('liste des articles'!G15) -> 190 | H15: =SUM('liste des articles'!H15) -> 180 | K15: 2014-06-04
A16: 13 | B16: COF NOVINTER 1A50+3D25 | C16: OGE | E16: =SUM('liste des articles'!D16+'Stock-Enter'!D16-'Stock-Sortie'!D16) -> 0 | F16: Stock insufisant | G16: =SUM('liste des articles'!G16) -> 122 | H16: =SUM('liste des articles'!H16) -> 115.2
A17: 14 | B17: COF FACADE 1A50+1DTO 50 | C17: OGE | D17: 2 | E17: =SUM('liste des articles'!D17+'Stock-Enter'!D17-'Stock-Sortie'!D17) -> 29 | F17: Stock insufisant | G17: =SUM('liste des articles'!G17) -> 590 | H17: =SUM('liste des articles'!H17) -> 554.66 | K17: 2014-06-04
A18: 15 | B18: COF NOVIN.1A5O+1DTOO 50 | C18: OGE | D18: 4 | E18: =SUM('liste des articles'!D18+'Stock-Enter'!D18-'Stock-Sortie'!D18) -> 36 | F18: Stock insufisant | G18: =SUM('liste des articles'!G18) -> 310 | H18: =SUM('liste des articles'!H18) -> 293.47
C19: COFFRETS SAFILUM
A20: 17 | B20: COFFRET 2FILS ONE | C20: SAF | E20: =SUM('liste des articles'!D20+'Stock-Enter'!D20-'Stock-Sortie'!D20) -> 8 | F20: Stock insufisant | G20: =SUM('liste des articles'!G20) -> 100 | H20: =SUM('liste des articles'!H20) -> 90
A21: 18 | B21: COFFRET 4FILS ONE | C21: SAF | E21: =SUM('liste des articles'!D21+'Stock-Enter'!D21-'Stock-Sortie'!D21) -> 3 | F21: Stock insufisant | G21: =SUM('liste des articles'!G21) -> 190 | H21: =SUM('liste des articles'!H21) -> 180
A22: 19 | B22: COFFRET 14+D ALPHA | C22: SAF | D22: 12 | E22: =SUM('liste des articles'!D22+'Stock-Enter'!D22-'Stock-Sortie'!D22) -> 20 | F22: Stock insufisant | G22: =SUM('liste des articles'!G22) -> 28.6 | H22: =SUM('liste des articles'!H22) -> 27 | K22: 11-04/06/2014
A23: 20 | B23: HUBLOT ROND FLORIDA DORE | C23: SAF | E23: =SUM('liste des articles'!D23+'Stock-Enter'!D23-'Stock-Sortie'!D23) -> 34 | F23: Stock insufisant | G23: =SUM('liste des articles'!G23) -> 16.95 | H23: =SUM('liste des articles'!H23) -> 15.99
A24: 21 | B24: LUMINAIRE ASNI 125W | C24: SAF | D24: 19 | E24: =SUM('liste des articles'!D24+'Stock-Enter'!D24-'Stock-Sortie'!D24) -> 171 | F24: Stock insufisant | G24: =SUM('liste des articles'!G24) -> 175 | H24: =SUM('liste des articles'!H24) -> 165 | K24: 11-04/06/2014
A25: 22 | B25: HUBLOT ROND FLORIDA GRIS | C25: SAF | E25: =SUM('liste des articles'!D25+'Stock-Enter'!D25-'Stock-Sortie'!D25) -> 24 | F25: =IF(E25>300,"Stock Sufisant","Stock insufisant") -> Stock insufisant | G25: =SUM('liste des articles'!G25) -> 23.31 | H25: =SUM('liste des articles'!H25) -> 21.99
A26: 23 | B26: HUBLOT ROND REF 1106 CEVIZ SAFILUM | C26: SAF/SEFROUELEC | D26: 4 | E26: =SUM('liste des articles'!D26+'Stock-Enter'!D26-'Stock-Sortie'!D26) -> 46 | F26: Stock insufisant | G26: =SUM('liste des articles'!G26) -> 37 | H26: =SUM('liste des articles'!H26) -> 35 | K26: 2014-06-04
A27: 24 | B27: HUBLOT ROND REF 1102 CEVIZ SAFILUM | C27: SAF/SEFROUELEC | D27: 8 | E27: =SUM('liste des articles'!D27+'Stock-Enter'!D27-'Stock-Sortie'!D27) -> 36 | F27: Stock insufisant | G27: =SUM('liste des articles'!G27) -> 32 | H27: =SUM('liste des articles'!H27) -> 30 | K27: 2014-06-04
A28: 25 | B28: HUBLOT ROND REF 1101 CEVIZ SAFILUM | C28: SAF/SEFROUELEC | E28: =SUM('liste des articles'!D28+'Stock-Enter'!D28-'Stock-Sortie'!D28) -> 50 | F28: Stock insufisant | G28: =SUM('liste des articles'!G28) -> 30 | H28: =SUM('liste des articles'!H28) -> 28
A29: 26 | B29: HUBLOT ROND REF 1101 BLANC SAFILUM | C29: SAF/SEFROUELEC | D29: 6 | E29: =SUM('liste des articles'!D29+'Stock-Enter'!D29-'Stock-Sortie'!D29) -> 60 | F29: Stock insufisant | G29: =SUM('liste des articles'!G29) -> 21.5 | H29: =SUM('liste des articles'!H29) -> 20 | K29: 2014-06-04
A30: 27 | B30: BOITE DE DISTRIBUTION MIMOSA | C30: SAF | D30: 34 | E30: =SUM('liste des articles'!D30+'Stock-Enter'!D30-'Stock-Sortie'!D30) -> 166 | F30: Stock insufisant | G30: =SUM('liste des articles'!G30) -> 127.5 | H30: =SUM('liste des articles'!H30) -> 120 | K30: 11-09-04/06/2014
A31: 28 | B31: TUBE - DIM/GAINE - ORANGE / SIMEC
A32: 29 | B32: GAINE ANTI FEU D25 NM DALAFLEX (ISO GRIS) | C32: SIMEC | E32: =SUM('liste des articles'!D32+'Stock-Enter'!D32-'Stock-Sortie'!D32) -> 2500 | F32: Stock Sufisant | G32: =SUM('liste des articles'!G32) -> 1.8 | H32: =SUM('liste des articles'!H32) -> 1.7
A33: 30 | B33: GAINE ANTI FEU D20 NM DALAFLEX (ISO GRIS ) | C33: SIMEC | D33: 400 | E33: =SUM('liste des articles'!D33+'Stock-Enter'!D33-'Stock-Sortie'!D33) -> 2600 | F33: Stock Sufisant | G33: =SUM('liste des articles'!G33) -> 1.17 | H33: =SUM('liste des articles'!H33) -> 1.1 | K33: 2014-06-04
A34: 31 | B34: DIM ORANGE REF 21 DALAFLEX | C34: SIMEC | E34: =SUM('liste des articles'!D34+'Stock-Enter'!D34-'Stock-Sortie'!D34) -> 3200 | F34: Stock Sufisant | G34: =SUM('liste des articles'!G34) -> 3.4 | H34: =SUM('liste des articles'!H34) -> 3.2
A35: 32 | B35: DIM ORANGE REF 16 DALAFLEX | C35: SIMEC | D35: 200 | E35: =SUM('liste des articles'!D35+'Stock-Enter'!D35-'Stock-Sortie'!D35) -> 1150 | F35: Stock Sufisant | G35: =SUM('liste des articles'!G35) -> 2.34 | H35: =SUM('liste des articles'!H35) -> 2.2 | K35: 2014-06-04
A36: 33 | B36: DIM ORANGE REF 13 DALAFLEX | C36: SIMEC | E36: =SUM('liste des articles'!D36+'Stock-Enter'!D36-'Stock-Sortie'!D36) -> 950 | F36: Stock Sufisant | G36: =SUM('liste des articles'!G36) -> 2 | H36: =SUM('liste des articles'!H36) -> 1.9
A37: 34 | B37: DIM ORANGE REF 11 DALAFLEX | C37: SIMEC | D37: 1200 | E37: =SUM('liste des articles'!D37+'Stock-Enter'!D37-'Stock-Sortie'!D37) -> 4050 | F37: Stock Sufisant | G37: =SUM('liste des articles'!G37) -> 1.8 | H37: =SUM('liste des articles'!H37) -> 1.7 | K37: 2014-06-04
A38: 35 | B38: DIM ORANGE REF 16 SERIG | C38: SIMEC | D38: 500 | E38: =SUM('liste des articles'!D38+'Stock-Enter'!D38-'Stock-Sortie'!D38) -> 7150 | F38: Stock Sufisant | G38: =SUM('liste des articles'!G38) -> 3.4 | H38: =SUM('liste des articles'!H38) -> 3.2 | K38: 2014-06-04
A39: 36 | B39: DIM ORANGE REF 13 SERIG | C39: SIMEC | D39: 6100 | E39: =SUM('liste des articles'!D39+'Stock-Enter'!D39-'Stock-Sortie'!D39) -> 23750 | F39: Stock Sufisant | G39: =SUM('liste des articles'!G39) -> 2.8 | H39: =SUM('liste des articles'!H39) -> 2.65 | K39: 11-09-04/06/2014
A40: 37 | B40: DIM ORANGE RE 11 SERIG | C40: SIMEC | D40: 6000 | E40: =SUM('liste des articles'!D40+'Stock-Enter'!D40-'Stock-Sortie'!D40) -> 17700 | F40: Stock Sufisant | G40: =SUM('liste des articles'!G40) -> 2.38 | H40: =SUM('liste des articles'!H40) -> 2.25 | K40: 11-04/06/2014
A41: 38 | B41: DIM ORANGE REF 09 SERIG | C41: SIMEC | E41: =SUM('liste des articles'!D41+'Stock-Enter'!D41-'Stock-Sortie'!D41) -> 12600 | F41: Stock Sufisant | G41: =SUM('liste des articles'!G41) -> 1.8 | H41: =SUM('liste des articles'!H41) -> 1.7
A42: 39 | B42: TUBE ANNELE D16 ORANGE | C42: SIMEC | E42: =SUM('liste des articles'!D42+'Stock-Enter'!D42-'Stock-Sortie'!D42) -> 0 | F42: Stock insufisant | G42: =SUM('liste des articles'!G42) -> 1.4 | H42: =SUM('liste des articles'!H42) -> 1.18
A43: 40 | B43: TUBE ANNELE D20 ORANGE | C43: SIMEC | E43: =SUM('liste des articles'!D43+'Stock-Enter'!D43-'Stock-Sortie'!D43) -> 0 | F43: Stock insufisant | G43: =SUM('liste des articles'!G43) -> 1.5 | H43: =SUM('liste des articles'!H43) -> 1.33
A44: 41 | B44: TUBE ANNELE D25 ORANGE | C44: SIMEC | E44: =SUM('liste des articles'!D44+'Stock-Enter'!D44-'Stock-Sortie'!D44) -> 0 | F44: Stock insufisant | G44: =SUM('liste des articles'!G44) -> 1.8 | H44: =SUM('liste des articles'!H44) -> 1.68
A45: 42 | B45: TUBE ANNELE D32 ORANGE | C45: SIMEC | E45: =SUM('liste des articles'!D45+'Stock-Enter'!D45-'Stock-Sortie'!D45) -> 0 | F45: Stock insufisant | G45: =SUM('liste des articles'!G45) -> 2.3 | H45: =SUM('liste des articles'!H45) -> 2.02
A46: 43 | B46: DISJONCTEURS
A47: 44 | B47: INTER. DIFF.4X40A 300MA CC440F | C47: SOFA | E47: =SUM('liste des articles'!D47+'Stock-Enter'!D47-'Stock-Sortie'!D47) -> 2 | F47: Stock insufisant | G47: =SUM('liste des articles'!G47) -> 277.8 | H47: =SUM('liste des articles'!H47) -> 261.6
A48: 45 | B48: INTER. DIFF.4X63A 300MA CFC463F | C48: SOFA | E48: =SUM('liste des articles'!D48+'Stock-Enter'!D48-'Stock-Sortie'!D48) -> 2 | F48: Stock insufisant | G48: =SUM('liste des articles'!G48) -> 343.5 | H48: =SUM('liste des articles'!H48) -> 324
A49: 46 | B49: LC1D09M7 | C49: SOFA | E49: =SUM('liste des articles'!D49+'Stock-Enter'!D49-'Stock-Sortie'!D49) -> 2 | F49: Stock insufisant | G49: =SUM('liste des articles'!G49) -> 140 | H49: =SUM('liste des articles'!H49) -> 132
A50: 47 | B50: DD 500 MA 4X30/60A | C50: SOFA | E50: =SUM('liste des articles'!D50+'Stock-Enter'!D50-'Stock-Sortie'!D50) -> 2 | F50: Stock insufisant | G50: =SUM('liste des articles'!G50) -> 1180 | H50: =SUM('liste des articles'!H50) -> 1104
A51: 48 | B51: DD 500 MA 4X10/30A TNM GARDY | C51: SOFA | E51: =SUM('liste des articles'!D51+'Stock-Enter'!D51-'Stock-Sortie'!D51) -> 4 | F51: Stock insufisant | G51: =SUM('liste des articles'!G51) -> 580 | H51: =SUM('liste des articles'!H51) -> 552
A52: 49 | B52: DD 500 MA 2X10/30A TNM GARDY | C52: SOFA | D52: 11 | E52: =SUM('liste des articles'!D52+'Stock-Enter'!D52-'Stock-Sortie'!D52) -> 6 | F52: Stock insufisant | G52: =SUM('liste des articles'!G52) -> 350 | H52: =SUM('liste des articles'!H52) -> 336 | K52: 04-06/06/2014
A53: 50 | B53: DD 500 MA 2X5/15 A ANM GARDY | C53: SOLEC | D53: 3 | E53: =SUM('liste des articles'!D53+'Stock-Enter'!D53-'Stock-Sortie'!D53) -> 6 | F53: Stock insufisant | G53: =SUM('liste des articles'!G53) -> 350 | H53: =SUM('liste des articles'!H53) -> 336 | K53: 2014-06-04
A54: 51 | B54: DISJONCTEUR SECURISE 1P10A | C54: SOFA | D54: 95 | E54: =SUM('liste des articles'!D54+'Stock-Enter'!D54-'Stock-Sortie'!D54) -> 448 | F54: Stock Sufisant | G54: =SUM('liste des articles'!G54) -> 14 | H54: =SUM('liste des articles'!H54) -> 13.5 | K54: 2014-06-04
A55: 52 | B55: DISJONCTEUR SECURISE 1P16A | C55: SOLEC | D55: 65 | E55: =SUM('liste des articles'!D55+'Stock-Enter'!D55-'Stock-Sortie'!D55) -> 141 | F55: Stock insufisant | G55: =SUM('liste des articles'!G55) -> 14 | H55: =SUM('liste des articles'!H55) -> 13.5 | K55: 2014-06-06
A56: 53 | B56: DISJONCTEUR SECURISE 3P32A | C56: RADIANCE SARL | D56: 30 | E56: =SUM('liste des articles'!D56+'Stock-Enter'!D56-'Stock-Sortie'!D56) -> 10 | F56: Stock insufisant | G56: =SUM('liste des articles'!G56) -> 43.5 | H56: =SUM('liste des articles'!H56) -> 42 | K56: 04-06/06/2014
A57: 54 | B57: DISJONCTEUR SECURISE 4P32A | C57: RADIANCE SARL | D57: 25 | E57: =SUM('liste des articles'!D57+'Stock-Enter'!D57-'Stock-Sortie'!D57) -> 17 | F57: Stock insufisant | G57: =SUM('liste des articles'!G57) -> 58 | H57: =SUM('liste des articles'!H57) -> 54 | K57: 2014-06-06
A58: 55 | B58: DISJONCTEUR SECURISE 1P25A | C58: RADIANCE SARL | E58: =SUM('liste des articles'!D58+'Stock-Enter'!D58-'Stock-Sortie'!D58) -> 84 | F58: Stock insufisant | G58: =SUM('liste des articles'!G58) -> 14 | H58: =SUM('liste des articles'!H58) -> 13.6
A59: 56 | B59: DISJONCTEUR SECURISE 1P06A | C59: SOLEC | E59: =SUM('liste des articles'!D59+'Stock-Enter'!D59-'Stock-Sortie'!D59) -> 60 | F59: Stock insufisant | G59: =SUM('liste des articles'!G59) -> 14 | H59: =SUM('liste des articles'!H59) -> 13.6
A60: 57 | B60: DISJONCTEUR SECURISE 2P32A | C60: RADIANCE SARL | D60: 30 | E60: =SUM('liste des articles'!D60+'Stock-Enter'!D60-'Stock-Sortie'!D60) -> 20 | F60: Stock insufisant | G60: =SUM('liste des articles'!G60) -> 29.7 | H60: =SUM('liste des articles'!H60) -> 28 | K60: 2014-06-06
A61: 58 | B61: DISJONCTEUR MOD 3KA 4P 40A CDB 6A 4 C40 DELIXI | C61: SOFA | E61: =SUM('liste des articles'!D61+'Stock-Enter'!D61-'Stock-Sortie'!D61) -> 4 | F61: Stock insufisant | G61: =SUM('liste des articles'!G61) -> 43.25 | H61: =SUM('liste des articles'!H61) -> 40.8
A62: 59 | B62: DISJONCTEUR MOD 3KA 2P 20A CDB6A2C20 DELIXI | C62: SOFA | E62: =SUM('liste des articles'!D62+'Stock-Enter'!D62-'Stock-Sortie'!D62) -> 4 | F62: Stock insufisant | G62: =SUM('liste des articles'!G62) -> 19.1 | H62: =SUM('liste des articles'!H62) -> 18
A63: 60 | B63: DISJ MOD 3KA 1P 16A DELIXI | C63: SOFA | E63: =SUM('liste des articles'!D63+'Stock-Enter'!D63-'Stock-Sortie'!D63) -> 34 | F63: Stock insufisant | G63: =SUM('liste des articles'!G63) -> 13 | H63: =SUM('liste des articles'!H63) -> 12.3
A64: 61 | B64: DISJ MOD 3KA 1P 6A DELIXI | C64: SOFA | E64: =SUM('liste des articles'!D64+'Stock-Enter'!D64-'Stock-Sortie'!D64) -> 44 | F64: Stock insufisant | G64: =SUM('liste des articles'!G64) -> 13 | H64: =SUM('liste des articles'!H64) -> 10.25
A65: 62 | B65: DISJ MOD 3KA 2P 16A CDB6A2C16 DELIXI | C65: SOFA | E65: =SUM('liste des articles'!D65+'Stock-Enter'!D65-'Stock-Sortie'!D65) -> 44 | F65: Stock insufisant | G65: =SUM('liste des articles'!G65) -> 19.05 | H65: =SUM('liste des articles'!H65) -> 18
A66: 63 | B66: DISJONCTEUR SECURIS 1P 20A | C66: SOLEC | E66: =SUM('liste des articles'!D66+'Stock-Enter'!D66-'Stock-Sortie'!D66) -> 107 | F66: Stock insufisant | G66: =SUM('liste des articles'!G66) -> 14.1 | H66: =SUM('liste des articles'!H66) -> 13.6
A67: 64 | B67: DISJONCTEUR SECURIS 1P+N 10A | C67: RADIANCE SARL | D67: 4 | E67: =SUM('liste des articles'!D67+'Stock-Enter'!D67-'Stock-Sortie'!D67) -> 15 | F67: Stock insufisant | G67: =SUM('liste des articles'!G67) -> 45 | H67: =SUM('liste des articles'!H67) -> 42 | K67: 2014-06-04
A68: 65 | B68: DISJONCTEUR SECURIS 4P 63 A | C68: SOLEC | E68: =SUM('liste des articles'!D68+'Stock-Enter'!D68-'Stock-Sortie'!D68) -> 0 | F68: Stock insufisant | G68: =SUM('liste des articles'!G68) -> 160 | H68: =SUM('liste des articles'!H68) -> 150
A69: =IF(B69=0,"",ROW(A66)) -> 66 | B69: DISJONCTEUR SECURIS 1P 32A | C69: SOLEC | E69: =SUM('liste des articles'!D69+'Stock-Enter'!D69-'Stock-Sortie'!D69) -> 0 | F69: Stock insufisant | G69: =SUM('liste des articles'!G69) -> 12.5 | H69: =SUM('liste des articles'!H69) -> 12
A70: 67 | B70: DISJ 6KA C4PP 63A | C70: SOFA | E70: =SUM('liste des articles'!D70+'Stock-Enter'!D70-'Stock-Sortie'!D70) -> 12 | F70: Stock insufisant | G70: =SUM('liste des articles'!G70) -> 397.5 | H70: =SUM('liste des articles'!H70) -> 375.24
A71: 68 | B71: DISJ 6KA C4PP 25A REF MCN 425A | C71: SOFA | E71: =SUM('liste des articles'!D71+'Stock-Enter'!D71-'Stock-Sortie'!D71) -> 4 | F71: Stock insufisant | G71: =SUM('liste des articles'!G71) -> 193 | H71: =SUM('liste des articles'!H71) -> 183.6
A72: 69 | B72: DISJ 4,5/6KAC 1PP+N 32A REF MJN 732 | C72: SOFA | E72: =SUM('liste des articles'!D72+'Stock-Enter'!D72-'Stock-Sortie'!D72) -> 11 | F72: Stock insufisant | G72: =SUM('liste des articles'!G72) -> 52.15 | H72: =SUM('liste des articles'!H72) -> 49.2
A73: 70 | B73: DISJ 6KAC 4PP 40 A REF MCN 440A | C73: SOFA | E73: =SUM('liste des articles'!D73+'Stock-Enter'!D73-'Stock-Sortie'!D73) -> 1 | F73: Stock insufisant | G73: =SUM('liste des articles'!G73) -> 194.6 | H73: =SUM('liste des articles'!H73) -> 183.6
A74: 71 | B74: DISJ 4,5/6KA C 1PP+N 10A REF MJN 710 | C74: SOFA | D74: 11 | E74: =SUM('liste des articles'!D74+'Stock-Enter'!D74-'Stock-Sortie'!D74) -> 12 | F74: Stock insufisant | G74: =SUM('liste des articles'!G74) -> 52.5 | H74: =SUM('liste des articles'!H74) -> 49.56 | K74: 2014-06-04
A75: 72 | B75: DISJ 4,5/6KA C 1PP+N 16A REF MJN 716 | C75: SOFA | E75: =SUM('liste des articles'!D75+'Stock-Enter'!D75-'Stock-Sortie'!D75) -> 7 | F75: Stock insufisant | G75: =SUM('liste des articles'!G75) -> 52.5 | H75: =SUM('liste des articles'!H75) -> 49.56
A76: 73 | B76: DISJ 3KA B 4 PP 16A REF MV416 | C76: SOFA | E76: =SUM('liste des articles'!D76+'Stock-Enter'!D76-'Stock-Sortie'!D76) -> 3 | F76: Stock insufisant | G76: =SUM('liste des articles'!G76) -> 157 | H76: =SUM('liste des articles'!H76) -> 148.68
A77: 74 | B77: DISJ 3KA B 4 PP 20A REF MV420 | C77: SOFA | E77: =SUM('liste des articles'!D77+'Stock-Enter'!D77-'Stock-Sortie'!D77) -> 2 | F77: Stock insufisant | G77: =SUM('liste des articles'!G77) -> 157 | H77: =SUM('liste des articles'!H77) -> 148.68
A78: 75 | B78: DISJ 3KA B 4 PP 40A REF MV440 | C78: SOFA | E78: =SUM('liste des articles'!D78+'Stock-Enter'!D78-'Stock-Sortie'!D78) -> 14 | F78: Stock insufisant | G78: =SUM('liste des articles'!G78) -> 185 | H78: =SUM('liste des articles'!H78) -> 174.73
A79: 76 | B79: ID 4P 40A 300 MA CDL 7440 TA DELIXI | C79: SOFA | E79: =SUM('liste des articles'!D79+'Stock-Enter'!D79-'Stock-Sortie'!D79) -> 1 | F79: Stock insufisant | G79: =SUM('liste des articles'!G79) -> 200 | H79: =SUM('liste des articles'!H79) -> 188.4
A80: 77 | B80: ID 4P 63A 300 MA CDL 7463 TA/TC DELIXI | C80: SOFA | E80: =SUM('liste des articles'!D80+'Stock-Enter'!D80-'Stock-Sortie'!D80) -> 1 | F80: Stock insufisant | G80: =SUM('liste des articles'!G80) -> 220 | H80: =SUM('liste des articles'!H80) -> 207.6
A81: 78 | B81: AMPER DIGIT 3PHASE 0-9999A | C81: SOFA | E81: =SUM('liste des articles'!D81+'Stock-Enter'!D81-'Stock-Sortie'!D81) -> 2 | F81: Stock insufisant | G81: =SUM('liste des articles'!G81) -> 425 | H81: =SUM('liste des articles'!H81) -> 402
A82: 79 | B82: LRD32 | C82: SOFA | E82: =SUM('liste des articles'!D82+'Stock-Enter'!D82-'Stock-Sortie'!D82) -> 3 | F82: Stock insufisant | G82: =SUM('liste des articles'!G82) -> 394.32 | H82: =SUM('liste des articles'!H82) -> 372
A83: 80 | B83: LRD22 | C83: SOFA | E83: =SUM('liste des articles'!D83+'Stock-Enter'!D83-'Stock-Sortie'!D83) -> 2 | F83: Stock insufisant | G83: =SUM('liste des articles'!G83) -> 203.5 | H83: =SUM('liste des articles'!H83) -> 192
A84: 81 | B84: LRD21 | C84: SOFA | E84: =SUM('liste des articles'!D84+'Stock-Enter'!D84-'Stock-Sortie'!D84) -> 2 | F84: Stock insufisant | G84: =SUM('liste des articles'!G84) -> 178 | H84: =SUM('liste des articles'!H84) -> 168
A85: 82 | B85: LRD16 | C85: SOFA | E85: =SUM('liste des articles'!D85+'Stock-Enter'!D85-'Stock-Sortie'!D85) -> 2 | F85: Stock insufisant | G85: =SUM('liste des articles'!G85) -> 178 | H85: =SUM('liste des articles'!H85) -> 168
A86: 83 | B86: LRD14 | C86: SOFA | E86: =SUM('liste des articles'!D86+'Stock-Enter'!D86-'Stock-Sortie'!D86) -> 2 | F86: Stock insufisant | G86: =SUM('liste des articles'!G86) -> 178 | H86: =SUM('liste des articles'!H86) -> 168
A87: 84 | B87: LC1D25Q7 | C87: SOFA | E87: =SUM('liste des articles'!D87+'Stock-Enter'!D87-'Stock-Sortie'!D87) -> 3 | F87: Stock insufisant | G87: =SUM('liste des articles'!G87) -> 304 | H87: =SUM('liste des articles'!H87) -> 286.8
A88: 85 | B88: LC1D18Q7 | C88: SOFA | E88: =SUM('liste des articles'!D88+'Stock-Enter'!D88-'Stock-Sortie'!D88) -> 3 | F88: Stock insufisant | G88: =SUM('liste des articles'!G88) -> 249.5 | H88: =SUM('liste des articles'!H88) -> 235.2
A89: 86 | B89: LC1D12M7 | C89: SOFA | E89: =SUM('liste des articles'!D89+'Stock-Enter'!D89-'Stock-Sortie'!D89) -> 5 | F89: Stock insufisant | G89: =SUM('liste des articles'!G89) -> 148.5 | H89: =SUM('liste des articles'!H89) -> 140.4
E90: =SUM('liste des articles'!D90+'Stock-Enter'!D90-'Stock-Sortie'!D90) -> 5 | F90: Stock insufisant | G90: =SUM('liste des articles'!G90) -> 1380 | H90: =SUM('liste des articles'!H90) -> 1301.45
E91: =SUM('liste des articles'!D91+'Stock-Enter'!D91-'Stock-Sortie'!D91) -> 0 | F91: Stock insufisant | G91: =SUM('liste des articles'!G91) -> 0 | H91: =SUM('liste des articles'!H91) -> 0
E92: =SUM('liste des articles'!D92+'Stock-Enter'!D92-'Stock-Sortie'!D92) -> 0 | F92: Stock insufisant | G92: =SUM('liste des articles'!G92) -> 0 | H92: =SUM('liste des articles'!H92) -> 0
E93: =SUM('liste des articles'!D93+'Stock-Enter'!D93-'Stock-Sortie'!D93) -> 0 | F93: Stock insufisant | G93: =SUM('liste des articles'!G93) -> 0 | H93: =SUM('liste des articles'!H93) -> 0
E94: =SUM('liste des articles'!D94+'Stock-Enter'!D94-'Stock-Sortie'!D94) -> 0 | F94: Stock insufisant | G94: =SUM('liste des articles'!G94) -> 0 | H94: =SUM('liste des articles'!H94) -> 0
E95: =SUM('liste des articles'!D95+'Stock-Enter'!D95-'Stock-Sortie'!D95) -> 0 | F95: Stock insufisant | G95: =SUM('liste des articles'!G95) -> 0 | H95: =SUM('liste des articles'!H95) -> 0
E96: =SUM('liste des articles'!D96+'Stock-Enter'!D96-'Stock-Sortie'!D96) -> 0 | F96: Stock insufisant | G96: =SUM('liste des articles'!G96) -> 0 | H96: =SUM('liste des articles'!H96) -> 0
E97: =SUM('liste des articles'!D97+'Stock-Enter'!D97-'Stock-Sortie'!D97) -> 0 | F97: Stock insufisant | G97: =SUM('liste des articles'!G97) -> 0 | H97: =SUM('liste des articles'!H97) -> 0
A98: 95 | B98: CABLE - / FIL / K- APLAST -- SYNERGIE
A99: 96 | B99: FIL 10 K-PLAST | C99: K-PLAST | E99: =SUM('liste des articles'!D99+'Stock-Enter'!D99-'Stock-Sortie'!D99) -> 632.99 | F99: Stock Sufisant | G99: =SUM('liste des articles'!G99) -> 8.1 | H99: =SUM('liste des articles'!H99) -> 7.65 | J99: 100 M / ROULOU
A100: 97 | B100: FIL 6 K-PLAST | C100: K-PLAST | E100: =SUM('liste des articles'!D100+'Stock-Enter'!D100-'Stock-Sortie'!D100) -> 200 | F100: Stock insufisant | G100: =SUM('liste des articles'!G100) -> 5.03 | H100: =SUM('liste des articles'!H100) -> 4.75
A101: 98 | B101: FIL 2,5 K-PLAST | C101: K-PLAST | D101: 700 | E101: =SUM('liste des articles'!D101+'Stock-Enter'!D101-'Stock-Sortie'!D101) -> 910 | F101: Stock Sufisant | G101: =SUM('liste des articles'!G101) -> 2 | H101: =SUM('liste des articles'!H101) -> 1.9 | K101: 04-03/06/2014
A102: 99 | B102: FIL 1,5 K-PLAST | C102: K-PLAST | D102: 500 | E102: =SUM('liste des articles'!D102+'Stock-Enter'!D102-'Stock-Sortie'!D102) -> 1500 | F102: Stock Sufisant | G102: =SUM('liste des articles'!G102) -> 1.16 | H102: =SUM('liste des articles'!H102) -> 1.1 | K102: 2014-06-04
A103: 100 | B103: FIL 10 SC | C103: SYNERGIE CABLE | D103: 500 | E103: =SUM('liste des articles'!D103+'Stock-Enter'!D103-'Stock-Sortie'!D103) -> 1500 | F103: Stock Sufisant | G103: =SUM('liste des articles'!G103) -> 7.2 | H103: =SUM('liste des articles'!H103) -> 6.8 | K103: 2014-06-11
A104: 101 | B104: FIL 6 SC | C104: SYNERGIE CABLE | D104: 4800 | E104: =SUM('liste des articles'!D104+'Stock-Enter'!D104-'Stock-Sortie'!D104) -> 3400 | F104: =IF(E104>300,"Stock Sufisant","Stock insufisant") -> Stock Sufisant | G104: =SUM('liste des articles'!G104) -> 4.34 | H104: =SUM('liste des articles'!H104) -> 4.1 | K104: 2014-06-04
A105: 102 | B105: FIL 1,5 SC | C105: SYNERGIE CABLE | D105: 9000 | E105: =SUM('liste des articles'!D105+'Stock-Enter'!D105-'Stock-Sortie'!D105) -> 2000 | F105: Stock Sufisant | G105: =SUM('liste des articles'!G105) -> 1 | H105: =SUM('liste des articles'!H105) -> 0.95 | K105: 2-04/06/2014
A106: 103 | B106: FIL 2,5 SC | C106: SYNERGIE CABLE | D106: 6500 | E106: =SUM('liste des articles'!D106+'Stock-Enter'!D106-'Stock-Sortie'!D106) -> 1123 | F106: Stock Sufisant | G106: =SUM('liste des articles'!G106) -> 1.69 | H106: =SUM('liste des articles'!H106) -> 1.6 | K106: 2014-06-04
A107: 104 | B107: CABLE SC 4X6 | C107: SEFROUELC | E107: =SUM('liste des articles'!D107+'Stock-Enter'!D107-'Stock-Sortie'!D107) -> 0 | F107: Stock insufisant | G107: =SUM('liste des articles'!G107) -> 0 | H107: =SUM('liste des articles'!H107) -> 0
A108: 105 | B108: CABLE SC 2X6 | C108: SYNERGIE CABLE | E108: =SUM('liste des articles'!D108+'Stock-Enter'!D108-'Stock-Sortie'!D108) -> 328 | F108: Stock Sufisant | G108: =SUM('liste des articles'!G108) -> 13.35 | H108: =SUM('liste des articles'!H108) -> 12.6
A109: 106 | B109: CABLE SC 2X10 | C109: SYNERGIE CABLE | E109: =SUM('liste des articles'!D109+'Stock-Enter'!D109-'Stock-Sortie'!D109) -> 200 | F109: Stock insufisant | G109: =SUM('liste des articles'!G109) -> 21.94 | H109: =SUM('liste des articles'!H109) -> 20.7
A110: 107 | B110: CABLE SC 4X10 | C110: SYNERGIE CABLE | E110: =SUM('liste des articles'!D110+'Stock-Enter'!D110-'Stock-Sortie'!D110) -> 100 | F110: Stock insufisant | G110: =SUM('liste des articles'!G110) -> 26.5 | H110: =SUM('liste des articles'!H110) -> 25
E111: =SUM('liste des articles'!D111+'Stock-Enter'!D111-'Stock-Sortie'!D111) -> 0 | F111: Stock insufisant | G111: =SUM('liste des articles'!G111) -> 0 | H111: =SUM('liste des articles'!H111) -> 0
E112: =SUM('liste des articles'!D112+'Stock-Enter'!D112-'Stock-Sortie'!D112) -> 0 | F112: Stock insufisant | G112: =SUM('liste des articles'!G112) -> 0 | H112: =SUM('liste des articles'!H112) -> 0
E113: =SUM('liste des articles'!D113+'Stock-Enter'!D113-'Stock-Sortie'!D113) -> 0 | F113: Stock insufisant | G113: =SUM('liste des articles'!G113) -> 0 | H113: =SUM('liste des articles'!H113) -> 0
E114: =SUM('liste des articles'!D114+'Stock-Enter'!D114-'Stock-Sortie'!D114) -> 0 | F114: Stock insufisant | G114: =SUM('liste des articles'!G114) -> 0 | H114: =SUM('liste des articles'!H114) -> 0
E115: =SUM('liste des articles'!D115+'Stock-Enter'!D115-'Stock-Sortie'!D115) -> 0 | F115: Stock insufisant | G115: =SUM('liste des articles'!G115) -> 0 | H115: =SUM('liste des articles'!H115) -> 0
E116: =SUM('liste des articles'!D116+'Stock-Enter'!D116-'Stock-Sortie'!D116) -> 0 | F116: Stock insufisant | G116: =SUM('liste des articles'!G116) -> 0 | H116: =SUM('liste des articles'!H116) -> 0
A117: 114 | B117: ARTICLES VARRIES LAP / SOLEC/ JATA
A118: 115 | B118: PINCE D'ANCRAGE LAP 2X16 à 4X25 | C118: SOLEC/LAP | D118: 790 | E118: =SUM('liste des articles'!D118+'Stock-Enter'!D118-'Stock-Sortie'!D118) -> 1997 | F118: Stock Sufisant | G118: =SUM('liste des articles'!G118) -> 4.37 | H118: =SUM('liste des articles'!H118) -> 4.5 | K118: 11-09-04/06/2014 | L118: 2014-05-30
A119: 116 | B119: HUBLOT ROND B22 BLANC "ECO" | C119: LAP | D119: 60 | E119: =SUM('liste des articles'!D119+'Stock-Enter'!D119-'Stock-Sortie'!D119) -> 140 | F119: Stock insufisant | G119: =SUM('liste des articles'!G119) -> 14.2 | H119: =SUM('liste des articles'!H119) -> 13.39 | K119: 2014-06-09 | L119: 23-27/05/2014
A120: 117 | B120: COFFRET ENCAS 14 MOD + DIS FUME | C120: LAP | E120: =SUM('liste des articles'!D120+'Stock-Enter'!D120-'Stock-Sortie'!D120) -> 44 | F120: Stock insufisant | G120: =SUM('liste des articles'!G120) -> 30.57 | H120: =SUM('liste des articles'!H120) -> 28.84
A121: 118 | B121: PRISE 2P+T AURGHE | C121: LAP | E121: =SUM('liste des articles'!D121+'Stock-Enter'!D121-'Stock-Sortie'!D121) -> 70 | F121: Stock insufisant | G121: =SUM('liste des articles'!G121) -> 17.47 | H121: =SUM('liste des articles'!H121) -> 16.48
A122: 119 | B122: PRISE 2P AURGHE | C122: LAP | E122: =SUM('liste des articles'!D122+'Stock-Enter'!D122-'Stock-Sortie'!D122) -> 70 | F122: Stock insufisant | G122: =SUM('liste des articles'!G122) -> 15.3 | H122: =SUM('liste des articles'!H122) -> 14.42
A123: 120 | B123: PRISE 3P+T 20 A 380 BLANC | C123: LAP | D123: 20 | E123: =SUM('liste des articles'!D123+'Stock-Enter'!D123-'Stock-Sortie'!D123) -> 70 | F123: Stock insufisant | G123: =SUM('liste des articles'!G123) -> 27.3 | H123: =SUM('liste des articles'!H123) -> 25.75 | K123: 2014-05-27
A124: 121 | B124: FICHE 3P+T 20A 380V BLANC | C124: LAP | D124: 20 | E124: =SUM('liste des articles'!D124+'Stock-Enter'!D124-'Stock-Sortie'!D124) -> 80 | F124: Stock insufisant | G124: =SUM('liste des articles'!G124) -> 21.83 | H124: =SUM('liste des articles'!H124) -> 20.6 | K124: 2014-05-27
A125: 122 | B125: DOUILLE E27 | C125: LAP | D125: 70 | E125: =SUM('liste des articles'!D125+'Stock-Enter'!D125-'Stock-Sortie'!D125) -> 1100 | F125: Stock Sufisant | G125: =SUM('liste des articles'!G125) -> 3.4 | H125: =SUM('liste des articles'!H125) -> 3.2 | K125: 2014-05-30
A126: 123 | B126: HUBLOT OVAL EN VERRE + GM E27 NO | C126: LAP | D126: 10 | E126: =SUM('liste des articles'!D126+'Stock-Enter'!D126-'Stock-Sortie'!D126) -> 52 | F126: Stock insufisant | G126: =SUM('liste des articles'!G126) -> 22.3 | H126: =SUM('liste des articles'!H126) -> 21.03 | K126: 2014-05-23
A127: 124 | B127: HUBLOT OVAL EN VERRE + GP E27 BL | C127: LAP | D127: 10 | E127: =SUM('liste des articles'!D127+'Stock-Enter'!D127-'Stock-Sortie'!D127) -> 42 | F127: Stock insufisant | G127: =SUM('liste des articles'!G127) -> 18.02 | H127: =SUM('liste des articles'!H127) -> 17 | K127: 2014-05-23
A128: 125 | B128: COFFRET ENCAS 12 MOD FUME | C128: LAP | E128: =SUM('liste des articles'!D128+'Stock-Enter'!D128-'Stock-Sortie'!D128) -> 40 | F128: Stock insufisant | G128: =SUM('liste des articles'!G128) -> 21.84 | H128: =SUM('liste des articles'!H128) -> 20.6
A129: 126 | B129: COFFRET APPA 12 MOD PORTE OPAL | C129: LAP | E129: =SUM('liste des articles'!D129+'Stock-Enter'!D129-'Stock-Sortie'!D129) -> 20 | F129: Stock insufisant | G129: =SUM('liste des articles'!G129) -> 25.11 | H129: =SUM('liste des articles'!H129) -> 23.69
A130: 127 | B130: COFFRET APPA 4 MOD | C130: LAP | E130: =SUM('liste des articles'!D130+'Stock-Enter'!D130-'Stock-Sortie'!D130) -> 48 | F130: Stock insufisant | G130: =SUM('liste des articles'!G130) -> 3.12 | H130: =SUM('liste des articles'!H130) -> 2.94
A131: 128 | B131: COFFRET APPA 2 MOD | C131: LAP | E131: =SUM('liste des articles'!D131+'Stock-Enter'!D131-'Stock-Sortie'!D131) -> 50 | F131: Stock insufisant | G131: =SUM('liste des articles'!G131) -> 2.3 | H131: =SUM('liste des articles'!H131) -> 2.17
A132: 129 | B132: BOITE CHEVILLE EN PLAST Q 10 | C132: LAP | D132: 60 | E132: =SUM('liste des articles'!D132+'Stock-Enter'!D132-'Stock-Sortie'!D132) -> 530 | F132: Stock Sufisant | G132: =SUM('liste des articles'!G132) -> 6.56 | H132: =SUM('liste des articles'!H132) -> 6.19 | K132: 2014-06-04
A133: =IF(B133=0,"",ROW(A130)) -> 130 | B133: BOITE CHEVILLE EN PLAST Q 8 | C133: LAP | D133: 180 | E133: =SUM('liste des articles'!D133+'Stock-Enter'!D133-'Stock-Sortie'!D133) -> 820 | F133: Stock Sufisant | G133: =SUM('liste des articles'!G133) -> 6.56 | H133: =SUM('liste des articles'!H133) -> 6.19 | K133: 2014-06-04 | L133: 30/05/2014
A134: 131 | B134: BOITE CHEVILLE EN PLAST Q 7 | C134: LAP | E134: =SUM('liste des articles'!D134+'Stock-Enter'!D134-'Stock-Sortie'!D134) -> 250 | F134: Stock insufisant | G134: =SUM('liste des articles'!G134) -> 6 | H134: =SUM('liste des articles'!H134) -> 5.67
A135: 132 | B135: BOITE CHEVILLE EN PLAST Q 6 | C135: LAP | E135: =SUM('liste des articles'!D135+'Stock-Enter'!D135-'Stock-Sortie'!D135) -> 250 | F135: Stock insufisant | G135: =SUM('liste des articles'!G135) -> 5.46 | H135: =SUM('liste des articles'!H135) -> 5.15
A136: 133 | B136: BOITE DERIVATION 160*160*65 MM | C136: LAP | E136: =SUM('liste des articles'!D136+'Stock-Enter'!D136-'Stock-Sortie'!D136) -> 200 | F136: Stock insufisant | G136: =SUM('liste des articles'!G136) -> 5.89 | H136: =SUM('liste des articles'!H136) -> 5.56
A137: 134 | B137: BOITE DERIVATION 130*130*55 MM | C137: LAP | E137: =SUM('liste des articles'!D137+'Stock-Enter'!D137-'Stock-Sortie'!D137) -> 500 | F137: Stock Sufisant | G137: =SUM('liste des articles'!G137) -> 3.68 | H137: =SUM('liste des articles'!H137) -> 3.48
A138: 135 | B138: BOITE DERIVATION 100*100*45 MM | C138: LAP | E138: =SUM('liste des articles'!D138+'Stock-Enter'!D138-'Stock-Sortie'!D138) -> 100 | F138: Stock insufisant | G138: =SUM('liste des articles'!G138) -> 2.8 | H138: =SUM('liste des articles'!H138) -> 2.63
A139: 136 | B139: BOITE DERIVATION 80*80*40 MM | C139: LAP | E139: =SUM('liste des articles'!D139+'Stock-Enter'!D139-'Stock-Sortie'!D139) -> 100 | F139: Stock insufisant | G139: =SUM('liste des articles'!G139) -> 1.97 | H139: =SUM('liste des articles'!H139) -> 1.86
A140: 137 | B140: POUSSOIR LUM AURGHE | C140: LAP | E140: =SUM('liste des articles'!D140+'Stock-Enter'!D140-'Stock-Sortie'!D140) -> 90 | F140: Stock insufisant | G140: =SUM('liste des articles'!G140) -> 19.9 | H140: =SUM('liste des articles'!H140) -> 18.75
A141: 138 | B141: INTER DBLE VA ET VIENT AURGHE | C141: LAP | E141: =SUM('liste des articles'!D141+'Stock-Enter'!D141-'Stock-Sortie'!D141) -> 70 | F141: Stock insufisant | G141: =SUM('liste des articles'!G141) -> 30.9 | H141: =SUM('liste des articles'!H141) -> 29.15
A142: 139 | B142: INTER VA ET VIENT AURGHE | C142: LAP | E142: =SUM('liste des articles'!D142+'Stock-Enter'!D142-'Stock-Sortie'!D142) -> 60 | F142: Stock insufisant | G142: =SUM('liste des articles'!G142) -> 16.15 | H142: =SUM('liste des articles'!H142) -> 15.24
A143: 140 | B143: HUBLOT ROND EN VERRE B22 BLANC LAP 2006 | C143: LAP | D143: 20 | E143: =SUM('liste des articles'!D143+'Stock-Enter'!D143-'Stock-Sortie'!D143) -> 70 | F143: Stock insufisant | G143: =SUM('liste des articles'!G143) -> 27.5 | H143: =SUM('liste des articles'!H143) -> 25.95 | K143: 2014-05-23
A144: 141 | B144: COFFRET ENCAS 12 MOD OPAL | C144: LAP | D144: 25 | E144: =SUM('liste des articles'!D144+'Stock-Enter'!D144-'Stock-Sortie'!D144) -> 475 | F144: Stock Sufisant | G144: =SUM('liste des articles'!G144) -> 20.74 | H144: =SUM('liste des articles'!H144) -> 19.57 | K144: 2014-06-11
A145: 142 | B145: COFFRET APPA 16 MOD + DIS OPAL | C145: LAP | E145: =SUM('liste des articles'!D145+'Stock-Enter'!D145-'Stock-Sortie'!D145) -> 12 | F145: Stock insufisant | G145: =SUM('liste des articles'!G145) -> 40.39 | H145: =SUM('liste des articles'!H145) -> 38.11
A146: 143 | B146: BOITE CHEVILLE EN PLAST Q 12 | C146: LAP | E146: =SUM('liste des articles'!D146+'Stock-Enter'!D146-'Stock-Sortie'!D146) -> 200 | F146: Stock insufisant | G146: =SUM('liste des articles'!G146) -> 8.18 | H146: =SUM('liste des articles'!H146) -> 7.72
A147: 144 | B147: BOITE D'ENCASTREMENT CARREE GR | C147: LAP | D147: 200 | E147: =SUM('liste des articles'!D147+'Stock-Enter'!D147-'Stock-Sortie'!D147) -> 1420 | F147: Stock Sufisant | G147: =SUM('liste des articles'!G147) -> 2.06 | H147: =SUM('liste des articles'!H147) -> 1.95 | K147: 2014-06-04
A148: 145 | B148: RENVOI D'ANGLE METALLIQUE | C148: LAP | E148: =SUM('liste des articles'!D148+'Stock-Enter'!D148-'Stock-Sortie'!D148) -> 300 | F148: Stock insufisant | G148: =SUM('liste des articles'!G148) -> 4.36 | H148: =SUM('liste des articles'!H148) -> 4.12
A149: 146 | B149: RALLONGE 5M 2,5A LAP | C149: LAP | D149: 70 | E149: =SUM('liste des articles'!D149+'Stock-Enter'!D149-'Stock-Sortie'!D149) -> 258 | F149: Stock insufisant | G149: =SUM('liste des articles'!G149) -> 20.74 | H149: =SUM('liste des articles'!H149) -> 19.57 | K149: 2014-06-04
A150: 147 | B150: PRISE RJ45 CAT 5 SIMPLE 550B | C150: LAP | E150: =SUM('liste des articles'!D150+'Stock-Enter'!D150-'Stock-Sortie'!D150) -> 80 | F150: Stock insufisant | G150: =SUM('liste des articles'!G150) -> 23.3 | H150: =SUM('liste des articles'!H150) -> 22
A151: 148 | B151: BOITE D'ENCASTREMENT Q6 LAP | C151: LAP | D151: 2050 | E151: =SUM('liste des articles'!D151+'Stock-Enter'!D151-'Stock-Sortie'!D151) -> 4950 | F151: Stock Sufisant | G151: =SUM('liste des articles'!G151) -> 0.37 | H151: =SUM('liste des articles'!H151) -> 0.35 | K151: 14-30/05/2014
A152: 149 | B152: APPLIQUE LAVABO 2P+T+INTERRUPT LAP | C152: LAP | D152: 12 | E152: =SUM('liste des articles'!D152+'Stock-Enter'!D152-'Stock-Sortie'!D152) -> 183 | F152: Stock insufisant | G152: =SUM('liste des articles'!G152) -> 28.4 | H152: =SUM('liste des articles'!H152) -> 26.78 | K152: 2014-05-22
A153: 150 | B153: HUBLOT ROND EN VERRE GP B22 BLANC LAP 2006 GP B22 | C153: LAP | E153: =SUM('liste des articles'!D153+'Stock-Enter'!D153-'Stock-Sortie'!D153) -> 36 | F153: Stock insufisant | G153: =SUM('liste des articles'!G153) -> 31.72 | H153: =SUM('liste des articles'!H153) -> 29.92
A154: 151 | B154: =UPPER("hublot rond en verre b22 blanc lap 2000v") -> HUBLOT ROND EN VERRE B22 BLANC LAP 2000V | C154: lap | D154: 10 | E154: =SUM('liste des articles'!D154+'Stock-Enter'!D154-'Stock-Sortie'!D154) -> 60 | F154: Stock insufisant | G154: =SUM('liste des articles'!G154) -> 31.72 | H154: =SUM('liste des articles'!H154) -> 29.92 | K154: 2014-05-02
A155: 152 | B155: COFFRET APPA 6MOD LAP | C155: LAP | D155: 10 | E155: =SUM('liste des articles'!D155+'Stock-Enter'!D155-'Stock-Sortie'!D155) -> 22 | F155: Stock insufisant | G155: =SUM('liste des articles'!G155) -> 4.36 | H155: =SUM('liste des articles'!H155) -> 4.12 | K155: 2013-09-17
A156: 153 | B156: COFFRET APPA 8 MOD LAP | C156: LAP | E156: =SUM('liste des articles'!D156+'Stock-Enter'!D156-'Stock-Sortie'!D156) -> 20 | F156: Stock insufisant | G156: =SUM('liste des articles'!G156) -> 6.56 | H156: =SUM('liste des articles'!H156) -> 6.19
A157: 154 | B157: PATERE DROITE E27 LAP | C157: LAP | D157: 20 | E157: =SUM('liste des articles'!D157+'Stock-Enter'!D157-'Stock-Sortie'!D157) -> 348 | F157: Stock Sufisant | G157: =SUM('liste des articles'!G157) -> 6 | H157: =SUM('liste des articles'!H157) -> 5.68 | K157: 2014-05-22
A158: 155 | B158: PATERE DROITE AVEC DOUILLE B22 LAP | C158: LAP | E158: =SUM('liste des articles'!D158+'Stock-Enter'!D158-'Stock-Sortie'!D158) -> 370 | F158: Stock Sufisant | G158: =SUM('liste des articles'!G158) -> 5.7 | H158: =SUM('liste des articles'!H158) -> 5.36
A159: 156 | B159: PATERE E27 INCLINEE LAP | C159: LAP | D159: 50 | E159: =SUM('liste des articles'!D159+'Stock-Enter'!D159-'Stock-Sortie'!D159) -> 370 | F159: Stock Sufisant | G159: =SUM('liste des articles'!G159) -> 5.5 | H159: =SUM('liste des articles'!H159) -> 5.15 | K159: 2014-05-14
A160: 157 | B160: COFFRET 12 MOD SANS PORTE LAP | C160: LAP | E160: =SUM('liste des articles'!D160+'Stock-Enter'!D160-'Stock-Sortie'!D160) -> 30 | F160: Stock insufisant | G160: =SUM('liste des articles'!G160) -> 21.8 | H160: =SUM('liste des articles'!H160) -> 20.6
A161: 158 | B161: INTERRRUPTEUR V&V GALAXY MARRON | C161: LAP | E161: =SUM('liste des articles'!D161+'Stock-Enter'!D161-'Stock-Sortie'!D161) -> 220 | F161: Stock insufisant | G161: =SUM('liste des articles'!G161) -> 16.88 | H161: =SUM('liste des articles'!H161) -> 15.92
A162: 159 | B162: BOITE ETANCHE 80*8 | C162: LAP | E162: =SUM('liste des articles'!D162+'Stock-Enter'!D162-'Stock-Sortie'!D162) -> 120 | F162: Stock insufisant | G162: =SUM('liste des articles'!G162) -> 3.12 | H162: =SUM('liste des articles'!H162) -> 2.95
A163: 160 | B163: BOITE ETANCHE 80*40 LAP | C163: LAP | E163: =SUM('liste des articles'!D163+'Stock-Enter'!D163-'Stock-Sortie'!D163) -> 90 | F163: Stock insufisant | G163: =SUM('liste des articles'!G163) -> 1.91 | H163: =SUM('liste des articles'!H163) -> 1.8
A164: 161 | B164: FICHE 2P+T FEMELLE BLAC LAP | C164: LAP | D164: 300 | E164: =SUM('liste des articles'!D164+'Stock-Enter'!D164-'Stock-Sortie'!D164) -> 2000 | F164: Stock Sufisant | G164: =SUM('liste des articles'!G164) -> 5.25 | H164: =SUM('liste des articles'!H164) -> 4.96 | K164: 2014-06-02 | L164: 27-20/05/2014
A165: 162 | B165: FICHE 2P+T MAL BLANC LAP | C165: LAP | D165: 300 | E165: =SUM('liste des articles'!D165+'Stock-Enter'!D165-'Stock-Sortie'!D165) -> 2620 | F165: Stock Sufisant | G165: =SUM('liste des articles'!G165) -> 4.37 | H165: =SUM('liste des articles'!H165) -> 4.13 | K165: 2014-06-02 | L165: 27-30/05/2014
A166: 163 | B166: INTER*DBLE V&V GALAXU MARRON | C166: LAP | E166: =SUM('liste des articles'!D166+'Stock-Enter'!D166-'Stock-Sortie'!D166) -> 80 | F166: Stock insufisant | G166: =SUM('liste des articles'!G166) -> 29 | H166: =SUM('liste des articles'!H166) -> 27.41
A167: 164 | B167: PRISE TELEVISION GALAXY MARRON | C167: LAP | E167: =SUM('liste des articles'!D167+'Stock-Enter'!D167-'Stock-Sortie'!D167) -> 50 | F167: Stock insufisant | G167: =SUM('liste des articles'!G167) -> 27.85 | H167: =SUM('liste des articles'!H167) -> 26.28
A168: 165 | B168: POUSSOIR INVERSSEUR RIDEAUX GALAXY | C168: LAP | E168: =SUM('liste des articles'!D168+'Stock-Enter'!D168-'Stock-Sortie'!D168) -> 50 | F168: Stock insufisant | G168: =SUM('liste des articles'!G168) -> 34 | H168: =SUM('liste des articles'!H168) -> 32
A169: 166 | B169: PRISE 2P+T GALAXY MARRON | C169: LAP | E169: =SUM('liste des articles'!D169+'Stock-Enter'!D169-'Stock-Sortie'!D169) -> 80 | F169: =IF(E169>300,"Stock Sufisant","Stock insufisant") -> Stock insufisant | G169: =SUM('liste des articles'!G169) -> 16.53 | H169: =SUM('liste des articles'!H169) -> 15.6
A170: 167 | B170: PRISE 2P GALAXY MARRON | C170: LAP | E170: =SUM('liste des articles'!D170+'Stock-Enter'!D170-'Stock-Sortie'!D170) -> 70 | F170: Stock insufisant | G170: =SUM('liste des articles'!G170) -> 12.77 | H170: =SUM('liste des articles'!H170) -> 12.05
A171: 168 | B171: SORTIE DE FILE GALAXY MARRON | C171: LAP | E171: =SUM('liste des articles'!D171+'Stock-Enter'!D171-'Stock-Sortie'!D171) -> 340 | F171: Stock Sufisant | G171: =SUM('liste des articles'!G171) -> 10.78 | H171: =SUM('liste des articles'!H171) -> 10.17
A172: 169 | B172: POUSSOIR ROND LUM GALAXY MARRON | C172: LAP | D172: 40 | E172: =SUM('liste des articles'!D172+'Stock-Enter'!D172-'Stock-Sortie'!D172) -> 90 | F172: Stock insufisant | G172: =SUM('liste des articles'!G172) -> 23.34 | H172: =SUM('liste des articles'!H172) -> 22.02 | K172: 2014-06-06
A173: 170 | B173: COFFRET ENCASTRE 8 MOD OPAL LAP | C173: LAP | D173: 30 | E173: =SUM('liste des articles'!D173+'Stock-Enter'!D173-'Stock-Sortie'!D173) -> 130 | F173: Stock insufisant | G173: =SUM('liste des articles'!G173) -> 19.65 | H173: =SUM('liste des articles'!H173) -> 18.54 | K173: 2014-05-14
A174: 171 | B174: COFFRET ENCASTRE 20 MOD+DIS OPAL | C174: LAP | D174: 3 | E174: =SUM('liste des articles'!D174+'Stock-Enter'!D174-'Stock-Sortie'!D174) -> 391 | F174: Stock Sufisant | G174: =SUM('liste des articles'!G174) -> 60.05 | H174: =SUM('liste des articles'!H174) -> 56.65 | K174: 2014-05-23
A175: 172 | B175: INTERRUPTEUR SA GALAXY MARRON | C175: LAP | E175: =SUM('liste des articles'!D175+'Stock-Enter'!D175-'Stock-Sortie'!D175) -> 300 | F175: Stock insufisant | G175: =SUM('liste des articles'!G175) -> 12.77 | H175: =SUM('liste des articles'!H175) -> 12.05
A176: 173 | B176: INTERRUPTEUR DA GALAXY MARRON | C176: LAP | E176: =SUM('liste des articles'!D176+'Stock-Enter'!D176-'Stock-Sortie'!D176) -> 130 | F176: Stock insufisant | G176: =SUM('liste des articles'!G176) -> 25.55 | H176: =SUM('liste des articles'!H176) -> 24.11
A177: 174 | B177: PRISE RJ11 GALAXY MARRON | C177: LAP | E177: =SUM('liste des articles'!D177+'Stock-Enter'!D177-'Stock-Sortie'!D177) -> 80 | F177: Stock insufisant | G177: =SUM('liste des articles'!G177) -> 32 | H177: =SUM('liste des articles'!H177) -> 30.25
A178: 175 | B178: PRISE 8 BROCHES GALAXY MARRON | C178: LAP | E178: =SUM('liste des articles'!D178+'Stock-Enter'!D178-'Stock-Sortie'!D178) -> 20 | F178: Stock insufisant | G178: =SUM('liste des articles'!G178) -> 32 | H178: =SUM('liste des articles'!H178) -> 30.25
A179: 176 | B179: COFFRET ENCASTRE 14 MOD+DIS OPAL | C179: LAP | D179: 30 | E179: =SUM('liste des articles'!D179+'Stock-Enter'!D179-'Stock-Sortie'!D179) -> 576 | F179: Stock Sufisant | G179: =SUM('liste des articles'!G179) -> 29.53 | H179: =SUM('liste des articles'!H179) -> 27.86 | K179: 11-02/06/2014
A180: 177 | B180: COFFRET ENCASTRE 24 MOD OPAL | C180: LAP | E180: =SUM('liste des articles'!D180+'Stock-Enter'!D180-'Stock-Sortie'!D180) -> 60 | F180: Stock insufisant | G180: =SUM('liste des articles'!G180) -> 29.53 | H180: =SUM('liste des articles'!H180) -> 27.86
A181: 178 | B181: BOITE ETANCHE ACHIC 180X140 | C181: LAP | D181: 70 | E181: =SUM('liste des articles'!D181+'Stock-Enter'!D181-'Stock-Sortie'!D181) -> 350 | F181: Stock Sufisant | G181: =SUM('liste des articles'!G181) -> 12.57 | H181: =SUM('liste des articles'!H181) -> 11.86 | K181: 2014-06-02 | L181: 2014-05-23
A182: 179 | B182: BOITE ETANCHE ACHIC 100X100 | C182: LAP | D182: 130 | E182: =SUM('liste des articles'!D182+'Stock-Enter'!D182-'Stock-Sortie'!D182) -> 778 | F182: Stock Sufisant | G182: =SUM('liste des articles'!G182) -> 4.62 | H182: =SUM('liste des articles'!H182) -> 4.36 | K182: 2014-06-02 | L182: 2014-05-27
A183: 180 | B183: BOITE ETANCHE ACHIC 240X180 | C183: LAP | D183: 50 | E183: =SUM('liste des articles'!D183+'Stock-Enter'!D183-'Stock-Sortie'!D183) -> 270 | F183: =IF(E183>300,"Stock Sufisant","Stock insufisant") -> Stock insufisant | G183: =SUM('liste des articles'!G183) -> 19.12 | H183: =SUM('liste des articles'!H183) -> 18.04 | K183: 2014-06-04
A184: 181 | B184: REFLECTEUR POUR PROJECT PHILIPS | C184: JATA | D184: 2 | E184: =SUM('liste des articles'!D184+'Stock-Enter'!D184-'Stock-Sortie'!D184) -> 11 | F184: =IF(E184>300,"Stock Sufisant","Stock insufisant") -> Stock insufisant | G184: =SUM('liste des articles'!G184) -> 200 | H184: =SUM('liste des articles'!H184) -> 185 | K184: 11-04/06/2014
A185: 182 | B185: IINVERSEUR 32 AMP 380V | C185: JATA | E185: =SUM('liste des articles'!D185+'Stock-Enter'!D185-'Stock-Sortie'!D185) -> 4 | F185: =IF(E185>300,"Stock Sufisant","Stock insufisant") -> Stock insufisant | G185: =SUM('liste des articles'!G185) -> 540 | H185: =SUM('liste des articles'!H185) -> 515
A186: 183 | B186: SECTIONNEUR 4X100 AMP | C186: JATA | E186: =SUM('liste des articles'!D186+'Stock-Enter'!D186-'Stock-Sortie'!D186) -> 28 | F186: =IF(E186>300,"Stock Sufisant","Stock insufisant") -> Stock insufisant | G186: =SUM('liste des articles'!G186) -> 190 | H186: =SUM('liste des articles'!H186) -> 178
A187: 184 | B187: ARMATURE RC 380 | C187: JATA | E187: =SUM('liste des articles'!D187+'Stock-Enter'!D187-'Stock-Sortie'!D187) -> 1 | F187: =IF(E187>300,"Stock Sufisant","Stock insufisant") -> Stock insufisant | G187: =SUM('liste des articles'!G187) -> 500 | H187: =SUM('liste des articles'!H187) -> 416
A188: 185 | B188: SOFA
C189: CABLE / FIL / SOUPLE / ARME -- SOFA
A190: 187 | B190: CABLE SE1V 3X6.00 MM² | C190: SOFA | E190: =SUM('liste des articles'!D190+'Stock-Enter'!D190-'Stock-Sortie'!D190) -> 100 | F190: Stock insufisant | G190: =SUM('liste des articles'!G190) -> 17.7 | H190: =SUM('liste des articles'!H190) -> 13.9 | J190: *
A191: 188 | B191: CABLE SE1V 4X16.00 MM² | C191: SOFA | E191: =SUM('liste des articles'!D191+'Stock-Enter'!D191-'Stock-Sortie'!D191) -> 190 | F191: =IF(E191>300,"Stock Sufisant","Stock insufisant") -> Stock insufisant | G191: =SUM('liste des articles'!G191) -> 59.78 | H191: =SUM('liste des articles'!H191) -> 56.4 | J191: *
A192: 189 | B192: CABLE SE1V 3X16.00 MM² | E192: =SUM('liste des articles'!D192+'Stock-Enter'!D192-'Stock-Sortie'!D192) -> 0 | F192: =IF(E192>300,"Stock Sufisant","Stock insufisant") -> Stock insufisant | G192: =SUM('liste des articles'!G192) -> 0 | H192: =SUM('liste des articles'!H192) -> 0
A193: 190 | B193: CABLE SE1V 3X6 MM² | C193: SOFA | E193: =SUM('liste des articles'!D193+'Stock-Enter'!D193-'Stock-Sortie'!D193) -> 100 | F193: Stock insufisant | G193: =SUM('liste des articles'!G193) -> 17.68 | H193: =SUM('liste des articles'!H193) -> 16.68
A194: 191 | B194: CABLE SE1V 5X2,50 MM² | C194: SOFA | E194: =SUM('liste des articles'!D194+'Stock-Enter'!D194-'Stock-Sortie'!D194) -> 0 | F194: Stock insufisant | G194: =SUM('liste des articles'!G194) -> 14.5 | H194: =SUM('liste des articles'!H194) -> 11.4
A195: 192 | B195: CABLE SE1V 3X4 MM² H05VVF IMA | C195: SOFA | E195: =SUM('liste des articles'!D195+'Stock-Enter'!D195-'Stock-Sortie'!D195) -> 100 | F195: Stock insufisant | G195: =SUM('liste des articles'!G195) -> 12.84 | H195: =SUM('liste des articles'!H195) -> 12.12 | J195: *
A196: 193 | B196: CABLE SE1V 3X2,5 MM² | C196: SOFA | E196: =SUM('liste des articles'!D196+'Stock-Enter'!D196-'Stock-Sortie'!D196) -> 0 | F196: Stock insufisant | G196: =SUM('liste des articles'!G196) -> 0 | H196: =SUM('liste des articles'!H196) -> 6.6
A197: =IF(B197=0,"",ROW(A194)) -> 194 | B197: CABLE SE1V 4X1 MM² TUM/ALM | C197: SOFA | E197: =SUM('liste des articles'!D197+'Stock-Enter'!D197-'Stock-Sortie'!D197) -> 1000 | F197: Stock Sufisant | G197: =SUM('liste des articles'!G197) -> 4.74 | H197: =SUM('liste des articles'!H197) -> 4.47 | J197: *
A198: 195 | B198: CABLE U500 SV 4 MM² V-J (H07V-K) | C198: SOFA | E198: =SUM('liste des articles'!D198+'Stock-Enter'!D198-'Stock-Sortie'!D198) -> 1100 | F198: Stock Sufisant | G198: =SUM('liste des articles'!G198) -> 4.19 | H198: =SUM('liste des articles'!H198) -> 3.96 | J198: *
A199: 196 | B199: CABLE U500 SV 4 MM² BLEU (H07V-K) | C199: SOFA | E199: =SUM('liste des articles'!D199+'Stock-Enter'!D199-'Stock-Sortie'!D199) -> 1000 | F199: Stock Sufisant | G199: =SUM('liste des articles'!G199) -> 4.19 | H199: =SUM('liste des articles'!H199) -> 3.96 | J199: *
A200: 197 | B200: CABLE U500 SV 4 MM² ROUGE (H07V-K) | C200: SOFA | E200: =SUM('liste des articles'!D200+'Stock-Enter'!D200-'Stock-Sortie'!D200) -> 1200 | F200: Stock Sufisant | G200: =SUM('liste des articles'!G200) -> 4.19 | H200: =SUM('liste des articles'!H200) -> 3.96 | J200: *
... 12725 more rows

Sheet Liste-Client
A1: REF | B1: CLIENTS | C1: VILLE | D1: ADRESSE | E1: N°Facture | F1: FAXCLT | G1: Garantie | H1: Solde de l'exercice Précédent
A2: 1 | B2: RED-WIN CONSTRUCTION | C2: MEKNES
A3: 2 | B3: STE HMADIOUCH SARL | C3: SALE
A4: 3 | B4: STE IFLLADEN | C4: OUARZAZAT
A5: 4 | B5: SALEH OUHAMOU OU OUHAMOU | C5: AZROU
A6: 5 | B6: EL BOURIMI MHAMED | C6: FES
A7: 6 | B7: NASSIF QUINCAILLERIE | C7: CASABLANCA
A8: 7 | B8: SOMAFTRAD | C8: KENITRA
A9: 8 | B9: LAHBIB BELHAJ ET CTS | C9: FES
A10: 9 | B10: AHMAD RAMI | C10: TAZA
A11: 10 | B11: M HARYOULI MOHAMMADI | C11: FES
A12: 11 | B12: STE COMPTOIR TAMOUMENT | C12: KHENIFRA
A13: 12 | B13: SAIDI ET GANOUCH ET ZAAR ET HOUCINE ET MOHAMED ….. | C13: FES
A14: 13 | B14: KAMHA MOHAMED | C14: FES
A15: 14 | B15: MTRE GHIATI MERYEM FRAIS | C15: FES
A16: 15 | B16: MOBILIER LAND | C16: FES
A17: 16 | B17: Mr.OUKAZZI MOHAMED | C17: KHENIFRA
A18: 17 | B18: STE TRAKOUBEK | C18: FES
A19: 18 | B19: M YOUSSEF BOUMCHITA | C19: FES
A20: 19 | B20: Mr.EL MAALAOUI ABDESLAM | C20: TAZA
A21: 20 | B21: Mr.MALIH OTMANE | C21: TAZA
A22: 21 | B22: Mr.SEDDIKI ABDELLAH | C22: TAZA
A23: 22 | B23: STE REDPROMO | C23: MEKNES
A24: 23 | B24: ETS ZAZA YASS-SARL | C24: ERRACHIDIA
A25: 24 | B25: STE ETOMADIV | C25: MEKNES
A26: 25 | B26: Mr.OUDGHIRI SAFIANI ABDELILAH | C26: FES
A27: 26 | B27: STE IMILCHIL DE TRAVAUX | C27: AZROU
A28: 27
A29: 28
A30: 29
A31: 30
A32: 31
A33: 32
A34: 33
A35: 34
A36: 35
A37: 36
A38: 37
A39: 38
A40: 39
A41: 40
A42: 41
A43: 42
A44: 43
A45: 44
A46: 45
A47: 47
A48: 48
A49: 49
A50: 50
A51: 51
A52: 52
A53: 53
A54: 54
A55: 55
A56: 56
A57: 57
A58: 58
A59: 59
A60: 60
A61: 61
A62: 62
A63: 63
A64: 64
A65: 65
A66: 66
A67: 67
A68: 68
A69: 69
A70: 70
A71: 71
A72: 72
A73: 73
A74: 74
A75: 75
A76: 76
A77: 77
A78: 78
A79: 79
A80: 80
A81: 81
A82: 82
A83: 83
A84: 84
A85: 85
A86: 86
A87: 87
A88: 88
A89: 89
A90: 90
A91: 91
A92: 92
A93: 93
A94: 94
A95: 95
A96: 96
A97: 97
A98: 98
A99: 99
A100: 100
A101: 101
A102: 102
A103: 103
A104: 104
A105: 105
A106: 110
A107: 111
A108: 112
A109: 114
A110: 115
A111: 116
A112: 118
A113: 119
A114: 120
A115: 121
A116: 122
A117: 123
A118: 124
A119: 126
A120: 127
A121: 128
A122: 129
A123: 130
A124: 131
A125: 132
A126: 133
A127: 134
A128: 135
A129: 136
A130: 137
A131: 138
A132: 139
A133: 140
A134: 141
A135: 142
A136: 143
A137: 144
A138: 145
A139: 146
A140: 147
A141: 148
A142: 149
A143: 150
A144: 151
A145: 152
A146: 153
A147: 154
A148: 156
A149: 157
A150: 158
A151: 159
A152: 160
A153: 161
A154: 162
A155: 163
A156: 164
A157: 165
A158: 166
A159: 167
A160: 168
A161: 170
A162: 171
A163: 172
A164: 173
A165: 174
A166: 175
A167: 176
A168: 177
A169: 178
A170: 179
A171: 180
A172: 181
A173: 182
A174: 183
A175: 184
A176: 185
A177: 186
A178: 187
A179: 188
A180: 189
A181: 190
A182: 191
A183: 192
A184: 193
A185: 195
A186: 196
A187: 197
A188: 198
A189: 199
A190: 200
A191: 201
A192: 202
A193: 204
A194: 205
A195: 206
A196: 207
A197: 208
A198: 209
A199: 210
A200: 211
... 38 more rows

Sheet RG-Client (hidden)

Sheet Feuil1 (hidden)
C5: STE IMILCHIL DE TRAVAU
A11: N° Facture: | B11: 200 | C11: Sefrou Le : | D11: 2014-05-27
A13: Quantité | B13: Designation | C13: Prix U.T.T.C | D13: Total T.T.C
A14: 25 | B14: COF TICHKA JADID C/C 30A | C14: 100 | D14: 2500
A15: 25 | B15: COF MEDINA C/C 30A ONE | C15: 110 | D15: 2750
A16: 2500 | B16: CABLE CAPOTHENE 2X2,5 | C16: 4.3 | D16: 10750
A17: 300 | B17: CUIVRE NU 14,1 | C17: 100.5 | D17: 30150
A18: 200 | B18: BOITE ETANCHE ACHIC 100X100 | C18: 5 | D18: 1000
A19: 900 | B19: CABLE U500 SV 4 MM² V-J (H07V-K) | C19: 4.14 | D19: 3726
A20: 800 | B20: CABLE TORSADE ALU 4X25 | C20: 14.71 | D20: 11768
A21: 2800 | B21: CABLE MTH 2X0,25 | C21: 0.7 | D21: 1960
A22: 3000 | B22: FIL 1,5 SC | C22: 1.06 | D22: 3180
A23: 1900 | B23: CABLE TORSADE ALU 4X16 | C23: 10 | D23: 19000
A24: 40 | B24: CABLE U 1000 RVFV CU 4X50 MM² | C24: 205 | D24: 8200
A25: 50 | B25: CABLE U 1000 RVFV CU 4X35 MM² | C25: 140 | D25: 7000
A26: 100 | B26: CUIVRE NU 27,6 MM² 252,00KG/KM | C26: 120.06 | D26: 12006
A27: 250 | B27: CUIVRE NU 22,0 MM² 198,00 KG/KM | C27: 105 | D27: 26250
A28: 2000 | B28: CABLE TORSADE ALU 2X16 | C28: 4.88 | D28: 9760
B42: Total Prix U.H.T | C42: T.V.A | D42: Prix Total T.T.C
B43: 125000 | C43: 25000 | D43: 150000
A45: ARRETTER LA PRESENTE FACTURE A LA SOMME DE :
A46: CENT CINQUANTE MILLE DIRHAMES

Sheet CALCUL TTC (hidden)
A1: PRIX H.T | B1: POURCENTAGE | C1: CALC 1 | D1: PRIX TTC

Sheet Feuil de calcule Somme + GR (hidden)
A1: REF | B1: Quantité | C1: Designation | D1: Prix U.T.T.C | E1: Total T.T.C | G1: =SUM(E2:E46) -> 142722.4 | H1: =I345-E346 -> 120000
A2: 1 | B2: 10 | C2: =IF(A2=0,"",IFERROR(VLOOKUP(A2,'liste des articles'!A:I,2),)) -> COF TICHKA JADID C/C 30A | D2: 100 | E2: =IF(B2=0,"",IF(A2=0,"",SUM(D2*B2))) -> 1000
A3: 2 | B3: 10 | C3: =IF(A3=0,"",IFERROR(VLOOKUP(A3,'liste des articles'!A:I,2),)) -> COF MEDINA C/C 30A ONE | D3: 110 | E3: 1100
A4: 23 | B4: 3000 | C4: =IF(A4=0,"",IFERROR(VLOOKUP(A4,'liste des articles'!A:I,2),)) -> HUBLOT ROND REF 1106 CEVIZ SAFILUM | D4: 2.65 | E4: 7950
A5: 24 | B5: 3000 | C5: =IF(A5=0,"",IFERROR(VLOOKUP(A5,'liste des articles'!A:I,2),)) -> HUBLOT ROND REF 1102 CEVIZ SAFILUM | D5: 2.3 | E5: 6900
A6: 39 | B6: 103 | C6: =IF(A6=0,"",IFERROR(VLOOKUP(A6,'liste des articles'!A:I,2),)) -> TUBE ANNELE D16 ORANGE | D6: 14 | E6: 1442
A7: 60 | B7: 100 | C7: =IF(A7=0,"",IFERROR(VLOOKUP(A7,'liste des articles'!A:I,2),)) -> DISJ MOD 3KA 1P 16A DELIXI | D7: 8.15 | E7: 815
A8: 66 | B8: 1401 | C8: =IF(A8=0,"",IFERROR(VLOOKUP(A8,'liste des articles'!A:I,2),)) -> DISJONCTEUR SECURIS 1P 32A | D8: 1.06 | E8: 1485.06
A9: 68 | B9: 800 | C9: =IF(A9=0,"",IFERROR(VLOOKUP(A9,'liste des articles'!A:I,2),)) -> DISJ 6KA C4PP 25A REF MCN 425A | D9: 5.3 | E9: 4240
A10: 69 | B10: 700 | C10: =IF(A10=0,"",IFERROR(VLOOKUP(A10,'liste des articles'!A:I,2),)) -> DISJ 4,5/6KAC 1PP+N 32A REF MJN 732 | D10: 2.52 | E10: 1764
A11: 75 | B11: 96 | C11: =IF(A11=0,"",IFERROR(VLOOKUP(A11,'liste des articles'!A:I,2),)) -> DISJ 3KA B 4 PP 40A REF MV440 | D11: 100.5 | E11: 9648
A12: 78 | B12: 787 | C12: =IF(A12=0,"",IFERROR(VLOOKUP(A12,'liste des articles'!A:I,2),)) -> AMPER DIGIT 3PHASE 0-9999A | D12: 5 | E12: 3935
A13: 111 | B13: 2500 | C13: =IF(A13=0,"",IFERROR(VLOOKUP(A13,'liste des articles'!A:I,2),)) -> CABLE SC 4X10 | D13: 0.38 | E13: 950
A14: 124 | B14: 300 | C14: =IF(A14=0,"",IFERROR(VLOOKUP(A14,'liste des articles'!A:I,2),)) -> HUBLOT OVAL EN VERRE + GP E27 BL | D14: 5.25 | E14: 1575
A15: 74 | B15: 2000 | C15: =IF(A15=0,"",IFERROR(VLOOKUP(A15,'liste des articles'!A:I,2),)) -> DISJ 3KA B 4 PP 20A REF MV420 | D15: 0.7 | E15: 1400
A16: 67 | B16: 923 | C16: =IF(A16=0,"",IFERROR(VLOOKUP(A16,'liste des articles'!A:I,2),)) -> DISJ 6KA C4PP 63A | D16: 1.78 | E16: 1642.94
A17: 38 | B17: 24 | C17: =IF(A17=0,"",IFERROR(VLOOKUP(A17,'liste des articles'!A:I,2),)) -> DIM ORANGE REF 09 SERIG | D17: 14 | E17: 336
A18: 16 | B18: 500 | C18: =IF(A18=0,"",IFERROR(VLOOKUP(A18,'liste des articles'!A:I,2),)) -> COF NOVIN.1A5O+1DTOO 50 | D18: 2.5 | E18: 1250
A19: 71 | B19: 1000 | C19: =IF(A19=0,"",IFERROR(VLOOKUP(A19,'liste des articles'!A:I,2),)) -> DISJ 4,5/6KA C 1PP+N 10A REF MJN 710 | D19: 1.2 | E19: 1200
A20: 72 | B20: 1000 | C20: =IF(A20=0,"",IFERROR(VLOOKUP(A20,'liste des articles'!A:I,2),)) -> DISJ 4,5/6KA C 1PP+N 16A REF MJN 716 | D20: 1.75 | E20: 1750
A21: 73 | B21: 1000 | C21: =IF(A21=0,"",IFERROR(VLOOKUP(A21,'liste des articles'!A:I,2),)) -> DISJ 3KA B 4 PP 16A REF MV416 | D21: 1.3 | E21: 1300
A22: 74 | B22: 2000 | C22: =IF(A22=0,"",IFERROR(VLOOKUP(A22,'liste des articles'!A:I,2),)) -> DISJ 3KA B 4 PP 20A REF MV420 | D22: 0.7 | E22: 1400
A23: 67 | B23: 2000 | C23: =IF(A23=0,"",IFERROR(VLOOKUP(A23,'liste des articles'!A:I,2),)) -> DISJ 6KA C4PP 63A | D23: 1.78 | E23: 3560
A24: 65 | B24: 2000 | C24: =IF(A24=0,"",IFERROR(VLOOKUP(A24,'liste des articles'!A:I,2),)) -> DISJONCTEUR SECURIS 4P 63 A | D24: 4.8 | E24: 9600
A25: 66 | B25: 2450 | C25: =IF(A25=0,"",IFERROR(VLOOKUP(A25,'liste des articles'!A:I,2),)) -> DISJONCTEUR SECURIS 1P 32A | D25: 1.06 | E25: 2597
A26: 25 | B26: 2000 | C26: =IF(A26=0,"",IFERROR(VLOOKUP(A26,'liste des articles'!A:I,2),)) -> HUBLOT ROND REF 1101 CEVIZ SAFILUM | D26: 1.7 | E26: 3400
A27: 191 | B27: 2000 | C27: =IF(A27=0,"",IFERROR(VLOOKUP(A27,'liste des articles'!A:I,2),)) -> CABLE SE1V 5X2,50 MM² | D27: 3.1 | E27: 6200
A28: 3 | B28: 15 | C28: =IF(A28=0,"",IFERROR(VLOOKUP(A28,'liste des articles'!A:I,2),)) -> COF TICHKA JADID SS C/C | D28: 86 | E28: 1290
A29: 16 | B29: 500 | C29: =IF(A29=0,"",IFERROR(VLOOKUP(A29,'liste des articles'!A:I,2),)) -> COF NOVIN.1A5O+1DTOO 50 | D29: 2.5 | E29: 1250
A30: 18 | B30: 200 | C30: =IF(A30=0,"",IFERROR(VLOOKUP(A30,'liste des articles'!A:I,2),)) -> COFFRET 4FILS ONE | D30: 3.25 | E30: 650
A31: 78 | B31: 700 | C31: =IF(A31=0,"",IFERROR(VLOOKUP(A31,'liste des articles'!A:I,2),)) -> AMPER DIGIT 3PHASE 0-9999A | D31: 5 | E31: 3500
A32: 153 | B32: 400 | C32: =IF(A32=0,"",IFERROR(VLOOKUP(A32,'liste des articles'!A:I,2),)) -> COFFRET APPA 8 MOD LAP | D32: 4.14 | E32: 1656
A33: 169 | B33: 100 | C33: =IF(A33=0,"",IFERROR(VLOOKUP(A33,'liste des articles'!A:I,2),)) -> POUSSOIR ROND LUM GALAXY MARRON | D33: 2.63 | E33: 263
A34: 187 | B34: 255 | C34: =IF(A34=0,"",IFERROR(VLOOKUP(A34,'liste des articles'!A:I,2),)) -> CABLE SE1V 3X6.00 MM² | D34: 105 | E34: 26775
A35: 190 | B35: 600 | C35: =IF(A35=0,"",IFERROR(VLOOKUP(A35,'liste des articles'!A:I,2),)) -> CABLE SE1V 3X6 MM² | D35: 7.9 | E35: 4740
A36: 186 | B36: 52 | C36: =IF(A36=0,"",IFERROR(VLOOKUP(A36,'liste des articles'!A:I,2),)) -> SOFA | D36: 120 | E36: 6240
A37: 188 | B37: 2 | C37: =IF(A37=0,"",IFERROR(VLOOKUP(A37,'liste des articles'!A:I,2),)) -> CABLE SE1V 4X16.00 MM² | D37: 120 | E37: 240
A38: 200 | B38: 5 | C38: =IF(A38=0,"",IFERROR(VLOOKUP(A38,'liste des articles'!A:I,2),)) -> CABLE U 500V 2,50 MM² ROUGE IMA (H07VR) | D38: 112 | E38: 560
A39: 201 | B39: 60 | C39: =IF(A39=0,"",IFERROR(VLOOKUP(A39,'liste des articles'!A:I,2),)) -> CABLE U 500V 2,5 MM² BLEU IMA | D39: 20 | E39: 1200
A40: 183 | B40: 50 | C40: =IF(A40=0,"",IFERROR(VLOOKUP(A40,'liste des articles'!A:I,2),)) -> SECTIONNEUR 4X100 AMP | D40: 140 | E40: 7000
A41: 174 | B41: 44 | C41: =IF(A41=0,"",IFERROR(VLOOKUP(A41,'liste des articles'!A:I,2),)) -> PRISE RJ11 GALAXY MARRON | D41: 73.3 | E41: 3225.2
A42: 15 | B42: 5 | C42: =IF(A42=0,"",IFERROR(VLOOKUP(A42,'liste des articles'!A:I,2),)) -> COF NOVIN.1A5O+1DTOO 50 | D42: 300.2 | E42: 1501
A43: 36 | B43: 8 | C43: =IF(A43=0,"",IFERROR(VLOOKUP(A43,'liste des articles'!A:I,2),)) -> DIM ORANGE REF 13 SERIG | D43: 350 | E43: 2800
A44: 44 | B44: 20 | C44: =IF(A44=0,"",IFERROR(VLOOKUP(A44,'liste des articles'!A:I,2),)) -> INTER. DIFF.4X40A 300MA CC440F | D44: 32 | E44: 640
A45: 43 | B45: 10 | C45: =IF(A45=0,"",IFERROR(VLOOKUP(A45,'liste des articles'!A:I,2),)) -> DISJONCTEURS | D45: 14.02 | E45: 140.2
A46: 85 | B46: 170 | C46: =IF(A46=0,"",IFERROR(VLOOKUP(A46,'liste des articles'!A:I,2),)) -> LC1D18Q7 | D46: 3.6 | E46: 612
A47: 15 | B47: 2 | C47: =IF(A47=0,"",IFERROR(VLOOKUP(A47,'liste des articles'!A:I,2),)) -> COF NOVIN.1A5O+1DTOO 50 | D47: 600 | E47: =IF(B47=0,"",IF(A47=0,"",SUM(D47*B47))) -> 1200 | G47: =SUM(E2:E344) -> 150000 | H47: =I345-E346 -> 120000
A48: 37 | B48: 8 | C48: =IF(A48=0,"",IFERROR(VLOOKUP(A48,'liste des articles'!A:I,2),)) -> DIM ORANGE RE 11 SERIG | D48: 350 | E48: =IF(B48=0,"",IF(A48=0,"",SUM(D48*B48))) -> 2800
A49: 109 | B49: 28 | C49: =IF(A49=0,"",IFERROR(VLOOKUP(A49,'liste des articles'!A:I,2),)) -> CABLE SC 4X10 | D49: 20.7 | E49: =IF(B49=0,"",IF(A49=0,"",SUM(D49*B49))) -> 579.6
A50: 112 | B50: 95 | C50: =IF(A50=0,"",IFERROR(VLOOKUP(A50,'liste des articles'!A:I,2),)) -> CABLE SC 4X10 | D50: 28.4 | E50: 2698
C51: =IF(A51=0,"",IFERROR(VLOOKUP(A51,'liste des articles'!A:I,2),)) -> 
C52: =IF(A52=0,"",IFERROR(VLOOKUP(A52,'liste des articles'!A:I,2),)) -> 
C53: =IF(A53=0,"",IFERROR(VLOOKUP(A53,'liste des articles'!A:I,2),)) -> 
C54: =IF(A54=0,"",IFERROR(VLOOKUP(A54,'liste des articles'!A:I,2),)) -> 
C55: =IF(A55=0,"",IFERROR(VLOOKUP(A55,'liste des articles'!A:I,2),)) -> 
C56: =IF(A56=0,"",IFERROR(VLOOKUP(A56,'liste des articles'!A:I,2),)) -> 
C57: =IF(A57=0,"",IFERROR(VLOOKUP(A57,'liste des articles'!A:I,2),)) -> 
C58: =IF(A58=0,"",IFERROR(VLOOKUP(A58,'liste des articles'!A:I,2),)) -> 
C59: =IF(A59=0,"",IFERROR(VLOOKUP(A59,'liste des articles'!A:I,2),)) -> 
C60: =IF(A60=0,"",IFERROR(VLOOKUP(A60,'liste des articles'!A:I,2),)) -> 
C61: =IF(A61=0,"",IFERROR(VLOOKUP(A61,'liste des articles'!A:I,2),)) -> 
C62: =IF(A62=0,"",IFERROR(VLOOKUP(A62,'liste des articles'!A:I,2),)) -> 
C63: =IF(A63=0,"",IFERROR(VLOOKUP(A63,'liste des articles'!A:I,2),)) -> 
C64: =IF(A64=0,"",IFERROR(VLOOKUP(A64,'liste des articles'!A:I,2),)) -> 
C65: =IF(A65=0,"",IFERROR(VLOOKUP(A65,'liste des articles'!A:I,2),)) -> 
C66: =IF(A66=0,"",IFERROR(VLOOKUP(A66,'liste des articles'!A:I,2),)) -> 
C67: =IF(A67=0,"",IFERROR(VLOOKUP(A67,'liste des articles'!A:I,2),)) -> 
C68: =IF(A68=0,"",IFERROR(VLOOKUP(A68,'liste des articles'!A:I,2),)) -> 
C69: =IF(A69=0,"",IFERROR(VLOOKUP(A69,'liste des articles'!A:I,2),)) -> 
C70: =IF(A70=0,"",IFERROR(VLOOKUP(A70,'liste des articles'!A:I,2),)) -> 
C71: =IF(A71=0,"",IFERROR(VLOOKUP(A71,'liste des articles'!A:I,2),)) -> 
C72: =IF(A72=0,"",IFERROR(VLOOKUP(A72,'liste des articles'!A:I,2),)) -> 
C73: =IF(A73=0,"",IFERROR(VLOOKUP(A73,'liste des articles'!A:I,2),)) -> 
C74: =IF(A74=0,"",IFERROR(VLOOKUP(A74,'liste des articles'!A:I,2),)) -> 
C75: =IF(A75=0,"",IFERROR(VLOOKUP(A75,'liste des articles'!A:I,2),)) -> 
C76: =IF(A76=0,"",IFERROR(VLOOKUP(A76,'liste des articles'!A:I,2),)) ->  | G76: =SUM(E2:E344) -> 150000 | H76: =I345-E346 -> 120000
C77: =IF(A77=0,"",IFERROR(VLOOKUP(A77,'liste des articles'!A:I,2),)) -> 
C78: =IF(A78=0,"",IFERROR(VLOOKUP(A78,'liste des articles'!A:I,2),)) -> 
C79: =IF(A79=0,"",IFERROR(VLOOKUP(A79,'liste des articles'!A:I,2),)) -> 
C80: =IF(A80=0,"",IFERROR(VLOOKUP(A80,'liste des articles'!A:I,2),)) -> 
C81: =IF(A81=0,"",IFERROR(VLOOKUP(A81,'liste des articles'!A:I,2),)) -> 
C82: =IF(A82=0,"",IFERROR(VLOOKUP(A82,'liste des articles'!A:I,2),)) -> 
C83: =IF(A83=0,"",IFERROR(VLOOKUP(A83,'liste des articles'!A:I,2),)) -> 
C84: =IF(A84=0,"",IFERROR(VLOOKUP(A84,'liste des articles'!A:I,2),)) -> 
C85: =IF(A85=0,"",IFERROR(VLOOKUP(A85,'liste des articles'!A:I,2),)) -> 
C86: =IF(A86=0,"",IFERROR(VLOOKUP(A86,'liste des articles'!A:I,2),)) -> 
C87: =IF(A87=0,"",IFERROR(VLOOKUP(A87,'liste des articles'!A:I,2),)) -> 
C88: =IF(A88=0,"",IFERROR(VLOOKUP(A88,'liste des articles'!A:I,2),)) -> 
C89: =IF(A89=0,"",IFERROR(VLOOKUP(A89,'liste des articles'!A:I,2),)) -> 
C90: =IF(A90=0,"",IFERROR(VLOOKUP(A90,'liste des articles'!A:I,2),)) -> 
C91: =IF(A91=0,"",IFERROR(VLOOKUP(A91,'liste des articles'!A:I,2),)) -> 
C92: =IF(A92=0,"",IFERROR(VLOOKUP(A92,'liste des articles'!A:I,2),)) -> 
C93: =IF(A93=0,"",IFERROR(VLOOKUP(A93,'liste des articles'!A:I,2),)) -> 
C94: =IF(A94=0,"",IFERROR(VLOOKUP(A94,'liste des articles'!A:I,2),)) -> 
C95: =IF(A95=0,"",IFERROR(VLOOKUP(A95,'liste des articles'!A:I,2),)) -> 
C96: =IF(A96=0,"",IFERROR(VLOOKUP(A96,'liste des articles'!A:I,2),)) -> 
C97: =IF(A97=0,"",IFERROR(VLOOKUP(A97,'liste des articles'!A:I,2),)) -> 
C98: =IF(A98=0,"",IFERROR(VLOOKUP(A98,'liste des articles'!A:I,2),)) -> 
C99: =IF(A99=0,"",IFERROR(VLOOKUP(A99,'liste des articles'!A:I,2),)) -> 
C100: =IF(A100=0,"",IFERROR(VLOOKUP(A100,'liste des articles'!A:I,2),)) -> 
C101: =IF(A101=0,"",IFERROR(VLOOKUP(A101,'liste des articles'!A:I,2),)) -> 
C102: =IF(A102=0,"",IFERROR(VLOOKUP(A102,'liste des articles'!A:I,2),)) -> 
C103: =IF(A103=0,"",IFERROR(VLOOKUP(A103,'liste des articles'!A:I,2),)) ->  | G103: =SUM(E2:E344) -> 150000 | H103: =I345-E346 -> 120000
C104: =IF(A104=0,"",IFERROR(VLOOKUP(A104,'liste des articles'!A:I,2),)) -> 
C105: =IF(A105=0,"",IFERROR(VLOOKUP(A105,'liste des articles'!A:I,2),)) -> 
C106: =IF(A106=0,"",IFERROR(VLOOKUP(A106,'liste des articles'!A:I,2),)) -> 
C107: =IF(A107=0,"",IFERROR(VLOOKUP(A107,'liste des articles'!A:I,2),)) -> 
C108: =IF(A108=0,"",IFERROR(VLOOKUP(A108,'liste des articles'!A:I,2),)) -> 
C109: =IF(A109=0,"",IFERROR(VLOOKUP(A109,'liste des articles'!A:I,2),)) -> 
C110: =IF(A110=0,"",IFERROR(VLOOKUP(A110,'liste des articles'!A:I,2),)) -> 
C111: =IF(A111=0,"",IFERROR(VLOOKUP(A111,'liste des articles'!A:I,2),)) -> 
C112: =IF(A112=0,"",IFERROR(VLOOKUP(A112,'liste des articles'!A:I,2),)) -> 
C113: =IF(A113=0,"",IFERROR(VLOOKUP(A113,'liste des articles'!A:I,2),)) ->  | E113: =IF(B113=0,"",IF(A113=0,"",SUM(D113*B113))) -> 
C114: =IF(A114=0,"",IFERROR(VLOOKUP(A114,'liste des articles'!A:I,2),)) -> 
C115: =IF(A115=0,"",IFERROR(VLOOKUP(A115,'liste des articles'!A:I,2),)) -> 
C116: =IF(A116=0,"",IFERROR(VLOOKUP(A116,'liste des articles'!A:I,2),)) -> 
C117: =IF(A117=0,"",IFERROR(VLOOKUP(A117,'liste des articles'!A:I,2),)) -> 
C118: =IF(A118=0,"",IFERROR(VLOOKUP(A118,'liste des articles'!A:I,2),)) -> 
C119: =IF(A119=0,"",IFERROR(VLOOKUP(A119,'liste des articles'!A:I,2),)) -> 
C120: =IF(A120=0,"",IFERROR(VLOOKUP(A120,'liste des articles'!A:I,2),)) -> 
C121: =IF(A121=0,"",IFERROR(VLOOKUP(A121,'liste des articles'!A:I,2),)) -> 
C122: =IF(A122=0,"",IFERROR(VLOOKUP(A122,'liste des articles'!A:I,2),)) -> 
C123: =IF(A123=0,"",IFERROR(VLOOKUP(A123,'liste des articles'!A:I,2),)) -> 
C124: =IF(A124=0,"",IFERROR(VLOOKUP(A124,'liste des articles'!A:I,2),)) -> 
C125: =IF(A125=0,"",IFERROR(VLOOKUP(A125,'liste des articles'!A:I,2),)) -> 
C126: =IF(A126=0,"",IFERROR(VLOOKUP(A126,'liste des articles'!A:I,2),)) -> 
C127: =IF(A127=0,"",IFERROR(VLOOKUP(A127,'liste des articles'!A:I,2),)) -> 
C128: =IF(A128=0,"",IFERROR(VLOOKUP(A128,'liste des articles'!A:I,2),)) -> 
C129: =IF(A129=0,"",IFERROR(VLOOKUP(A129,'liste des articles'!A:I,2),)) -> 
C130: =IF(A130=0,"",IFERROR(VLOOKUP(A130,'liste des articles'!A:I,2),)) -> 
C131: =IF(A131=0,"",IFERROR(VLOOKUP(A131,'liste des articles'!A:I,2),)) -> 
C132: =IF(A132=0,"",IFERROR(VLOOKUP(A132,'liste des articles'!A:I,2),)) -> 
C133: =IF(A133=0,"",IFERROR(VLOOKUP(A133,'liste des articles'!A:I,2),)) ->  | G133: =SUM(E2:E344) -> 150000 | H133: =I345-E346 -> 120000
C134: =IF(A134=0,"",IFERROR(VLOOKUP(A134,'liste des articles'!A:I,2),)) -> 
C135: =IF(A135=0,"",IFERROR(VLOOKUP(A135,'liste des articles'!A:I,2),)) -> 
C136: =IF(A136=0,"",IFERROR(VLOOKUP(A136,'liste des articles'!A:I,2),)) -> 
C137: =IF(A137=0,"",IFERROR(VLOOKUP(A137,'liste des articles'!A:I,2),)) -> 
C138: =IF(A138=0,"",IFERROR(VLOOKUP(A138,'liste des articles'!A:I,2),)) -> 
C139: =IF(A139=0,"",IFERROR(VLOOKUP(A139,'liste des articles'!A:I,2),)) -> 
C140: =IF(A140=0,"",IFERROR(VLOOKUP(A140,'liste des articles'!A:I,2),)) -> 
C141: =IF(A141=0,"",IFERROR(VLOOKUP(A141,'liste des articles'!A:I,2),)) -> 
C142: =IF(A142=0,"",IFERROR(VLOOKUP(A142,'liste des articles'!A:I,2),)) -> 
C143: =IF(A143=0,"",IFERROR(VLOOKUP(A143,'liste des articles'!A:I,2),)) -> 
C144: =IF(A144=0,"",IFERROR(VLOOKUP(A144,'liste des articles'!A:I,2),)) -> 
C145: =IF(A145=0,"",IFERROR(VLOOKUP(A145,'liste des articles'!A:I,2),)) -> 
C146: =IF(A146=0,"",IFERROR(VLOOKUP(A146,'liste des articles'!A:I,2),)) -> 
C147: =IF(A147=0,"",IFERROR(VLOOKUP(A147,'liste des articles'!A:I,2),)) -> 
C148: =IF(A148=0,"",IFERROR(VLOOKUP(A148,'liste des articles'!A:I,2),)) -> 
C149: =IF(A149=0,"",IFERROR(VLOOKUP(A149,'liste des articles'!A:I,2),)) -> 
C150: =IF(A150=0,"",IFERROR(VLOOKUP(A150,'liste des articles'!A:I,2),)) -> 
C151: =IF(A151=0,"",IFERROR(VLOOKUP(A151,'liste des articles'!A:I,2),)) -> 
C152: =IF(A152=0,"",IFERROR(VLOOKUP(A152,'liste des articles'!A:I,2),)) -> 
C153: =IF(A153=0,"",IFERROR(VLOOKUP(A153,'liste des articles'!A:I,2),)) -> 
C154: =IF(A154=0,"",IFERROR(VLOOKUP(A154,'liste des articles'!A:I,2),)) -> 
C155: =IF(A155=0,"",IFERROR(VLOOKUP(A155,'liste des articles'!A:I,2),)) -> 
C156: =IF(A156=0,"",IFERROR(VLOOKUP(A156,'liste des articles'!A:I,2),)) -> 
C157: =IF(A157=0,"",IFERROR(VLOOKUP(A157,'liste des articles'!A:I,2),)) -> 
C158: =IF(A158=0,"",IFERROR(VLOOKUP(A158,'liste des articles'!A:I,2),)) -> 
C159: =IF(A159=0,"",IFERROR(VLOOKUP(A159,'liste des articles'!A:I,2),)) -> 
C160: =IF(A160=0,"",IFERROR(VLOOKUP(A160,'liste des articles'!A:I,2),)) ->  | G160: =SUM(E2:E344) -> 150000 | H160: =I345-E346 -> 120000
C161: =IF(A161=0,"",IFERROR(VLOOKUP(A161,'liste des articles'!A:I,2),)) -> 
C162: =IF(A162=0,"",IFERROR(VLOOKUP(A162,'liste des articles'!A:I,2),)) -> 
C163: =IF(A163=0,"",IFERROR(VLOOKUP(A163,'liste des articles'!A:I,2),)) -> 
C164: =IF(A164=0,"",IFERROR(VLOOKUP(A164,'liste des articles'!A:I,2),)) -> 
C165: =IF(A165=0,"",IFERROR(VLOOKUP(A165,'liste des articles'!A:I,2),)) -> 
C166: =IF(A166=0,"",IFERROR(VLOOKUP(A166,'liste des articles'!A:I,2),)) -> 
C167: =IF(A167=0,"",IFERROR(VLOOKUP(A167,'liste des articles'!A:I,2),)) -> 
C168: =IF(A168=0,"",IFERROR(VLOOKUP(A168,'liste des articles'!A:I,2),)) -> 
C169: =IF(A169=0,"",IFERROR(VLOOKUP(A169,'liste des articles'!A:I,2),)) -> 
C170: =IF(A170=0,"",IFERROR(VLOOKUP(A170,'liste des articles'!A:I,2),)) -> 
C171: =IF(A171=0,"",IFERROR(VLOOKUP(A171,'liste des articles'!A:I,2),)) -> 
C172: =IF(A172=0,"",IFERROR(VLOOKUP(A172,'liste des articles'!A:I,2),)) -> 
C173: =IF(A173=0,"",IFERROR(VLOOKUP(A173,'liste des articles'!A:I,2),)) -> 
C174: =IF(A174=0,"",IFERROR(VLOOKUP(A174,'liste des articles'!A:I,2),)) -> 
C175: =IF(A175=0,"",IFERROR(VLOOKUP(A175,'liste des articles'!A:I,2),)) -> 
C176: =IF(A176=0,"",IFERROR(VLOOKUP(A176,'liste des articles'!A:I,2),)) -> 
C177: =IF(A177=0,"",IFERROR(VLOOKUP(A177,'liste des articles'!A:I,2),)) ->  | E177: =IF(B177=0,"",IF(A177=0,"",SUM(D177*B177))) -> 
C178: =IF(A178=0,"",IFERROR(VLOOKUP(A178,'liste des articles'!A:I,2),)) -> 
C179: =IF(A179=0,"",IFERROR(VLOOKUP(A179,'liste des articles'!A:I,2),)) -> 
C180: =IF(A180=0,"",IFERROR(VLOOKUP(A180,'liste des articles'!A:I,2),)) -> 
C181: =IF(A181=0,"",IFERROR(VLOOKUP(A181,'liste des articles'!A:I,2),)) -> 
C182: =IF(A182=0,"",IFERROR(VLOOKUP(A182,'liste des articles'!A:I,2),)) -> 
C183: =IF(A183=0,"",IFERROR(VLOOKUP(A183,'liste des articles'!A:I,2),)) -> 
C184: =IF(A184=0,"",IFERROR(VLOOKUP(A184,'liste des articles'!A:I,2),)) -> 
C185: =IF(A185=0,"",IFERROR(VLOOKUP(A185,'liste des articles'!A:I,2),)) -> 
C186: =IF(A186=0,"",IFERROR(VLOOKUP(A186,'liste des articles'!A:I,2),)) -> 
C187: =IF(A187=0,"",IFERROR(VLOOKUP(A187,'liste des articles'!A:I,2),)) ->  | G187: =SUM(E2:E344) -> 150000 | H187: =I345-E346 -> 120000
C188: =IF(A188=0,"",IFERROR(VLOOKUP(A188,'liste des articles'!A:I,2),)) -> 
C189: =IF(A189=0,"",IFERROR(VLOOKUP(A189,'liste des articles'!A:I,2),)) -> 
C190: =IF(A190=0,"",IFERROR(VLOOKUP(A190,'liste des articles'!A:I,2),)) -> 
C191: =IF(A191=0,"",IFERROR(VLOOKUP(A191,'liste des articles'!A:I,2),)) -> 
C192: =IF(A192=0,"",IFERROR(VLOOKUP(A192,'liste des articles'!A:I,2),)) -> 
C193: =IF(A193=0,"",IFERROR(VLOOKUP(A193,'liste des articles'!A:I,2),)) -> 
C194: =IF(A194=0,"",IFERROR(VLOOKUP(A194,'liste des articles'!A:I,2),)) -> 
C195: =IF(A195=0,"",IFERROR(VLOOKUP(A195,'liste des articles'!A:I,2),)) -> 
C196: =IF(A196=0,"",IFERROR(VLOOKUP(A196,'liste des articles'!A:I,2),)) -> 
C197: =IF(A197=0,"",IFERROR(VLOOKUP(A197,'liste des articles'!A:I,2),)) -> 
C198: =IF(A198=0,"",IFERROR(VLOOKUP(A198,'liste des articles'!A:I,2),)) -> 
C199: =IF(A199=0,"",IFERROR(VLOOKUP(A199,'liste des articles'!A:I,2),)) -> 
C200: =IF(A200=0,"",IFERROR(VLOOKUP(A200,'liste des articles'!A:I,2),)) -> 
... 148 more rows

Sheet parametrage
A1: NOM | B1: Mot de Passe | C1: parametrage | D1: liste des articles | E1: Feuil de calcule | F1: Stock-Sortie | G1: Stock-Enter
A2: niyo | B2: 1 | C2: x | D2: x | E2: x | F2: x | G2: x
A3: 1 | B3: 1
A4: 2 | B4: 2
A5: admin | B5: ass2000 | D5: x | E5: x | F5: x | G5: x

Sheet Feuil2 (hidden)
